Workbook

Sheet HOME
C1: 2024 Multifamily Retrofit Rebate Application v1
C2: PNM Business Energy Efficiency Programs
A3: Why improve energy efficiency?
B4: Improves profitability by cutting operating costs | E4: Distinguishes your business as an energy efficiency advocate within our community | H4: Qualifies your project for rebates that can help cover upgrade costs
A6: Application Process | G6: Contact Our Team
A7: 1. | B7: Submit a Pre-Notification Application to reserve funding (if required). | G7: Address:
G8: 320 Gold Avenue SW, Suite 500 Albuquerque, NM 87102
A10: 2. | B10: Install qualified technology. | G10: Main Phone:
G11: (505) 938-9400
A12: 3. | B12: Complete, sign, and submit a Final Application with all required documentation within 6 months of project completion. | G12: Email:
G13: energyefficiency@pnm.com
G14: Website:
G15: www.pnmenergyefficiency.com
A16: 4. | B16: The incentive check will be sent 4 to 6 weeks after approval of the Final Application.

Sheet Applicant Info
D1: APPLICANT INFORMATION | J1: For office use only:
J2: Application # | K2: Revision #
A4: Application Type: | G4: Check ONE box below:
C6: Retrofit | H6: Pre-Notification | J6: Date | P6: =IF(G6>0,"Yes",) -> 0
H7: or
C8: Number of Units --> | H8: Final Application | J8: Date | O8: New pre notification checkbox flag: | P8: FALSE
P9: FALSE
A10: Customer Information | O10: Multifacility checkbox flag: | P10: FALSE
A11: PNM Account Number where measures installed* | O11: SOW Checkbox | P11: FALSE
P12: TRUE
C13: This Application represents multiple accounts / premises | G13: Enter number of Accounts / Premises -------> | N13: =is ->  | O13: IQ Checkbox | P13: FALSE
C14: 2. If yes: Complete Multi-Facility Worksheet -------> CLICK HERE
C15: This project includes lighting measures as part of the scope
C16: Scope of Work is REQUIRED for Lighting measures ----> Click Here
C17: Low Income Qualifier
C18: Check if your property qualifies for a Low Income Bonus----> Click here
A19: Building Type*
A20: =M21 -> Multifamily | M20: Business Type | O20: Tax Status | Q20: State
A21: Name of Property Owner/Ownership Group as listed on W9* | G21: Property Name Exactly as it Appears on Your Utility Bill* | M21: Multifamily | O21: Corporation (Inc, PC, etc.) | Q21: AL
O22: Government Agency | Q22: AK
A23: Name of Property Manager* | G23: Name of Multifamily Property* | O23: Individual | Q23: AZ
O24: Partnership | Q24: AR
A25: Name of Contact Person* | G25: Title* | O25: Exempt | Q25: CA
Q26: CO
A27: Telephone #* | G27: Fax # | Q27: CT
A28: Email Address* | Q28: DE
A29: Address Where Measures Installed* | Q29: FL
A30: City Where Measures Installed* | G30: State* | I30: =IF(E30="","","NM") ->  | J30: Zip* | Q30: GA
A31: Mailing Address* | Q31: HI
A32: City* | G32: State* | J32: Zip* | Q32: ID
A33: Taxpayer ID Number (SSN/FEIN)* | G33: Tax Status* | Q33: IL
A34: Contractor Information | Q34: IN
A35: Contracting Company* | Q35: IA
A36: Contractor Name* | G36: Contractor Phone Number* | Q36: KS
A37: Contractor Email Address* | Q37: KY
A38: Contractor Mailing Address* | Q38: LA
A39: City* | G39: State* | J39: Zip* | Q39: ME
A40: Third Party Payment Release | Q40: MD
Q41: MA
C42: I request that the incentive check be sent to the third party below | H42: Check here if the third party payee is the contractor (Contractor must be a PNM Authorized Contractor to be eligible for third party payment) | Q42: MI
Q43: MN
A44: Name of Third Party* | Q44: MS
A45: Name of Third Party Contact Person* | G45: Title* | Q45: MO
Q46: MT
A47: Third Party Phone #* | G47: Fax # | Q47: NE
A48: Third Party Email Address* | Q48: NV
A49: Third Party Mailing Address* | Q49: NH
A50: Third Party City* | G50: State* | J50: Zip* | Q50: NJ
A51: Third Party Taxpayer ID # (SSN/FEIN)* | G51: Tax Status* | Q51: NM
A52: Incentive Summary | Q52: NY
A53: Total Incentive Requested | F53: Total Project Cost PRE-TAX * REQUIRED * | J53: =IF(AND(P8=TRUE,P9=TRUE),"Project Completion Date",IF(P8=TRUE, "Estimated Project Completion Date", "Project Completion Date")) -> Project Completion Date | Q53: NC
A54: =MIN(IF($P$13=TRUE,H87,F87), F54*0.5,400000) -> 0 | Q54: ND
Q55: OH
A56: AGREEMENT AND AUTHORIZATION | Q56: OK
A57: I understand that in the event funds are reserved based on a pre-notification, the payment of incentives will be based upon the Final Application and program terms and conditions, and that the PNM Business Energy Efficiency program is subject to change or cancellation at any time and without notice. PNM is not responsible for any lost, late, stolen, ineligible, illegible, misdirected or postage-due mail. All completed submissions become the property of PNM and will not be returned. PNM makes no guarantees about the availability of products or rebate forms. By participating in the PNM Business Energy Efficiency program, customers agree to waive any claims and release PNM from any liability for damages of any kind. Rebates are funded by a charge on PNM electric customer bills. | Q57: OR
A58: =" I, " &IF(ISBLANK(A22),"[Property owner]",A22)& " , certify that " &IF(ISBLANK(G24),"[Multifamily property]",G24)& " qualifies as a ''Low-Income/Affordable Housing'' community in the State of New Mexico. " &IF(ISBLANK(G24),"[Multifamily property]",G24)& " participates in at least one of the following programs to qualify for the Low-Income Bonus provided by the PNM Business Energy Efficiency Programs:" -> I, [Property owner] , certify that [Multifamily property] qualifies as a ''Low-Income/Affordable Housing'' community in the State of New Mexico. [Multifamily property] participates in at least one of the following programs to qualify for the Low-Income Bonus provided by the PNM Business Energy Efficiency Programs: | Q58: PA
A59: For a property to be considered multifamily, it must consist of five or more attached dwelling units or a complex consisting of two or more buildings with four or more dwelling units within each building. For a multifamily property to be considered “Income Qualified” in this program, it must be listed on the MFA Housing New Mexico website. The Income Qualified Directory is also available on a tab in this document. | Q59: RI
A60: =" The signature on this application authorizes " &IF(ISBLANK(A24),"[Property manager]",A24)& " to act on behalf of " &IF(ISBLANK(A22),"[Property owner]",A22)& " with the PNM Business Energy Efficiency Program. " &A22& " hereby designates, appoints and empowers " &A24& " to communicate and sign on behalf of " &A22& " in the PNM Business Energy Efficiency Program." -> The signature on this application authorizes [Property manager] to act on behalf of [Property owner] with the PNM Business Energy Efficiency Program. hereby designates, appoints and empowers to communicate and sign on behalf of in the PNM Business Energy Efficiency Program. | Q60: SC
A61: I have read and understand the program requirements, measure specifications, and Terms & Conditions set forth in this application and agree to abide by those requirements. Furthermore, I concur that I must meet all eligibility criteria in order to be paid under this program. | Q61: SD
A62: As an eligible customer, I verify that the signature below is my own and that the information is correct. I am requesting consideration for participation under this program. By signing this agreement I attest that I understand and agree to abide by all Program terms and conditions. | Q62: TN
A63: Customer Signature (PNM Customer) | H63: Third Party Signature | Q63: TX
F64: Please sign by hand or via DocuSign® | Q64: UT
A65: Print Customer Name | H65: Print Third Party Name | Q65: VT
Q66: VA
A67: Date | H67: Date | Q67: WA
Q68: WI
Q69: WV
Q70: WY
B75: For Office Use Only | F75: =IF($P$13=TRUE,"Low Income Bonus","Total Incentive") -> Total Incentive | H75: Total Incentive
B76: Interior Retrofits Incentive | F76: =Lighting!N16 -> 0 | H76: =Lighting!N17 -> 0 | M76: =(H79-F79) -> 0
B77: LED Replacing HID Incentive | F77: =Lighting!J27 -> 0 | H77: =Lighting!L31 ->  | M77: 0
B78: LED Replacing T5, T8, or T12 Incentive | F78: =Lighting!J76 -> 0 | H78: =Lighting!L76 ->  | M78: =(#REF!-#REF!) -> 
B79: Existing LED Controls Incentive | F79: =Lighting!F121 -> 0 | H79: =Lighting!H121 -> 0 | M79: =(H81-F81) -> 0
B80: HVAC Incentive | F80: =SUM(HVAC!I54,HVAC!I82,HVAC!G90,HVAC!H98,HVAC!H109) -> 0 | H80: =HVAC!I112 -> 0 | M80: =(H82-F82) -> 0
B81: Food Service Incentive | F81: =SUM('Food Service'!J11:K11,'Food Service'!J24:K24,'Food Service'!J32:K32,'Food Service'!J43:K43) -> 0 | H81: ='Food Service'!J46 -> 0 | M81: =(H85-F85) -> 0
B82: Appliances Incentive | F82: =SUM(Appliances!F11,Appliances!F22,Appliances!F29,Appliances!F37,Appliances!F45,Appliances!F53) -> 0 | H82: =Appliances!F56 -> 0 | M82: =(#REF!-#REF!) -> 
B83: Heat Pump Water Heaters Incentive | F83: ='Heat Pump Water Heaters'!J19 -> 0 | H83: ='Heat Pump Water Heaters'!J20 -> 0 | M83: =(#REF!-#REF!) -> 
B84: Window Replacement Incentive | F84: =Windows!J17 -> 0 | H84: =Windows!J18 -> 0 | M84: =(#REF!-#REF!) -> 
B85: Pool Pumps Incentive | F85: ='Pool Pumps'!J9 -> 0 | H85: ='Pool Pumps'!J10 -> 0
B86: Custom Incentive | F86: =Custom!I51 -> 0 | H86: =Custom!I52 -> 0 | M86: =(H87-F87) -> 0
B87: Total------> | F87: =SUM(F76:G86) -> 0 | H87: =SUM(H76:I86) -> 0

Sheet Checklist
A1: APPLICATION CHECKLIST
A2: 1) Verify
B3: Submit application within 6 months of project completion, and include the following components:
A4: 2) Application Information Form
A5: CUSTOMER INFORMATION
B6: Customer name is the same as it appears on PNM bills.
B7: PNM account number is complete and accurate (NOTE: New Construction account information may not be available for Pre-Notification, but is required for the Final Application.)
B8: Taxpayer ID is complete and accurate.
B9: First-time customers/payees MUST submit IRS From W-9 with application.
A10: CONTRACTOR INFORMATION
B11: Provide complete contact information for project contractor. (We may need to contact your contractor to verify any project details.)
B12: If the job is completed by in-house staff, list Contractor as "done-in-house."
A13: INCENTIVE CHECK INFORMATION
B14: Complete contact information and taxpayer ID.
B15: Indicate whether the customer or a third party should receive the check. If a third party is to receive the check:
C16: Customer must check box indicating third party payment.
C17: Both the customer and third party must sign the Agreement Form.
A18: 3) Total Incentives Required
B19: Fill out the following sections:
C20: Total Project Cost (pre-tax)
C21: Project Completion Date
A22: 4) Terms & Conditions of Applications
B23: Customer must read and agree with the Terms & Conditions of the PNM Business Energy Efficiency Program.
B24: If a third party is applying on behalf of the customer, customer must sign the Agreement Form, allowing the third party to sign the application on the customer's behalf.
A25: 5) Incentive Worksheets
B26: Complete the incentive worksheet for each application measure (e.g., lighting, HVAC, refrigeration). Calculations are included where required (e.g., occupancy sensors).
B27: Ensure the measures installed meet the Specifications for those measures, per the Specifications section at the bottom of those measure tabs.
B28: Lighting Retrofit Scope of Work From is REQUIRED for all lighting projects (see the 'Lighting SOW' tab) to ensure faster inspection and verification of installed items.
A29: 6) Additional Documentation
A30: COST ESTIMATE / INVOICES
B31: For Pre-Notification, submit cost estimate or purchase order with your appllication.
B32: For Final application, submit invoices dated no more than 6 months prior to rebate application date.
B33: List the installation address, on invoices, cost estimate, or purchase order (must be in PNM service territory).
B34: Ensure invoice, cost estimate, or purchase order shows correct model numbers for each measure installed.
B35: Ensure invoices indicate payment by the customer (e.g., shows zero balance due, stamped paid, or check number, and paid date are included).
B36: Submit copies of cancelled checks. Total of cancelled checks must match total of invoices (Total Project Cost).
A37: SPECIFICATION SHEETS
B38: Provide a manufacturer's specification sheet for each measure installed (e.g., lamp, ballast, controls, refrigerator, freezer, ice machine, etc.)
B39: Ensure specification sheets include all program eligibility requirements for the measure (e.g., CRI of lamps, ballast factors, IPLV for AC units, etc.). Note: AHRI (Air-conditioning, Heating, and Refrigeration Institute) offers a helpful website for cooling specifications at www.ahridirectory.org.
A40: 7) Submit Application
B41: Submit completed application to PNM Business Energy Efficiency Program via email (preferred), fax, or postal mail. All contact information is on the HOME tab of this document.
B42: If submitting via email, pring a hard copy of the AGREEMENT section of the Applicant Info tab, sign, scan, and email. If using DocuSign® please attach both the completed Excel application and the signed Docusign® PDF. Preferred file type for the completed application is in Excel, while supporting documents are preferred as PDFs.
B43: Print a full, final hard copy of all pages of your application for your records.

Sheet Terms & Conditions
D1: TERMS & CONDITIONS

Sheet Multi-Facility
B1: LIGHTING MULTIPLE FACILITY WORKSHEET
A2: Use this worksheet ONLY if installing the SAME measure in facilities with different service addresses and unique account numbers.
A3: If a project encompasses multiple buildings at the same premise, this worksheet is not required.
A4: For official use only | B4: Pre-Notification Date: | C4: =IF(ISBLANK('Applicant Info'!$K$6)," ",'Applicant Info'!$K$6) ->  | D4: Final Application Date: | E4: =IF(ISBLANK('Applicant Info'!$K$8)," ",'Applicant Info'!$K$8) -> 
A5: Application # | B5: =IF('Applicant Info'!J3="","",'Applicant Info'!J3) ->  | C5: Business Name: | D5: =IF(ISBLANK('Applicant Info'!$A$22)," ",'Applicant Info'!$A$22) -> 
A6: Prepared by: | B6: =IF(ISBLANK('Applicant Info'!$A$26)," ",'Applicant Info'!$A$26) ->  | D6: Contact #: | E6: ='Applicant Info'!$D$27 -> 0
A8: Project Locations
A9: Service Address | B9: Account # | C9: Replacement Equipment Type 1 | D9: Replacement Equipment Type 2 | E9: Replacement Equipment Qty | F9: Existing Equipment Description | G9: Existing Equipment Qty
A35: Total | E35: =SUM(E10:E34) -> 0 | G35: =SUM(G10:G34) -> 0
A200: Measure Type 1
A201: Interior_Lighting
A202: Exterior_Lighting
A203: _24_7_Lighting
A204: Plug_Load_Controls
A205: Custom
A206: HVAC
A207: Envelope
A208: Refrigeration
A209: Food_Service_Equipment
A210: Motors
A211: VSDs
A213: Measure Type 1 | B213: Measure Type 2 | C213: Unit | D213: Incentive | F213: Measure Type 1
A214: 24/7 Lighting | B214: T8, T5 or LED Replacing HID Lamp Only | C214: Watts Reduced | D214: 0.25 | F214: Interior Lighting
A215: 24/7 Lighting | B215: T8, T5 or LED Replacing HID, Entire Fixture | C215: Watts Reduced | D215: 0.5 | F215: Exterior Lighting
A216: 24/7 Lighting | B216: T8, T5 or LED Replacing HID, Retrofit Kit | C216: Watts Reduced | D216: 0.3 | F216: 24/7 Lighting
A217: 24/7 Lighting | B217: LED Replacing T5, T8 or T12, Lamp Only | C217: Watts Reduced | D217: 0.25 | F217: HVAC
A218: 24/7 Lighting | B218: LED Replacing T5, T8 or T12, Entire Fixture | C218: Watts Reduced | D218: 0.5 | F218: Envelope
A219: 24/7 Lighting | B219: LED Replacing T5, T8 or T12, Retrofit Kit | C219: Watts Reduced | D219: 0.3 | F219: Refrigeration
A220: 24/7 Lighting | B220: Controls for Existing LED Fixtures | C220: Watts Controlled | D220: 0.5 | F220: Food Service Equipment
A221: Exterior Lighting | B221: T8, T5 or LED Replacing HID, Lamp Only | C221: Watts Reduced | D221: 0.2 | F221: Plug Load Controls
A222: Exterior Lighting | B222: T8, T5 or LED Replacing HID, Entire Fixture | C222: Watts Reduced | D222: 0.4 | F222: Motors
A223: Exterior Lighting | B223: T8, T5 or LED Replacing HID, Retrofit Kit | C223: Watts Reduced | D223: 0.25 | F223: VSDs
A224: Exterior Lighting | B224: LED Replacing T5, T8 or T12, Lamp Only | C224: Watts Reduced | D224: 0.2
A225: Exterior Lighting | B225: LED Replacing T5, T8 or T12, Entire Fixture | C225: Watts Reduced | D225: 0.4
A226: Exterior Lighting | B226: LED Replacing T5, T8 or T12, Retrofit Kit | C226: Watts Reduced | D226: 0.25
A227: Exterior Lighting | B227: Controls for Existing LED Fixtures | C227: Watts Controlled | D227: 0.4
A228: Interior Lighting | B228: 20W or less LED Lamp replacing Incandescent Lamp ≤ 100W | C228: Lamp | D228: 8
A229: Interior Lighting | B229: 20W or less LED Lamp replacing CFL Lamp ≤ 42W | C229: Lamp | D229: 4
A230: Interior Lighting | B230: Controls Occupancy Sensors | C230: Watts Controlled | D230: 0.12
A231: Interior Lighting | B231: Controls Daylighting Sensor Controls | C231: Watts Controlled | D231: 0.09
A232: Interior Lighting | B232: T8, T5 or LED Replacing HID, Lamp Only | C232: Watts Reduced | D232: 0.15
A233: Interior Lighting | B233: T8, T5 or LED Replacing HID, Entire Fixture | C233: Watts Reduced | D233: 0.3
A234: Interior Lighting | B234: T8, T5 or LED Replacing HID, Retrofit Kit | C234: Watts Reduced | D234: 0.2
A235: Interior Lighting | B235: LED Replacing T5, T8 or T12, Lamp Only | C235: Watts Reduced | D235: 0.15
A236: Interior Lighting | B236: LED Replacing T5, T8 or T12, Entire Fixture | C236: Watts Reduced | D236: 0.3
A237: Interior Lighting | B237: LED Replacing T5, T8 or T12, Retrofit Kit | C237: Watts Reduced | D237: 0.2
C239: Unit | D239: Incentive
A240: Envelope | B240: Window Film | C240: Sq. Ft. of Glazing | D240: 1.2
C242: Unit | D242: Incentive
A243: Refrigeration | B243: Strip Curtains on Walk-ins and Freezers | C243: Sq. Ft. | D243: 3
A244: Refrigeration | B244: Night Covers for Displays | C244: Lin. Ft. of Case | D244: 10
A245: Refrigeration | B245: EC Motor for Reach-in Refrigerator or Freezer Cases | C245: Motor | D245: 25
A246: Refrigeration | B246: Evaporator Fan Controller - Shade Pole Motor | C246: Motor | D246: 40
A247: Refrigeration | B247: Anti Sweat Heater Controls | C247: Lin. Ft. of Case | D247: 25
A248: Refrigeration | B248: LED Refrigeration Case Lighting | C248: Door | D248: 40
A249: Refrigeration | B249: ENERGY STAR® Solid Door Freezer | C249: Unit | D249: 100
A250: Refrigeration | B250: ENERGY STAR® Glass Door Freezer | C250: Unit | D250: 350
C252: Unit | D252: Incentive
A253: Food Service Equipment | B253: ENERGY STAR® Steam Cookers | C253: Unit | D253: 400
A254: Food Service Equipment | B254: Combination Oven | C254: Unit | D254: 800
A255: Food Service Equipment | B255: ENERGY STAR® Hot Holding Cabinet - 1/2 size | C255: Unit | D255: 200
A256: Food Service Equipment | B256: ENERGY STAR® Hot Holding Cabinet - 3/4 size | C256: Unit | D256: 300
A257: Food Service Equipment | B257: ENERGY STAR® Hot Holding Cabinet - Full size | C257: Unit | D257: 400
A258: Food Service Equipment | B258: ENERGY STAR® Beverage Vending Machine | C258: Unit | D258: 80
A259: Food Service Equipment | B259: ENERGY STAR® Commercial Vat Fryer | C259: Unit | D259: 225
A260: Food Service Equipment | B260: ENERGY STAR® Griddle | C260: Unit | D260: 125
C262: Unit | D262: Incentive
A263: High Efficiency Ice Makers | B263: 101-200 lbs/24 hours | C263: Unit | D263: 100
A264: High Efficiency Ice Makers | B264: 201-300 lbs/24 hours | C264: Unit | D264: 150
A265: High Efficiency Ice Makers | B265: 301-400 lbs/24 hours | C265: Unit | D265: 200
A266: High Efficiency Ice Makers | B266: 401-500 lbs/24 hours | C266: Unit | D266: 250
A267: High Efficiency Ice Makers | B267: 501-1000 lbs/24 hours | C267: Unit | D267: 300
A268: High Efficiency Ice Makers | B268: 1001-1500 lbs/24 hours | C268: Unit | D268: 350
A269: High Efficiency Ice Makers | B269: >1500 lbs/24 hours | C269: Unit | D269: 400
C271: Unit | D271: Incentive
A272: Plug Load Controls | B272: Beverage Vending Machine Control | C272: Unit | D272: Contact for offer
A273: Plug Load Controls | B273: Refrigerated Cooler Control | C273: Unit | D273: Contact for offer
A274: Plug Load Controls | B274: Snack Machine Control | C274: Unit | D274: Contact for offer
A275: Plug Load Controls | B275: Plug Load Occupancy Sensors | C275: Unit | D275: 25
C277: Unit | D277: Incentive
A278: Motors | B278: 1200 RPM - 1 HP - Open | C278: motor | D278: 1
A279: Motors | B279: 1200 RPM - 1 HP - Open | C279: motor | D279: 1.5
A280: Motors | B280: 1200 RPM - 1 HP - Open | C280: motor | D280: 2
A281: Motors | B281: 1200 RPM - 1 HP - Open | C281: motor | D281: 3
A282: Motors | B282: 1200 RPM - 1 HP - Open | C282: motor | D282: 4
A283: Motors | B283: 1200 RPM - 1 HP - Open | C283: motor | D283: 9
A284: Motors | B284: 1200 RPM - 1 HP - Open | C284: motor | D284: 10
A285: Motors | B285: 1200 RPM - 1 HP - Open | C285: motor | D285: 11
A286: Motors | B286: 1200 RPM - 1 HP - Open | C286: motor | D286: 12
A287: Motors | B287: 1200 RPM - 1 HP - Open | C287: motor | D287: 15
A288: Motors | B288: 1200 RPM - 1 HP - Open | C288: motor | D288: 17
A289: Motors | B289: 1200 RPM - 1 HP - Open | C289: motor | D289: 20
A290: Motors | B290: 1200 RPM - 1 HP - Open | C290: motor | D290: 24
A291: Motors | B291: 1200 RPM - 1 HP - Open | C291: motor | D291: 25
A292: Motors | B292: 1200 RPM - 1 HP - Open | C292: motor | D292: 30
A293: Motors | B293: 1200 RPM - 1 HP - Open | C293: motor | D293: 40
A294: Motors | B294: 1200 RPM - 1 HP - Open | C294: motor | D294: 50
A295: Motors | B295: 1200 RPM - 1 HP - Open | C295: motor | D295: 60
A296: Motors | B296: 1200 RPM - 1 HP - Open | C296: motor | D296: 75
A297: Motors | B297: 1200 RPM - 1 HP - Open | C297: motor | D297: 1
A298: Motors | B298: 1200 RPM - 1 HP - Open | C298: motor | D298: 1.5
A299: Motors | B299: 1200 RPM - 1 HP - Open | C299: motor | D299: 2
A300: Motors | B300: 1200 RPM - 1 HP - Open | C300: motor | D300: 3
A301: Motors | B301: 1200 RPM - 1 HP - Open | C301: motor | D301: 4
A302: Motors | B302: 1200 RPM - 1 HP - Open | C302: motor | D302: 9
A303: Motors | B303: 1200 RPM - 1 HP - Open | C303: motor | D303: 10
A304: Motors | B304: 1200 RPM - 1 HP - Open | C304: motor | D304: 11
A305: Motors | B305: 1200 RPM - 1 HP - Open | C305: motor | D305: 12
A306: Motors | B306: 1200 RPM - 1 HP - Open | C306: motor | D306: 15
A307: Motors | B307: 1200 RPM - 1 HP - Open | C307: motor | D307: 17
A308: Motors | B308: 1200 RPM - 1 HP - Open | C308: motor | D308: 20
A309: Motors | B309: 1200 RPM - 1 HP - Open | C309: motor | D309: 24
A310: Motors | B310: 1200 RPM - 1 HP - Open | C310: motor | D310: 25
A311: Motors | B311: 1200 RPM - 1 HP - Open | C311: motor | D311: 30
A312: Motors | B312: 1200 RPM - 1 HP - Open | C312: motor | D312: 40
A313: Motors | B313: 1200 RPM - 1 HP - Open | C313: motor | D313: 50
A314: Motors | B314: 1200 RPM - 1 HP - Open | C314: motor | D314: 60
A315: Motors | B315: 1200 RPM - 1 HP - Open | C315: motor | D315: 75
A316: Motors | B316: 1200 RPM - 1 HP - Open | C316: motor | D316: 1
A317: Motors | B317: 1200 RPM - 1 HP - Open | C317: motor | D317: 1.5
A318: Motors | B318: 1200 RPM - 1 HP - Open | C318: motor | D318: 2
A319: Motors | B319: 1200 RPM - 1 HP - Open | C319: motor | D319: 3
A320: Motors | B320: 1200 RPM - 1 HP - Open | C320: motor | D320: 4
A321: Motors | B321: 1200 RPM - 1 HP - Open | C321: motor | D321: 9
A322: Motors | B322: 1200 RPM - 1 HP - Open | C322: motor | D322: 10
A323: Motors | B323: 1200 RPM - 1 HP - Open | C323: motor | D323: 11
A324: Motors | B324: 1200 RPM - 1 HP - Open | C324: motor | D324: 12
A325: Motors | B325: 1200 RPM - 1 HP - Open | C325: motor | D325: 15
A326: Motors | B326: 1200 RPM - 1 HP - Open | C326: motor | D326: 17
A327: Motors | B327: 1200 RPM - 1 HP - Open | C327: motor | D327: 20
A328: Motors | B328: 1200 RPM - 1 HP - Open | C328: motor | D328: 24
A329: Motors | B329: 1200 RPM - 1 HP - Open | C329: motor | D329: 25
A330: Motors | B330: 1200 RPM - 1 HP - Open | C330: motor | D330: 30
A331: Motors | B331: 1200 RPM - 1 HP - Open | C331: motor | D331: 40
A332: Motors | B332: 1200 RPM - 1 HP - Open | C332: motor | D332: 50
A333: Motors | B333: 1200 RPM - 1 HP - Open | C333: motor | D333: 60
A334: Motors | B334: 1200 RPM - 1 HP - Open | C334: motor | D334: 75
A335: Motors | B335: 1200 RPM - 1 HP - Open | C335: motor | D335: 1
A336: Motors | B336: 1200 RPM - 1 HP - Open | C336: motor | D336: 1.5
A337: Motors | B337: 1200 RPM - 1 HP - Open | C337: motor | D337: 2
A338: Motors | B338: 1200 RPM - 1 HP - Open | C338: motor | D338: 3
A339: Motors | B339: 1200 RPM - 1 HP - Open | C339: motor | D339: 4
A340: Motors | B340: 1200 RPM - 1 HP - Open | C340: motor | D340: 9
A341: Motors | B341: 1200 RPM - 1 HP - Open | C341: motor | D341: 10
A342: Motors | B342: 1200 RPM - 1 HP - Open | C342: motor | D342: 11
A343: Motors | B343: 1200 RPM - 1 HP - Open | C343: motor | D343: 12
A344: Motors | B344: 1200 RPM - 1 HP - Open | C344: motor | D344: 15
A345: Motors | B345: 1200 RPM - 1 HP - Open | C345: motor | D345: 17
A346: Motors | B346: 1200 RPM - 1 HP - Open | C346: motor | D346: 20
A347: Motors | B347: 1200 RPM - 1 HP - Open | C347: motor | D347: 24
A348: Motors | B348: 1200 RPM - 1 HP - Open | C348: motor | D348: 25
A349: Motors | B349: 1200 RPM - 1 HP - Open | C349: motor | D349: 30
A350: Motors | B350: 1200 RPM - 1 HP - Open | C350: motor | D350: 40
A351: Motors | B351: 1200 RPM - 1 HP - Open | C351: motor | D351: 50
A352: Motors | B352: 1200 RPM - 1 HP - Open | C352: motor | D352: 60
A353: Motors | B353: 1200 RPM - 1 HP - Open | C353: motor | D353: 75
A354: Motors | B354: 1200 RPM - 1 HP - Open | C354: motor | D354: 1
A355: Motors | B355: 1200 RPM - 1 HP - Open | C355: motor | D355: 1.5
A356: Motors | B356: 1200 RPM - 1 HP - Open | C356: motor | D356: 2
A357: Motors | B357: 1200 RPM - 1 HP - Open | C357: motor | D357: 3
A358: Motors | B358: 1200 RPM - 1 HP - Open | C358: motor | D358: 4
A359: Motors | B359: 1200 RPM - 1 HP - Open | C359: motor | D359: 9
A360: Motors | B360: 1200 RPM - 1 HP - Open | C360: motor | D360: 10
A361: Motors | B361: 1200 RPM - 1 HP - Open | C361: motor | D361: 11
A362: Motors | B362: 1200 RPM - 1 HP - Open | C362: motor | D362: 12
A363: Motors | B363: 1200 RPM - 1 HP - Open | C363: motor | D363: 15
A364: Motors | B364: 1200 RPM - 1 HP - Open | C364: motor | D364: 17
A365: Motors | B365: 1200 RPM - 1 HP - Open | C365: motor | D365: 20
A366: Motors | B366: 1200 RPM - 1 HP - Open | C366: motor | D366: 24
A367: Motors | B367: 1200 RPM - 1 HP - Open | C367: motor | D367: 25
A368: Motors | B368: 1200 RPM - 1 HP - Open | C368: motor | D368: 30
A369: Motors | B369: 1200 RPM - 1 HP - Open | C369: motor | D369: 40
A370: Motors | B370: 1200 RPM - 1 HP - Open | C370: motor | D370: 50
A371: Motors | B371: 1200 RPM - 1 HP - Open | C371: motor | D371: 60
A372: Motors | B372: 1200 RPM - 1 HP - Open | C372: motor | D372: 75
A373: Motors | B373: 1200 RPM - 1 HP - Open | C373: motor | D373: 1
A374: Motors | B374: 1200 RPM - 1 HP - Open | C374: motor | D374: 1.5
A375: Motors | B375: 1200 RPM - 1 HP - Open | C375: motor | D375: 2
A376: Motors | B376: 1200 RPM - 1 HP - Open | C376: motor | D376: 3
A377: Motors | B377: 1200 RPM - 1 HP - Open | C377: motor | D377: 4
A378: Motors | B378: 1200 RPM - 1 HP - Open | C378: motor | D378: 9
A379: Motors | B379: 1200 RPM - 1 HP - Open | C379: motor | D379: 10
A380: Motors | B380: 1200 RPM - 1 HP - Open | C380: motor | D380: 11
A381: Motors | B381: 1200 RPM - 1 HP - Open | C381: motor | D381: 12
A382: Motors | B382: 1200 RPM - 1 HP - Open | C382: motor | D382: 15
A383: Motors | B383: 1200 RPM - 1 HP - Open | C383: motor | D383: 17
A384: Motors | B384: 1200 RPM - 1 HP - Open | C384: motor | D384: 20
A385: Motors | B385: 1200 RPM - 1 HP - Open | C385: motor | D385: 24
A386: Motors | B386: 1200 RPM - 1 HP - Open | C386: motor | D386: 25
A387: Motors | B387: 1200 RPM - 1 HP - Open | C387: motor | D387: 30
A388: Motors | B388: 1200 RPM - 1 HP - Open | C388: motor | D388: 40
A389: Motors | B389: 1200 RPM - 1 HP - Open | C389: motor | D389: 50
A390: Motors | B390: 1200 RPM - 1 HP - Open | C390: motor | D390: 60
A391: Motors | B391: 1200 RPM - 1 HP - Open | C391: motor | D391: 75
C394: Unit | D394: Incentive
A395: VSDs | B395: VSD Size (HP) | C395: Hp | D395: 50
C397: Unit | D397: Incentive
A398: HVAC | B398: HVAC Units, contact for offer | C398: Unit | D398: Contact for offer
C400: Unit | D400: Incentive
A401: Custom | B401: Per kWh | C401: kWh | D401: 0.075

Sheet Income Qualifier Directory
A1: **Some properties that are considered "Income Qualified/Low Income" may not be listed here. Please contact MF Program Administrator to verify eligibility** | D1: =IF(C1="","<--- Type Address",H3) -> <--- Type Address | E1: =IF(C1="","",IF(H3="","Not Listed","Income Qualified/Low Income")) -> 
A2: # | B2: Apartment Community Name (as shown in NM MFA website) | C2: Address | D2: City/Town | E2: Zip Code | F2: Phone # | G2: =IFERROR(VLOOKUP(A3,H2:H279,3,FALSE),"") -> 
A3: 1 | B3: Abo Apartments | C3: 700 N. 10th St. | D3: Artesia | E3: 88210 | F3: 575.746.2496 | G3: 1 | H3: =IFERROR(VLOOKUP(G3,$I$3:$K$279,3,TRUE),"") -> 700 N. 10th St. | I3: =IFERROR(RANK(J3,$J$3:$J$279,1),"") -> 1 | J3: =IFERROR(SEARCH($C$1,K3)+ROW()/100000,"") -> 1.00003 | K3: 700 N. 10th St. | N3: 1 | O3: =IFERROR(VLOOKUP(N3,P3:R279,3,FALSE),"") ->  | P3: =IFERROR(RANK(Q3,$Q$3:$Q$279,1),"") ->  | Q3: =IFERROR(SEARCH(#REF!,R3)+ROW()/100000,"") ->  | R3: 575.746.2496
A4: 2 | B4: Abode Group Home | C4: 999 W. Amador | D4: Las Cruces | E4: 88005 | F4: 575.523.2219 | G4: 2 | H4: =IFERROR(VLOOKUP(G4,$I$3:$K$279,3,TRUE),"") -> 999 W. Amador | I4: 2 | J4: 1.00004 | K4: 999 W. Amador | N4: 2 | O4: =IFERROR(VLOOKUP(N4,P4:R279,3,FALSE),"") ->  | Q4: =IFERROR(SEARCH(#REF!,R4)+ROW()/100000,"") ->  | R4: 575.523.2219
A5: 3 | B5: Alta Tierra | C5: 1500 E. Madrid | D5: Las Cruces | E5: 88001 | F5: 575.523.5472 | G5: 3 | H5: 1500 E. Madrid | I5: 3 | J5: 1.00005 | K5: 1500 E. Madrid | N5: 3 | O5: =IFERROR(VLOOKUP(N5,P5:R279,3,FALSE),"") ->  | Q5: =IFERROR(SEARCH(#REF!,R5)+ROW()/100000,"") ->  | R5: 575.523.5472
A6: 4 | B6: Anasazi Village | C6: 6921 Airport Road | D6: Santa Fe | E6: 87507 | F6: 505.474.7200 | G6: 4 | H6: 6921 Airport Road | I6: 4 | J6: 1.00006 | K6: 6921 Airport Road | N6: 4 | O6: =IFERROR(VLOOKUP(N6,P6:R279,3,FALSE),"") ->  | Q6: =IFERROR(SEARCH(#REF!,R6)+ROW()/100000,"") ->  | R6: 505.474.7200
A7: 5 | B7: Andalusia | C7: 208 N Connelly St. | D7: Clovis | E7: 88101 | F7: 575.763.9504 | G7: 5 | H7: 208 N Connelly St. | I7: 5 | J7: 1.00007 | K7: 208 N Connelly St. | N7: 5 | Q7: =IFERROR(SEARCH(#REF!,R7)+ROW()/100000,"") ->  | R7: 575.763.9504
A8: 6 | B8: Apple Ridge | C8: 1600 Cliffside Drive | D8: Farmington | E8: 87401 | F8: 505.327.0151 | G8: 6 | H8: 1600 Cliffside Drive | I8: 6 | J8: 1.00008 | K8: 1600 Cliffside Drive | N8: 6 | Q8: =IFERROR(SEARCH(#REF!,R8)+ROW()/100000,"") ->  | R8: 505.327.0151
A9: 7 | B9: Arioso | C9: 7303 Montgomery Blvd. NE | D9: Albuquerque | E9: 87109 | F9: 505.884.7622 | G9: 7 | H9: 7303 Montgomery Blvd. NE | I9: 7 | J9: 1.00009 | K9: 7303 Montgomery Blvd. NE | N9: 7 | Q9: =IFERROR(SEARCH(#REF!,R9)+ROW()/100000,"") ->  | R9: 505.884.7622
A10: 8 | B10: Arrowhead Ridge | C10: 4515 Arrowhead Ridge Drive SE | D10: Rio Rancho | E10: 87124 | F10: 505.892.2988 | G10: 8 | H10: 4515 Arrowhead Ridge Drive SE | I10: 8 | J10: 1.0001 | K10: 4515 Arrowhead Ridge Drive SE | N10: 8 | Q10: =IFERROR(SEARCH(#REF!,R10)+ROW()/100000,"") ->  | R10: 505.892.2988
A11: 9 | B11: Arroyo Villas | C11: 4701 Irving Blvd. NW | D11: Albuquerque | E11: 87114 | F11: 505.898.6719 | G11: 9 | H11: 4701 Irving Blvd. NW | I11: 9 | J11: 1.00011 | K11: 4701 Irving Blvd. NW | N11: 9 | Q11: =IFERROR(SEARCH(#REF!,R11)+ROW()/100000,"") ->  | R11: 505.898.6719
A12: 10 | B12: Arroyo Vista | C12: 4201 Bryn Mawr Dr. NE | D12: Albuquerque | E12: 87107 | F12: 505.243.6202 | G12: 10 | H12: 4201 Bryn Mawr Dr. NE | I12: 10 | J12: 1.00012 | K12: 4201 Bryn Mawr Dr. NE | N12: 10 | Q12: =IFERROR(SEARCH(#REF!,R12)+ROW()/100000,"") ->  | R12: 505.243.6202
A13: 11 | B13: Artesia Properties | C13: 1601 W. Centre St. | D13: Artesia | E13: 88210 | F13: 575.746.3236 | G13: 11 | H13: 1601 W. Centre St. | I13: 11 | J13: 1.00013 | K13: 1601 W. Centre St. | N13: 11 | Q13: =IFERROR(SEARCH(#REF!,R13)+ROW()/100000,"") ->  | R13: 575.746.3236
A14: 12 | B14: Aspen Ridge | C14: 820 Louisiana Blvd. SE | D14: Albuquerque | E14: 87108 | F14: 505.268.3344 | G14: 12 | H14: 820 Louisiana Blvd. SE | I14: 12 | J14: 1.00014 | K14: 820 Louisiana Blvd. SE | N14: 12 | Q14: =IFERROR(SEARCH(#REF!,R14)+ROW()/100000,"") ->  | R14: 505.268.3344
A15: 13 | B15: Avalon Cove | C15: 1200 E. Broadway | D15: Hobbs | E15: 88240 | F15: 575.393.1475 | G15: 13 | H15: 1200 E. Broadway | I15: 13 | J15: 1.00015 | K15: 1200 E. Broadway | N15: 13 | Q15: =IFERROR(SEARCH(#REF!,R15)+ROW()/100000,"") ->  | R15: 575.393.1475
A16: 14 | B16: Azotea Senior | C16: 2400 E. First St. | D16: Alamogordo | E16: 88310 | F16: 575.437.5465 | G16: 14 | H16: 2400 E. First St. | I16: 14 | J16: 1.00016 | K16: 2400 E. First St. | N16: 14 | Q16: =IFERROR(SEARCH(#REF!,R16)+ROW()/100000,"") ->  | R16: 575.437.5465
A17: 15 | B17: Aztec Village | C17: 4321 Montgomery Blvd. NE | D17: Albuquerque | E17: 87109 | F17: 505.883.0859 | G17: 15 | H17: 4321 Montgomery Blvd. NE | I17: 15 | J17: 1.00017 | K17: 4321 Montgomery Blvd. NE | N17: 15 | Q17: =IFERROR(SEARCH(#REF!,R17)+ROW()/100000,"") ->  | R17: 505.883.0859
A18: 16 | B18: Belen Crossing | C18: 1200 Court St. | D18: Belen | E18: 87002 | F18: 505.864.4640 | G18: 16 | H18: 1200 Court St. | I18: 16 | J18: 1.00018 | K18: 1200 Court St. | N18: 16 | Q18: =IFERROR(SEARCH(#REF!,R18)+ROW()/100000,"") ->  | R18: 505.864.4640
A19: 17 | B19: Belen Vista | C19: 531 Christopher Road | D19: Belen | E19: 87002 | F19: 505.864.7999 | G19: 17 | H19: 531 Christopher Road | I19: 17 | J19: 1.00019 | K19: 531 Christopher Road | N19: 17 | O19: =IFERROR(VLOOKUP(N19,P19:R294,3,FALSE),"") ->  | Q19: =IFERROR(SEARCH(#REF!,R19)+ROW()/100000,"") ->  | R19: 505.864.7999
A20: 18 | B20: Bella Vista | C20: 110 Otoño Road | D20: Taos | E20: 87571 | F20: 575.751.1017 | G20: 18 | H20: 110 Otoño Road | I20: 18 | J20: 1.0002 | K20: 110 Otoño Road | N20: 18 | Q20: =IFERROR(SEARCH(#REF!,R20)+ROW()/100000,"") ->  | R20: 575.751.1017
A21: 19 | B21: Bella Vista Townhomes | C21: 3400 Gidding | D21: Clovis | E21: 88101 | F21: 575.763.4297 | G21: 19 | H21: 3400 Gidding | I21: 19 | J21: 1.00021 | K21: 3400 Gidding | N21: 19 | Q21: =IFERROR(SEARCH(#REF!,R21)+ROW()/100000,"") ->  | R21: 575.763.4297
A22: 20 | B22: Brentwood Gardens | C22: 6302 Harper Place NE | D22: Albuquerque | E22: 87109 | F22: 505.821.0818 | G22: 20 | H22: 6302 Harper Place NE | I22: 20 | J22: 1.00022 | K22: 6302 Harper Place NE | N22: 20 | Q22: =IFERROR(SEARCH(#REF!,R22)+ROW()/100000,"") ->  | R22: 505.821.0818
A23: 21 | B23: Broadway | C23: 414 Broadway Blvd. SE | D23: Albuquerque | E23: 87102 | F23: 505.266.5414 | G23: 21 | H23: 414 Broadway Blvd. SE | I23: 21 | J23: 1.00023 | K23: 414 Broadway Blvd. SE | N23: 21 | Q23: =IFERROR(SEARCH(#REF!,R23)+ROW()/100000,"") ->  | R23: 505.266.5414
A24: 22 | B24: Buena Vista | C24: 1355 Meadowlark Lane SE | D24: Rio Rancho | E24: 87124 | F24: 505.896.8959 | G24: 22 | H24: 1355 Meadowlark Lane SE | I24: 22 | J24: 1.00024 | K24: 1355 Meadowlark Lane SE | N24: 22 | Q24: =IFERROR(SEARCH(#REF!,R24)+ROW()/100000,"") ->  | R24: 505.896.8959
A25: 23 | B25: Buena Vista Senior Living | C25: 1501 Good Samaritan Drive | D25: Lovington | E25: 88260 | F25: 575.396.4912 | G25: 23 | H25: 1501 Good Samaritan Drive | I25: 23 | J25: 1.00025 | K25: 1501 Good Samaritan Drive | N25: 23 | Q25: =IFERROR(SEARCH(#REF!,R25)+ROW()/100000,"") ->  | R25: 575.396.4912
A26: 24 | B26: Burley Court | C26: 1401 Burley Court | D26: Las Cruces | E26: 88005 | F26: 575.528.2017 | G26: 24 | H26: 1401 Burley Court | I26: 24 | J26: 1.00026 | K26: 1401 Burley Court | N26: 24 | Q26: =IFERROR(SEARCH(#REF!,R26)+ROW()/100000,"") ->  | R26: 575.528.2017
A27: 25 | B27: Campo Alegria | C27: 104 Camino del Campo #58 | D27: Santa Fe | E27: 87501 | F27: 505.983.6324 | G27: 25 | H27: 104 Camino del Campo #58 | I27: 25 | J27: 1.00027 | K27: 104 Camino del Campo #58 | N27: 25 | Q27: =IFERROR(SEARCH(#REF!,R27)+ROW()/100000,"") ->  | R27: 505.983.6324
A28: 26 | B28: Candelaria Gardens | C28: 820 Candelaria NW | D28: Albuquerque | E28: 87105 | F28: 505.833.6000 | G28: 26 | H28: 820 Candelaria NW | I28: 26 | J28: 1.00028 | K28: 820 Candelaria NW | N28: 26 | Q28: =IFERROR(SEARCH(#REF!,R28)+ROW()/100000,"") ->  | R28: 505.833.6000
A29: 27 | B29: Candlelight Square | C29: 7501 Montgomery Blvd. NE | D29: Albuquerque | E29: 87109 | F29: 505.884.2295 | G29: 27 | H29: 7501 Montgomery Blvd. NE | I29: 27 | J29: 1.00029 | K29: 7501 Montgomery Blvd. NE | N29: 27 | Q29: =IFERROR(SEARCH(#REF!,R29)+ROW()/100000,"") ->  | R29: 505.884.2295
A30: 28 | B30: Cañon de Arrowhead | C30: 1700 Market St. NW | D30: Albuquerque | E30: 87120 | F30: 505.833.9334 | G30: 28 | H30: 1700 Market St. NW | I30: 28 | J30: 1.0003 | K30: 1700 Market St. NW | N30: 28 | Q30: =IFERROR(SEARCH(#REF!,R30)+ROW()/100000,"") ->  | R30: 505.833.9334
A31: 29 | B31: Canyon Point | C31: 301 Western Skies Drive SE | D31: Albuquerque | E31: 87123 | F31: 505.294.3108 | G31: 29 | H31: 301 Western Skies Drive SE | I31: 29 | J31: 1.00031 | K31: 301 Western Skies Drive SE | N31: 29 | Q31: =IFERROR(SEARCH(#REF!,R31)+ROW()/100000,"") ->  | R31: 505.294.3108
A32: 30 | B32: Canyon Ridge | C32: 200 Figueroa St. NE | D32: Albuquerque | E32: 87123 | F32: 505.299.8066 | G32: 30 | H32: 200 Figueroa St. NE | I32: 30 | J32: 1.00032 | K32: 200 Figueroa St. NE | N32: 30 | Q32: =IFERROR(SEARCH(#REF!,R32)+ROW()/100000,"") ->  | R32: 505.299.8066
A33: 31 | B33: Canyon Walk | C33: 120 DP Road | D33: Los Alamos | E33: 87544 | F33: 505.453.3393 | G33: 31 | H33: 120 DP Road | I33: 31 | J33: 1.00033 | K33: 120 DP Road | N33: 31 | Q33: =IFERROR(SEARCH(#REF!,R33)+ROW()/100000,"") ->  | R33: 505.453.3393
A34: 32 | B34: Casa Alegre | C34: 400 Mountain View Drive | D34: Las Vegas | E34: 87701 | F34: 505.454.0016 | G34: 32 | H34: 400 Mountain View Drive | I34: 32 | J34: 1.00034 | K34: 400 Mountain View Drive | N34: 32 | Q34: =IFERROR(SEARCH(#REF!,R34)+ROW()/100000,"") ->  | R34: 505.454.0016
A35: 33 | B35: Casa Bonita - LL | C35: 675 US Highway 314 SW | D35: Los Lunas | E35: 87031 | F35: 505.865.4588 | G35: 33 | H35: 675 US Highway 314 SW | I35: 33 | J35: 1.00035 | K35: 675 US Highway 314 SW | N35: 33 | Q35: =IFERROR(SEARCH(#REF!,R35)+ROW()/100000,"") ->  | R35: 505.865.4588
A36: 34 | B36: Casa Bonita-ABQ | C36: 4528 Carlisle Blvd. NE | D36: Albuquerque | E36: 87109 | F36: 505.881.0668 | G36: 34 | H36: 4528 Carlisle Blvd. NE | I36: 34 | J36: 1.00036 | K36: 4528 Carlisle Blvd. NE | N36: 34 | Q36: =IFERROR(SEARCH(#REF!,R36)+ROW()/100000,"") ->  | R36: 505.881.0668
A37: 35 | B37: Casa de Chavez | C37: 675 US Highway 314 SW | D37: Los Lunas | E37: 87031 | F37: 505.865.4588 | G37: 35 | H37: 675 US Highway 314 SW | I37: 35 | J37: 1.00037 | K37: 675 US Highway 314 SW | N37: 35 | Q37: =IFERROR(SEARCH(#REF!,R37)+ROW()/100000,"") ->  | R37: 505.865.4588
A38: 36 | B38: Casa del Rio | C38: 165 N. Silver | D38: T or C | E38: 87901 | F38: 575.894.2244 | G38: 36 | H38: 165 N. Silver | I38: 36 | J38: 1.00038 | K38: 165 N. Silver | N38: 36 | Q38: =IFERROR(SEARCH(#REF!,R38)+ROW()/100000,"") ->  | R38: 575.894.2244
A39: 37 | B39: Casa Feliz | C39: 443 Espanola St. SE | D39: Albuquerque | E39: 87108 | F39: 505.595.3952 | G39: 37 | H39: 443 Espanola St. SE | I39: 37 | J39: 1.00039 | K39: 443 Espanola St. SE | N39: 37 | Q39: =IFERROR(SEARCH(#REF!,R39)+ROW()/100000,"") ->  | R39: 505.595.3952
A40: 38 | B40: Casa Linda | C40: 100 E. 17 St. | D40: Silver City | E40: 88061 | F40: 575.388.3755 | G40: 38 | H40: 100 E. 17 St. | I40: 38 | J40: 1.0004 | K40: 100 E. 17 St. | N40: 38 | Q40: =IFERROR(SEARCH(#REF!,R40)+ROW()/100000,"") ->  | R40: 575.388.3755
A41: 39 | B41: Casa Rufina | C41: 2323 Casa Rufina Road | D41: Santa Fe | E41: 87507 | F41: 505.988.1116 | G41: 39 | H41: 2323 Casa Rufina Road | I41: 39 | J41: 1.00041 | K41: 2323 Casa Rufina Road | N41: 39 | Q41: =IFERROR(SEARCH(#REF!,R41)+ROW()/100000,"") ->  | R41: 505.988.1116
A42: 40 | B42: Casa Villita | C42: 3330 Calle Po Ae Pi | D42: Santa Fe | E42: 87507 | F42: 505.474.7400 | G42: 40 | H42: 3330 Calle Po Ae Pi | I42: 40 | J42: 1.00042 | K42: 3330 Calle Po Ae Pi | N42: 40 | Q42: =IFERROR(SEARCH(#REF!,R42)+ROW()/100000,"") ->  | R42: 505.474.7400
A43: 41 | B43: Casamera | C43: 350 S. Basilio Dr. | D43: Gallup | E43: 87301 | F43: 505.863.2700 | G43: 41 | H43: 350 S. Basilio Dr. | I43: 41 | J43: 1.00043 | K43: 350 S. Basilio Dr. | N43: 41 | Q43: =IFERROR(SEARCH(#REF!,R43)+ROW()/100000,"") ->  | R43: 505.863.2700
A44: 42 | B44: Casitas de Colores | C44: 215 Lead Ave. SW | D44: Albuquerque | E44: 87102 | F44: 505.842.5644 | G44: 42 | H44: 215 Lead Ave. SW | I44: 42 | J44: 1.00044 | K44: 215 Lead Ave. SW | N44: 42 | Q44: =IFERROR(SEARCH(#REF!,R44)+ROW()/100000,"") ->  | R44: 505.842.5644
A45: 43 | B45: Cedar Hills | C45: 1710 Elm Circle | D45: Gallup | E45: 87301 | F45: 505.863.3689 | G45: 43 | H45: 1710 Elm Circle | I45: 43 | J45: 1.00045 | K45: 1710 Elm Circle | N45: 43 | Q45: =IFERROR(SEARCH(#REF!,R45)+ROW()/100000,"") ->  | R45: 505.863.3689
A46: 44 | B46: Central Apartments | C46: 500 S. Prescott St. | D46: Santa Clara | E46: 88026 | F46: 575.537.6012 | G46: 44 | H46: 500 S. Prescott St. | I46: 44 | J46: 1.00046 | K46: 500 S. Prescott St. | N46: 44 | Q46: =IFERROR(SEARCH(#REF!,R46)+ROW()/100000,"") ->  | R46: 575.537.6012
A47: 45 | B47: Chaco River | C47: NW Division, W. of mile Marker 94 on Hwy 491 | D47: Shiprock | E47: 87420 | F47: 505.368.3735 | G47: 45 | H47: NW Division, W. of mile Marker 94 on Hwy 491 | I47: 45 | J47: 1.00047 | K47: NW Division, W. of mile Marker 94 on Hwy 491 | N47: 45 | Q47: =IFERROR(SEARCH(#REF!,R47)+ROW()/100000,"") ->  | R47: 505.368.3735
A48: 46 | B48: Chateau | C48: 6101 Osuna Road NE | D48: Albuquerque | E48: 87109 | F48: 505.883.0864 | G48: 46 | H48: 6101 Osuna Road NE | I48: 46 | J48: 1.00048 | K48: 6101 Osuna Road NE | N48: 46 | Q48: =IFERROR(SEARCH(#REF!,R48)+ROW()/100000,"") ->  | R48: 505.883.0864
A49: 47 | B49: Chuska | C49: 2534 E. Aztec Ave. | D49: Gallup | E49: 87301 | F49: 505.863.7400 | G49: 47 | H49: 2534 E. Aztec Ave. | I49: 47 | J49: 1.00049 | K49: 2534 E. Aztec Ave. | N49: 47 | O49: =IFERROR(VLOOKUP(N49,P49:R325,3,FALSE),"") ->  | Q49: =IFERROR(SEARCH(#REF!,R49)+ROW()/100000,"") ->  | R49: 505.863.7400
A50: 48 | B50: Cibola | C50: 1101 El Camino Real | D50: Socorro | E50: 87801 | F50: 575.835.3315 | G50: 48 | H50: 1101 El Camino Real | I50: 48 | J50: 1.0005 | K50: 1101 El Camino Real | N50: 48 | Q50: =IFERROR(SEARCH(#REF!,R50)+ROW()/100000,"") ->  | R50: 575.835.3315
A51: 49 | B51: Cielo Azul | C51: 621 Cielo Azul | D51: Aztec | E51: 87410 | F51: 505.334.0044 | G51: 49 | H51: 621 Cielo Azul | I51: 49 | J51: 1.00051 | K51: 621 Cielo Azul | N51: 49 | Q51: =IFERROR(SEARCH(#REF!,R51)+ROW()/100000,"") ->  | R51: 505.334.0044
A52: 50 | B52: Cielo De Oro Senior Housing | C52: 1700 W. Hendricks St. | D52: Roswell | E52: 88203 | F52: 575.622.4146 | G52: 50 | H52: 1700 W. Hendricks St. | I52: 50 | J52: 1.00052 | K52: 1700 W. Hendricks St. | N52: 50 | Q52: =IFERROR(SEARCH(#REF!,R52)+ROW()/100000,"") ->  | R52: 575.622.4146
A53: 51 | B53: Cimmaron | C53: 825 Fourth St. | D53: Anthony | E53: 88021 | F53: 575.882.0042 | G53: 51 | H53: 825 Fourth St. | I53: 51 | J53: 1.00053 | K53: 825 Fourth St. | N53: 51 | Q53: =IFERROR(SEARCH(#REF!,R53)+ROW()/100000,"") ->  | R53: 575.882.0042
A54: 52 | B54: Cinnamon Ridge | C54: 1004 Cinnamon Loop | D54: Santa Rosa | E54: 88435 | F54: 575.472.3974 | G54: 52 | H54: 1004 Cinnamon Loop | I54: 52 | J54: 1.00054 | K54: 1004 Cinnamon Loop | N54: 52 | Q54: =IFERROR(SEARCH(#REF!,R54)+ROW()/100000,"") ->  | R54: 575.472.3974
A55: 53 | B55: Cliffside | C55: 601 Dani Drive | D55: Gallup | E55: 87301 | F55: 505.722.0127 | G55: 53 | H55: 601 Dani Drive | I55: 53 | J55: 1.00055 | K55: 601 Dani Drive | N55: 53 | Q55: =IFERROR(SEARCH(#REF!,R55)+ROW()/100000,"") ->  | R55: 505.722.0127
A56: 54 | B56: Clovis Apartments | C56: 1000 N. Martin Luther King Jr. Blvd. | D56: Clovis | E56: 88101 | F56: 575.762.1533 | G56: 54 | H56: 1000 N. Martin Luther King Jr. Blvd. | I56: 54 | J56: 1.00056 | K56: 1000 N. Martin Luther King Jr. Blvd. | N56: 54 | Q56: =IFERROR(SEARCH(#REF!,R56)+ROW()/100000,"") ->  | R56: 575.762.1533
A57: 55 | B57: Colina Vista | C57: 604 N. Fifth St. | D57: Carlsbad | E57: 88220 | F57: 575.885.3816 | G57: 55 | H57: 604 N. Fifth St. | I57: 55 | J57: 1.00057 | K57: 604 N. Fifth St. | N57: 55 | Q57: =IFERROR(SEARCH(#REF!,R57)+ROW()/100000,"") ->  | R57: 575.885.3816
A58: 56 | B58: Columbus | C58: 60 Botanica Drive | D58: Columbus | E58: 88029 | F58: 575.531.2546 | G58: 56 | H58: 60 Botanica Drive | I58: 56 | J58: 1.00058 | K58: 60 Botanica Drive | N58: 56 | Q58: =IFERROR(SEARCH(#REF!,R58)+ROW()/100000,"") ->  | R58: 575.531.2546
A59: 57 | B59: Copper Terrace | C59: 12801 Copper NE | D59: Albuquerque | E59: 87123 | F59: 505.293.5300 | G59: 57 | H59: 12801 Copper NE | I59: 57 | J59: 1.00059 | K59: 12801 Copper NE | N59: 57 | Q59: =IFERROR(SEARCH(#REF!,R59)+ROW()/100000,"") ->  | R59: 505.293.5300
A60: 58 | B60: Cottonwood Commons | C60: 1220 Jefferson St. | D60: Alamogordo | E60: 88310 | F60: 575.434.2036 | G60: 58 | H60: 1220 Jefferson St. | I60: 58 | J60: 1.0006 | K60: 1220 Jefferson St. | N60: 58 | Q60: =IFERROR(SEARCH(#REF!,R60)+ROW()/100000,"") ->  | R60: 575.434.2036
A61: 59 | B61: Country Club | C61: 1002 Airport Road | D61: Santa Fe | E61: 87505 | F61: 505.471.1871 | G61: 59 | H61: 1002 Airport Road | I61: 59 | J61: 1.00061 | K61: 1002 Airport Road | N61: 59 | Q61: =IFERROR(SEARCH(#REF!,R61)+ROW()/100000,"") ->  | R61: 505.471.1871
A62: 60 | B62: Cuatro | C62: 1319 4th St. SW | D62: Albuquerque | E62: 87102 | F62: 505.503.1591 | G62: 60 | H62: 1319 4th St. SW | I62: 60 | J62: 1.00062 | K62: 1319 4th St. SW | N62: 60 | Q62: =IFERROR(SEARCH(#REF!,R62)+ROW()/100000,"") ->  | R62: 505.503.1591
A63: 61 | B63: David Spector Shalom House | C63: 5500 Wyoming Blvd. NE | D63: Albuquerque | E63: 87109 | F63: 505.823.1433 | G63: 61 | H63: 5500 Wyoming Blvd. NE | I63: 61 | J63: 1.00063 | K63: 5500 Wyoming Blvd. NE | N63: 61 | Q63: =IFERROR(SEARCH(#REF!,R63)+ROW()/100000,"") ->  | R63: 505.823.1433
A64: 62 | B64: Deer Hollow Senior | C64: 701 Bergin Lane | D64: Bloomfield | E64: 87413 | F64: 505.632.0296 | G64: 62 | H64: 701 Bergin Lane | I64: 62 | J64: 1.00064 | K64: 701 Bergin Lane | N64: 62 | Q64: =IFERROR(SEARCH(#REF!,R64)+ROW()/100000,"") ->  | R64: 505.632.0296
A65: 63 | B65: Deming Manor | C65: 1000 S. Zinc | D65: Deming | E65: 88030 | F65: 575.546.7498 | G65: 63 | H65: 1000 S. Zinc | I65: 63 | J65: 1.00065 | K65: 1000 S. Zinc | N65: 63 | Q65: =IFERROR(SEARCH(#REF!,R65)+ROW()/100000,"") ->  | R65: 575.546.7498
A66: 64 | B66: Depot Apartments | C66: 704 W. Maple | D66: Moriarty | E66: 87035 | F66: 505.832.6746 | G66: 64 | H66: 704 W. Maple | I66: 64 | J66: 1.00066 | K66: 704 W. Maple | N66: 64 | Q66: =IFERROR(SEARCH(#REF!,R66)+ROW()/100000,"") ->  | R66: 505.832.6746
A67: 65 | B67: Desert Palms | C67: 2405 W. Picacho | D67: Las Cruces | E67: 88007 | F67: 575.523.4138 | G67: 65 | H67: 2405 W. Picacho | I67: =IFERROR(RANK(J67,$J$3:$J$279,1),"") -> 65 | J67: =IFERROR(SEARCH($C$1,K67)+ROW()/100000,"") -> 1.00067 | K67: 2405 W. Picacho | N67: 65 | P67: =IFERROR(RANK(Q67,$Q$3:$Q$279,1),"") ->  | Q67: =IFERROR(SEARCH(#REF!,R67)+ROW()/100000,"") ->  | R67: 575.523.4138
A68: 66 | B68: Desert Sun | C68: 1201 N. Eighth St. | D68: Deming | E68: 88030 | F68: 575.544.9955 | G68: 66 | H68: =IFERROR(VLOOKUP(G68,$I$3:$K$279,3,TRUE),"") -> 1201 N. Eighth St. | I68: 66 | J68: 1.00068 | K68: 1201 N. Eighth St. | N68: 66 | Q68: =IFERROR(SEARCH(#REF!,R68)+ROW()/100000,"") ->  | R68: 575.544.9955
A69: 67 | B69: Desert Willow | C69: 8901 Jefferson St. NE | D69: Albuquerque | E69: 87113 | F69: 505.856.6900 | G69: 67 | H69: 8901 Jefferson St. NE | I69: 67 | J69: 1.00069 | K69: 8901 Jefferson St. NE | N69: 67 | Q69: =IFERROR(SEARCH(#REF!,R69)+ROW()/100000,"") ->  | R69: 505.856.6900
A70: 68 | B70: Doña Ana Park | C70: 1900 N. Solano Drive | D70: Las Cruces | E70: 88001 | F70: 575.524.2524 | G70: 68 | H70: 1900 N. Solano Drive | I70: 68 | J70: 1.0007 | K70: 1900 N. Solano Drive | N70: 68 | Q70: =IFERROR(SEARCH(#REF!,R70)+ROW()/100000,"") ->  | R70: 575.524.2524
A71: 69 | B71: Downtown @ 700 2nd | C71: 700 Second St. NW | D71: Albuquerque | E71: 87102 | F71: 505.242.2100 | G71: 69 | H71: 700 Second St. NW | I71: 69 | J71: 1.00071 | K71: 700 Second St. NW | N71: 69 | Q71: =IFERROR(SEARCH(#REF!,R71)+ROW()/100000,"") ->  | R71: 505.242.2100
A72: 70 | B72: E. Mesa | C72: 710 W. Mesa | D72: Gallup | E72: 87301 | F72: 505.879.2554 | G72: 70 | H72: 710 W. Mesa | I72: 70 | J72: 1.00072 | K72: 710 W. Mesa | N72: 70 | Q72: =IFERROR(SEARCH(#REF!,R72)+ROW()/100000,"") ->  | R72: 505.879.2554
A73: 71 | B73: Eaton Village | C73: 2550 E. 16th St. | D73: Farmington | E73: 87401 | F73: 505.327.5720 | G73: 71 | H73: 2550 E. 16th St. | I73: 71 | J73: 1.00073 | K73: 2550 E. 16th St. | N73: 71 | Q73: =IFERROR(SEARCH(#REF!,R73)+ROW()/100000,"") ->  | R73: 505.327.5720
A74: 72 | B74: Echols Place | C74: 1600 Echols Ave. | D74: Clovis | E74: 88101 | F74: 575.763.9009 | G74: 72 | H74: 1600 Echols Ave. | I74: 72 | J74: 1.00074 | K74: 1600 Echols Ave. | N74: 72 | Q74: =IFERROR(SEARCH(#REF!,R74)+ROW()/100000,"") ->  | R74: 575.763.9009
A75: 73 | B75: El Camino Real | C75: 21 S. Chile Capital Lane | D75: Hatch | E75: 87937 | F75: 575.267.0215 | G75: 73 | H75: 21 S. Chile Capital Lane | I75: 73 | J75: 1.00075 | K75: 21 S. Chile Capital Lane | N75: 73 | Q75: =IFERROR(SEARCH(#REF!,R75)+ROW()/100000,"") ->  | R75: 575.267.0215
A76: 74 | B76: El Cerrito | C76: 250 Paseo del Cañon East | D76: Taos | E76: 87571 | F76: 575.751.1892 | G76: 74 | H76: 250 Paseo del Cañon East | I76: 74 | J76: 1.00076 | K76: 250 Paseo del Cañon East | N76: 74 | Q76: =IFERROR(SEARCH(#REF!,R76)+ROW()/100000,"") ->  | R76: 575.751.1892
A77: 75 | B77: El Paseo | C77: 301 El Pueblo Road NW | D77: Los Ranchos de Albuquerque | E77: 87114 | F77: 505.922.9600 | G77: 75 | H77: 301 El Pueblo Road NW | I77: 75 | J77: 1.00077 | K77: 301 El Pueblo Road NW | N77: 75 | Q77: =IFERROR(SEARCH(#REF!,R77)+ROW()/100000,"") ->  | R77: 505.922.9600
A78: 76 | B78: El Paseo Village | C78: 420 Coal St. SE | D78: Albuquerque | E78: 87102 | F78: 505.842.1078 | G78: 76 | H78: 420 Coal St. SE | I78: 76 | J78: 1.00078 | K78: 420 Coal St. SE | N78: 76 | Q78: =IFERROR(SEARCH(#REF!,R78)+ROW()/100000,"") ->  | R78: 505.842.1078
A79: 77 | B79: El Pueblo & Madeira Court | C79: 1001 Madeira SE | D79: Albuquerque | E79: 87108 | F79: 505.266.5855 | G79: 77 | H79: 1001 Madeira SE | I79: 77 | J79: 1.00079 | K79: 1001 Madeira SE | N79: 77 | Q79: =IFERROR(SEARCH(#REF!,R79)+ROW()/100000,"") ->  | R79: 505.266.5855
A80: 78 | B80: El Sereno | C80: 1335 Ortiz Road SE | D80: Albuquerque | E80: 87108 | F80: 505.750.7503 | G80: 78 | H80: 1335 Ortiz Road SE | I80: 78 | J80: 1.0008 | K80: 1335 Ortiz Road SE | N80: 78 | Q80: =IFERROR(SEARCH(#REF!,R80)+ROW()/100000,"") ->  | R80: 505.750.7503
A81: 79 | B81: Encantada | C81: 300 Canal Blvd. SW | D81: Los Lunas | E81: 87031 | F81: 505.865.4113 | G81: 79 | H81: 300 Canal Blvd. SW | I81: 79 | J81: 1.00081 | K81: 300 Canal Blvd. SW | N81: 79 | O81: =IFERROR(VLOOKUP(N81,P81:R357,3,FALSE),"") ->  | Q81: =IFERROR(SEARCH(#REF!,R81)+ROW()/100000,"") ->  | R81: 505.865.4113
A82: 80 | B82: Enchanted Vista | C82: 4501 Safelite Blvd. NE | D82: Rio Rancho | E82: 87144 | F82: 505.891.4900 | G82: 80 | H82: 4501 Safelite Blvd. NE | I82: 80 | J82: 1.00082 | K82: 4501 Safelite Blvd. NE | N82: 80 | Q82: =IFERROR(SEARCH(#REF!,R82)+ROW()/100000,"") ->  | R82: 505.891.4900
A83: 81 | B83: Encino Gardens | C83: 412 Alvarado St. SE | D83: Albuquerque | E83: 87108 | F83: 505.266.7736 | G83: 81 | H83: 412 Alvarado St. SE | I83: 81 | J83: 1.00083 | K83: 412 Alvarado St. SE | N83: 81 | Q83: =IFERROR(SEARCH(#REF!,R83)+ROW()/100000,"") ->  | R83: 505.266.7736
A84: 82 | B84: Encino Terrace | C84: 609 Encino Place NE | D84: Albuquerque | E84: 87102 | F84: 505.247.4185 | G84: 82 | H84: 609 Encino Place NE | I84: 82 | J84: 1.00084 | K84: 609 Encino Place NE | N84: 82 | Q84: =IFERROR(SEARCH(#REF!,R84)+ROW()/100000,"") ->  | R84: 505.247.4185
A85: 83 | B85: Encino Villa | C85: 1501 Montano St. | D85: Santa Fe | E85: 87505 | F85: 505.989.7271 | G85: 83 | H85: 1501 Montano St. | I85: 83 | J85: 1.00085 | K85: 1501 Montano St. | N85: 83 | Q85: =IFERROR(SEARCH(#REF!,R85)+ROW()/100000,"") ->  | R85: 505.989.7271
A86: 84 | B86: Evergreen | C86: 2020 Calle Lorca | D86: Santa Fe | E86: 87505 | F86: 505.474.9260 | G86: 84 | H86: 2020 Calle Lorca | I86: 84 | J86: 1.00086 | K86: 2020 Calle Lorca | N86: 84 | Q86: =IFERROR(SEARCH(#REF!,R86)+ROW()/100000,"") ->  | R86: 505.474.9260
A87: 85 | B87: Falcon Ridge | C87: 20 S. Chile Capital St. | D87: Hatch | E87: 87937 | F87: 575.267.9003 | G87: 85 | H87: 20 S. Chile Capital St. | I87: 85 | J87: 1.00087 | K87: 20 S. Chile Capital St. | N87: 85 | Q87: =IFERROR(SEARCH(#REF!,R87)+ROW()/100000,"") ->  | R87: 575.267.9003
A88: 86 | B88: Four Hills | C88: 2595 Mars Ave. | D88: Las Cruces | E88: 88012 | F88: 575.382.0500 | G88: 86 | H88: 2595 Mars Ave. | I88: 86 | J88: 1.00088 | K88: 2595 Mars Ave. | N88: 86 | Q88: =IFERROR(SEARCH(#REF!,R88)+ROW()/100000,"") ->  | R88: 575.382.0500
A89: 87 | B89: Four Seasons | C89: 2405 N. Jefferson St. | D89: Hobbs | E89: 88240 | F89: 575.392.6243 | G89: 87 | H89: 2405 N. Jefferson St. | I89: 87 | J89: 1.00089 | K89: 2405 N. Jefferson St. | N89: 87 | Q89: =IFERROR(SEARCH(#REF!,R89)+ROW()/100000,"") ->  | R89: 575.392.6243
A90: 88 | B90: Franklin Vista | C90: 825 Hettinga Lane | D90: Anthony | E90: 88021 | F90: 575.882.5049 | G90: 88 | H90: 825 Hettinga Lane | I90: 88 | J90: 1.0009 | K90: 825 Hettinga Lane | N90: 88 | Q90: =IFERROR(SEARCH(#REF!,R90)+ROW()/100000,"") ->  | R90: 575.882.5049
A91: 89 | B91: Franklin Vista VI, VII | C91: 855 Clark Ave. | D91: Anthony | E91: 88021 | F91: 575.882.3909 | G91: 89 | H91: 855 Clark Ave. | I91: 89 | J91: 1.00091 | K91: 855 Clark Ave. | N91: 89 | Q91: =IFERROR(SEARCH(#REF!,R91)+ROW()/100000,"") ->  | R91: 575.882.3909
A92: 90 | B92: Gallinas Valley | C92: 2612 Seventh St. | D92: Las Vegas | E92: 87701 | F92: 505.425.5060 | G92: 90 | H92: 2612 Seventh St. | I92: 90 | J92: 1.00092 | K92: 2612 Seventh St. | N92: 90 | Q92: =IFERROR(SEARCH(#REF!,R92)+ROW()/100000,"") ->  | R92: 505.425.5060
A93: 91 | B93: Gatewood Village | C93: 1309 W. 15th St. | D93: Clovis | E93: 88101 | F93: 575.769.1995 | G93: 91 | H93: 1309 W. 15th St. | I93: 91 | J93: 1.00093 | K93: 1309 W. 15th St. | N93: 91 | Q93: =IFERROR(SEARCH(#REF!,R93)+ROW()/100000,"") ->  | R93: 575.769.1995
A94: 92 | B94: Generations at W. Mesa | C94: 5710 Avalon Road NW | D94: Albuquerque | E94: 87105 | F94: 505.833.0656 | G94: 92 | H94: 5710 Avalon Road NW | I94: 92 | J94: 1.00094 | K94: 5710 Avalon Road NW | N94: 92 | Q94: =IFERROR(SEARCH(#REF!,R94)+ROW()/100000,"") ->  | R94: 505.833.0656
A95: 93 | B95: Grants | C95: 1703 Cordova Court | D95: Grants | E95: 87020 | F95: 505.287.4973 | G95: 93 | H95: 1703 Cordova Court | I95: 93 | J95: 1.00095 | K95: 1703 Cordova Court | N95: 93 | Q95: =IFERROR(SEARCH(#REF!,R95)+ROW()/100000,"") ->  | R95: 505.287.4973
A96: 94 | B96: Hidden Valley | C96: 810 Patton Drive | D96: Gallup | E96: 87301 | F96: 505.863.9253 | G96: 94 | H96: 810 Patton Drive | I96: 94 | J96: 1.00096 | K96: 810 Patton Drive | N96: 94 | Q96: =IFERROR(SEARCH(#REF!,R96)+ROW()/100000,"") ->  | R96: 505.863.9253
A97: 95 | B97: Hidden Valley Village | C97: 717 Ruth Lane | D97: Bloomfield | E97: 87413 | F97: 505.632.0004 | G97: 95 | H97: 717 Ruth Lane | I97: 95 | J97: 1.00097 | K97: 717 Ruth Lane | N97: 95 | Q97: =IFERROR(SEARCH(#REF!,R97)+ROW()/100000,"") ->  | R97: 505.632.0004
A98: 96 | B98: Highland Park | C98: 2013 S. Triviz Drive | D98: Las Cruces | E98: 88001 | F98: 575.522.4868 | G98: 96 | H98: 2013 S. Triviz Drive | I98: 96 | J98: 1.00098 | K98: 2013 S. Triviz Drive | N98: 96 | Q98: =IFERROR(SEARCH(#REF!,R98)+ROW()/100000,"") ->  | R98: 575.522.4868
A99: 97 | B99: Hilltop Terrace | C99: 393 Canal Blvd. | D99: Los Lunas | E99: 87031 | F99: 505.865.9101 | G99: 97 | H99: 393 Canal Blvd. | I99: 97 | J99: 1.00099 | K99: 393 Canal Blvd. | N99: 97 | Q99: =IFERROR(SEARCH(#REF!,R99)+ROW()/100000,"") ->  | R99: 505.865.9101
A100: 98 | B100: Hobbs | C100: 2001 E. Clinton St. | D100: Hobbs | E100: 88240 | F100: 575.393.2523 | G100: 98 | H100: 2001 E. Clinton St. | I100: 98 | J100: 1.001 | K100: 2001 E. Clinton St. | N100: 98 | Q100: =IFERROR(SEARCH(#REF!,R100)+ROW()/100000,"") ->  | R100: 575.393.2523
A101: 99 | B101: Homeward Bound | C101: 3454 Cerrillos Road | D101: Santa Fe | E101: 87507 | F101: 505.471.1174 | G101: 99 | H101: 3454 Cerrillos Road | I101: 99 | J101: 1.00101 | K101: 3454 Cerrillos Road | N101: 99 | Q101: =IFERROR(SEARCH(#REF!,R101)+ROW()/100000,"") ->  | R101: 505.471.1174
A102: 100 | B102: Horizon | C102: 1309 23rd St. | D102: Eunice | E102: 88231 | F102: 575.613.4118 | G102: 100 | H102: 1309 23rd St. | I102: 100 | J102: 1.00102 | K102: 1309 23rd St. | N102: 100 | Q102: =IFERROR(SEARCH(#REF!,R102)+ROW()/100000,"") ->  | R102: 575.613.4118
A103: 101 | B103: Hotel Clovis Lofts | C103: 201 N. Main St. | D103: Clovis | E103: 88101 | F103: 575.763.9588 | G103: 101 | H103: 201 N. Main St. | I103: 101 | J103: 1.00103 | K103: 201 N. Main St. | N103: 101 | Q103: =IFERROR(SEARCH(#REF!,R103)+ROW()/100000,"") ->  | R103: 575.763.9588
A104: 102 | B104: Imperial | C104: 205 Silver Ave. SW | D104: Albuquerque | E104: 87102 | F104: 505.247.2551 | G104: 102 | H104: 205 Silver Ave. SW | I104: 102 | J104: 1.00104 | K104: 205 Silver Ave. SW | N104: 102 | Q104: =IFERROR(SEARCH(#REF!,R104)+ROW()/100000,"") ->  | R104: 505.247.2551
A105: 103 | B105: I-Sah-din-dii | C105: 101 Central Ave. | D105: Mescalero | E105: 88340 | F105: 575.464.9235 | G105: 103 | H105: 101 Central Ave. | I105: 103 | J105: 1.00105 | K105: 101 Central Ave. | N105: 103 | Q105: =IFERROR(SEARCH(#REF!,R105)+ROW()/100000,"") ->  | R105: 575.464.9235
A106: 104 | B106: Jack Rabbit Hill | C106: Eagle View Lane | D106: Picuris Pueblo | E106: 87553 | F106: 505.455.7973 | G106: 104 | H106: Eagle View Lane | I106: 104 | J106: 1.00106 | K106: Eagle View Lane | N106: 104 | Q106: =IFERROR(SEARCH(#REF!,R106)+ROW()/100000,"") ->  | R106: 505.455.7973
A107: 105 | B107: James K. Lyons Apartments | C107: 109 N. Ave I | D107: Portales | E107: 88130 | F107: 575.359.1732 | G107: 105 | H107: 109 N. Ave I | I107: 105 | J107: 1.00107 | K107: 109 N. Ave I | N107: 105 | Q107: =IFERROR(SEARCH(#REF!,R107)+ROW()/100000,"") ->  | R107: 575.359.1732
A108: 106 | B108: Jefferson Crossings | C108: 4401 Montgomery NE | D108: Albuquerque | E108: 87109 | F108: 505.881.4999 | G108: 106 | H108: 4401 Montgomery NE | I108: 106 | J108: 1.00108 | K108: 4401 Montgomery NE | N108: 106 | Q108: =IFERROR(SEARCH(#REF!,R108)+ROW()/100000,"") ->  | R108: 505.881.4999
A109: 107 | B109: Kentucky Manor | C109: 437 Kentucky St. SE | D109: Albuquerque | E109: 87108 | F109: 505.266.5414 | G109: 107 | H109: 437 Kentucky St. SE | I109: 107 | J109: 1.00109 | K109: 437 Kentucky St. SE | N109: 107 | Q109: =IFERROR(SEARCH(#REF!,R109)+ROW()/100000,"") ->  | R109: 505.266.5414
A110: 108 | B110: King Arthur’s Court | C110: 428 W. Gale | D110: Lordsburg | E110: 88045 | F110: 575.542.9336 | G110: 108 | H110: 428 W. Gale | I110: 108 | J110: 1.0011 | K110: 428 W. Gale | N110: 108 | Q110: =IFERROR(SEARCH(#REF!,R110)+ROW()/100000,"") ->  | R110: 575.542.9336
A111: 109 | B111: Kingdom of the Sun Retirement Center | C111: 800 W. Buckeye St. | D111: Deming | E111: 88030 | F111: 575.546.9323 | G111: 109 | H111: 800 W. Buckeye St. | I111: 109 | J111: 1.00111 | K111: 800 W. Buckeye St. | N111: 109 | Q111: =IFERROR(SEARCH(#REF!,R111)+ROW()/100000,"") ->  | R111: 575.546.9323
A112: 110 | B112: Kristin Park | C112: 2351 Moreland Drive | D112: Las Vegas | E112: 87701 | F112: 505.425.6555 | G112: 110 | H112: 2351 Moreland Drive | I112: 110 | J112: 1.00112 | K112: 2351 Moreland Drive | N112: 110 | Q112: =IFERROR(SEARCH(#REF!,R112)+ROW()/100000,"") ->  | R112: 505.425.6555
A113: 111 | B113: La Cantera Senior | C113: 3600 Old Airport Road NW | D113: Albuquerque | E113: 87114 | F113: 505.890.9400 | G113: 111 | H113: 3600 Old Airport Road NW | I113: 111 | J113: 1.00113 | K113: 3600 Old Airport Road NW | N113: 111 | O113: =IFERROR(VLOOKUP(N113,P113:R389,3,FALSE),"") ->  | Q113: =IFERROR(SEARCH(#REF!,R113)+ROW()/100000,"") ->  | R113: 505.890.9400
A114: 112 | B114: La Hacienda | C114: 420 N. Second St. #9 | D114: Belen | E114: 87002 | F114: 505.864.8477 | G114: 112 | H114: 420 N. Second St. #9 | I114: 112 | J114: 1.00114 | K114: 420 N. Second St. #9 | N114: 112 | Q114: =IFERROR(SEARCH(#REF!,R114)+ROW()/100000,"") ->  | R114: 505.864.8477
A115: 113 | B115: La Luz | C115: 2325 Cerrillos Road | D115: Santa Fe | E115: 87505 | F115: 505.438.0010 | G115: 113 | H115: 2325 Cerrillos Road | I115: 113 | J115: 1.00115 | K115: 2325 Cerrillos Road | N115: 113 | Q115: =IFERROR(SEARCH(#REF!,R115)+ROW()/100000,"") ->  | R115: 505.438.0010
A116: 114 | B116: La Paloma del Sol | C116: 601 S. Santa Monica St. | D116: Deming | E116: 88030 | F116: 575.546.8567 | G116: 114 | H116: 601 S. Santa Monica St. | I116: 114 | J116: 1.00116 | K116: 601 S. Santa Monica St. | N116: 114 | Q116: =IFERROR(SEARCH(#REF!,R116)+ROW()/100000,"") ->  | R116: 575.546.8567
A117: 115 | B117: La Pradera | C117: 1023 E. Glorietta Drive | D117: Hobbs | E117: 88240 | F117: 575.392.0038 | G117: 115 | H117: 1023 E. Glorietta Drive | I117: 115 | J117: 1.00117 | K117: 1023 E. Glorietta Drive | N117: 115 | Q117: =IFERROR(SEARCH(#REF!,R117)+ROW()/100000,"") ->  | R117: 575.392.0038
A118: 116 | B118: La Resolana | C118: 1025 Chelwood Park Blvd. NE | D118: Albuquerque | E118: 87112 | F118: 505.296.1425 | G118: 116 | H118: 1025 Chelwood Park Blvd. NE | I118: 116 | J118: 1.00118 | K118: 1025 Chelwood Park Blvd. NE | N118: 116 | Q118: =IFERROR(SEARCH(#REF!,R118)+ROW()/100000,"") ->  | R118: 505.296.1425
A119: 117 | B119: La Terraza | C119: 900 Cannery Court | D119: Farmington | E119: 87401 | F119: 505.324.6201 | G119: 117 | H119: 900 Cannery Court | I119: 117 | J119: 1.00119 | K119: 900 Cannery Court | N119: 117 | Q119: =IFERROR(SEARCH(#REF!,R119)+ROW()/100000,"") ->  | R119: 505.324.6201
A120: 118 | B120: La Terraza Senior | C120: 3704 Ladera Drive NW | D120: Albuquerque | E120: 87120 | F120: 505.836.5800 | G120: 118 | H120: 3704 Ladera Drive NW | I120: 118 | J120: 1.0012 | K120: 3704 Ladera Drive NW | N120: 118 | Q120: =IFERROR(SEARCH(#REF!,R120)+ROW()/100000,"") ->  | R120: 505.836.5800
A121: 119 | B121: La Tierra | C121: 107 Jack Little Drive | D121: Ruidoso | E121: 88345 | F121: 575.258.2727 | G121: 119 | H121: 107 Jack Little Drive | I121: 119 | J121: 1.00121 | K121: 107 Jack Little Drive | N121: 119 | Q121: =IFERROR(SEARCH(#REF!,R121)+ROW()/100000,"") ->  | R121: 575.258.2727
A122: 120 | B122: La Vida Nueva | C122: 1200 Dickerson Drive SE | D122: Albuquerque | E122: 87106 | F122: 505.265.2860 | G122: 120 | H122: 1200 Dickerson Drive SE | I122: 120 | J122: 1.00122 | K122: 1200 Dickerson Drive SE | N122: 120 | Q122: =IFERROR(SEARCH(#REF!,R122)+ROW()/100000,"") ->  | R122: 505.265.2860
A123: 121 | B123: La Villa Elena | C123: 201 Villa Elena Lane | D123: Bernalillo | E123: 87004 | F123: 505.867.6123 | G123: 121 | H123: 201 Villa Elena Lane | I123: 121 | J123: 1.00123 | K123: 201 Villa Elena Lane | N123: 121 | Q123: =IFERROR(SEARCH(#REF!,R123)+ROW()/100000,"") ->  | R123: 505.867.6123
A124: 122 | B124: Ladera Apartment Homes | C124: 102 Dipalo Hill Drive | D124: Ruidoso Downs | E124: 88346 | F124: 575.378.5262 | G124: 122 | H124: 102 Dipalo Hill Drive | I124: 122 | J124: 1.00124 | K124: 102 Dipalo Hill Drive | N124: 122 | Q124: =IFERROR(SEARCH(#REF!,R124)+ROW()/100000,"") ->  | R124: 575.378.5262
A125: 123 | B125: Ladera Village | C125: 3500 Butler Ave. | D125: Farmington | E125: 87401 | F125: 505.326.1687 | G125: 123 | H125: 3500 Butler Ave. | I125: 123 | J125: 1.00125 | K125: 3500 Butler Ave. | N125: 123 | Q125: =IFERROR(SEARCH(#REF!,R125)+ROW()/100000,"") ->  | R125: 505.326.1687
A126: 124 | B126: Laguna Homes | C126: 13 Rodeo Drive | D126: Laguna | E126: 87026 | F126: 505.552.6430 | G126: 124 | H126: 13 Rodeo Drive | I126: 124 | J126: 1.00126 | K126: 13 Rodeo Drive | N126: 124 | Q126: =IFERROR(SEARCH(#REF!,R126)+ROW()/100000,"") ->  | R126: 505.552.6430
A127: 125 | B127: Las Brisas | C127: 1201 San Pedro Drive SE | D127: Albuquerque | E127: 87108 | F127: 505.255.4252 | G127: 125 | H127: 1201 San Pedro Drive SE | I127: 125 | J127: 1.00127 | K127: 1201 San Pedro Drive SE | N127: 125 | Q127: =IFERROR(SEARCH(#REF!,R127)+ROW()/100000,"") ->  | R127: 505.255.4252
A128: 126 | B128: Las Palomas | C128: 2001 Hopewell | D128: Santa Fe | E128: 87505 | F128: 505.278.6220 | G128: 126 | H128: 2001 Hopewell | I128: 126 | J128: 1.00128 | K128: 2001 Hopewell | N128: 126 | Q128: =IFERROR(SEARCH(#REF!,R128)+ROW()/100000,"") ->  | R128: 505.278.6220
A129: 127 | B129: Lifestyle Apartments | C129: 4920 Union Way NE | D129: Albuquerque | E129: 87107 | F129: 505.341.3540 | G129: 127 | H129: 4920 Union Way NE | I129: 127 | J129: 1.00129 | K129: 4920 Union Way NE | N129: 127 | Q129: =IFERROR(SEARCH(#REF!,R129)+ROW()/100000,"") ->  | R129: 505.341.3540
A130: 128 | B130: Lintero | C130: 2711 N. Leslie | D130: Silver City | E130: 88061 | F130: 575.388.2519 | G130: 128 | H130: 2711 N. Leslie | I130: 128 | J130: 1.0013 | K130: 2711 N. Leslie | N130: 128 | Q130: =IFERROR(SEARCH(#REF!,R130)+ROW()/100000,"") ->  | R130: 575.388.2519
A131: 129 | B131: Lolomas Senior Housing | C131: 1500 Mitchell St. | D131: Clovis | E131: 88101 | F131: 575.763.9575 | G131: 129 | H131: 1500 Mitchell St. | I131: =IFERROR(RANK(J131,$J$3:$J$279,1),"") -> 129 | J131: =IFERROR(SEARCH($C$1,K131)+ROW()/100000,"") -> 1.00131 | K131: 1500 Mitchell St. | N131: 129 | P131: =IFERROR(RANK(Q131,$Q$3:$Q$279,1),"") ->  | Q131: =IFERROR(SEARCH(#REF!,R131)+ROW()/100000,"") ->  | R131: 575.763.9575
A132: 130 | B132: Loma Del Norte | C132: 940 N. Fourth St. | D132: Anthony | E132: 88021 | F132: 575.882.2282 | G132: 130 | H132: =IFERROR(VLOOKUP(G132,$I$3:$K$279,3,TRUE),"") -> 940 N. Fourth St. | I132: 130 | J132: 1.00132 | K132: 940 N. Fourth St. | N132: 130 | Q132: =IFERROR(SEARCH(#REF!,R132)+ROW()/100000,"") ->  | R132: 575.882.2282
A133: 131 | B133: Loma Parda | C133: 1200 Camino de La Cruz | D133: Taos | E133: 87571 | F133: 575.758.4400 | G133: 131 | H133: 1200 Camino de La Cruz | I133: 131 | J133: 1.00133 | K133: 1200 Camino de La Cruz | N133: 131 | Q133: =IFERROR(SEARCH(#REF!,R133)+ROW()/100000,"") ->  | R133: 575.758.4400
A134: 132 | B134: Lomas Gardens | C134: 12601 Lomas Blvd. NE | D134: Albuquerque | E134: 87112 | F134: 505.292.5916 | G134: 132 | H134: 12601 Lomas Blvd. NE | I134: 132 | J134: 1.00134 | K134: 12601 Lomas Blvd. NE | N134: 132 | Q134: =IFERROR(SEARCH(#REF!,R134)+ROW()/100000,"") ->  | R134: 505.292.5916
A135: 133 | B135: Los Alamos Group Home | C135: 2056 Peach St. | D135: Los Alamos | E135: 87544 | F135: 505.662.4703 | G135: 133 | H135: 2056 Peach St. | I135: 133 | J135: 1.00135 | K135: 2056 Peach St. | N135: 133 | Q135: =IFERROR(SEARCH(#REF!,R135)+ROW()/100000,"") ->  | R135: 505.662.4703
A136: 134 | B136: Los Altos | C136: 2301 El Camino Real | D136: Las Cruces | E136: 88007 | F136: 575.525.8535 | G136: 134 | H136: 2301 El Camino Real | I136: 134 | J136: 1.00136 | K136: 2301 El Camino Real | N136: 134 | Q136: =IFERROR(SEARCH(#REF!,R136)+ROW()/100000,"") ->  | R136: 575.525.8535
A137: 135 | B137: Luna Lodge | C137: 9119 Central Ave. NE | D137: Albuquerque | E137: 87123 | F137: 505.508.1220 | G137: 135 | H137: 9119 Central Ave. NE | I137: 135 | J137: 1.00137 | K137: 9119 Central Ave. NE | N137: 135 | Q137: =IFERROR(SEARCH(#REF!,R137)+ROW()/100000,"") ->  | R137: 505.508.1220
A138: 136 | B138: Main Street Townhomes | C138: 3205 N. Main St. | D138: Clovis | E138: 88101 | F138: 575.769.2490 | G138: 136 | H138: 3205 N. Main St. | I138: 136 | J138: 1.00138 | K138: 3205 N. Main St. | N138: 136 | Q138: =IFERROR(SEARCH(#REF!,R138)+ROW()/100000,"") ->  | R138: 575.769.2490
A139: 137 | B139: Manzano Mesa | C139: 700 Eubank Blvd. SE | D139: Albuquerque | E139: 87123 | F139: 505.332.7200 | G139: 137 | H139: 700 Eubank Blvd. SE | I139: 137 | J139: 1.00139 | K139: 700 Eubank Blvd. SE | N139: 137 | Q139: =IFERROR(SEARCH(#REF!,R139)+ROW()/100000,"") ->  | R139: 505.332.7200
A140: 138 | B140: Marbella | C140: 6801 Glenrio Road NW | D140: Albuquerque | E140: 87121 | F140: 505.839.0600 | G140: 138 | H140: 6801 Glenrio Road NW | I140: 138 | J140: 1.0014 | K140: 6801 Glenrio Road NW | N140: 138 | Q140: =IFERROR(SEARCH(#REF!,R140)+ROW()/100000,"") ->  | R140: 505.839.0600
A141: 139 | B141: Mariposa Village | C141: 901 S. Tennyson | D141: Deming | E141: 88030 | F141: 575.544.0087 | G141: 139 | H141: 901 S. Tennyson | I141: 139 | J141: 1.00141 | K141: 901 S. Tennyson | N141: 139 | Q141: =IFERROR(SEARCH(#REF!,R141)+ROW()/100000,"") ->  | R141: 575.544.0087
A142: 140 | B142: Meadow Vista Homes | C142: 329 Meadow Vista Road | D142: Sunland Park | E142: 88063 | F142: 575.874.3453 | G142: 140 | H142: 329 Meadow Vista Road | I142: 140 | J142: 1.00142 | K142: 329 Meadow Vista Road | N142: 140 | Q142: =IFERROR(SEARCH(#REF!,R142)+ROW()/100000,"") ->  | R142: 575.874.3453
A143: 141 | B143: Mesa Del Norte | C143: 650 San Ildefonso Road | D143: Los Alamos | E143: 87544 | F143: 505.661.8474 | G143: 141 | H143: 650 San Ildefonso Road | I143: 141 | J143: 1.00143 | K143: 650 San Ildefonso Road | N143: 141 | Q143: =IFERROR(SEARCH(#REF!,R143)+ROW()/100000,"") ->  | R143: 505.661.8474
A144: 142 | B144: Mesa Ridge | C144: 3501 Atrisco NW | D144: Albuquerque | E144: 87120 | F144: 505.836.1924 | G144: 142 | H144: 3501 Atrisco NW | I144: 142 | J144: 1.00144 | K144: 3501 Atrisco NW | N144: 142 | Q144: =IFERROR(SEARCH(#REF!,R144)+ROW()/100000,"") ->  | R144: 505.836.1924
A145: 143 | B145: Mesa Verde | C145: 502 S. Wyoming Ave. | D145: Roswell | E145: 88203 | F145: 575.622.4944 | G145: 143 | H145: 502 S. Wyoming Ave. | I145: 143 | J145: 1.00145 | K145: 502 S. Wyoming Ave. | N145: 143 | O145: =IFERROR(VLOOKUP(N145,P145:R421,3,FALSE),"") ->  | Q145: =IFERROR(SEARCH(#REF!,R145)+ROW()/100000,"") ->  | R145: 575.622.4944
A146: 144 | B146: Mesa Village | C146: 1750 E. Elm St. | D146: Farmington | E146: 87401 | F146: 505.564.2570 | G146: 144 | H146: 1750 E. Elm St. | I146: 144 | J146: 1.00146 | K146: 1750 E. Elm St. | N146: 144 | Q146: =IFERROR(SEARCH(#REF!,R146)+ROW()/100000,"") ->  | R146: 505.564.2570
A147: 145 | B147: Mesquite Village | C147: 412 S. Ave. F | D147: Texico | E147: 88135 | F147: 575.769.2490 | G147: 145 | H147: 412 S. Ave. F | I147: 145 | J147: 1.00147 | K147: 412 S. Ave. F | N147: 145 | Q147: =IFERROR(SEARCH(#REF!,R147)+ROW()/100000,"") ->  | R147: 575.769.2490
A148: 146 | B148: Mesquite Village - LC | C148: 1851 N. Mesquite | D148: Las Cruces | E148: 88001 | F148: 575.541.5979 | G148: 146 | H148: 1851 N. Mesquite | I148: 146 | J148: 1.00148 | K148: 1851 N. Mesquite | N148: 146 | Q148: =IFERROR(SEARCH(#REF!,R148)+ROW()/100000,"") ->  | R148: 575.541.5979
A149: 147 | B149: Mira Vista Villas | C149: 2141 N. Solano Drive | D149: Las Cruces | E149: 88001 | F149: 575.647.8444 | G149: 147 | H149: 2141 N. Solano Drive | I149: 147 | J149: 1.00149 | K149: 2141 N. Solano Drive | N149: 147 | Q149: =IFERROR(SEARCH(#REF!,R149)+ROW()/100000,"") ->  | R149: 575.647.8444
A150: 148 | B150: Mission La Posada | C150: 805 Hueco St. | D150: Carlsbad | E150: 88220 | F150: 575.885.8204 | G150: 148 | H150: 805 Hueco St. | I150: 148 | J150: 1.0015 | K150: 805 Hueco St. | N150: 148 | Q150: =IFERROR(SEARCH(#REF!,R150)+ROW()/100000,"") ->  | R150: 575.885.8204
A151: 149 | B151: Montana Meadows | C151: 201 Montana Ave. | D151: Las Cruces | E151: 88005 | F151: 575.524.1873 | G151: 149 | H151: 201 Montana Ave. | I151: 149 | J151: 1.00151 | K151: 201 Montana Ave. | N151: 149 | Q151: =IFERROR(SEARCH(#REF!,R151)+ROW()/100000,"") ->  | R151: 575.524.1873
A152: 150 | B152: Montana Senior Village | C152: 370 E. Montana | D152: Las Cruces | E152: 88005 | F152: 575.647.0918 | G152: 150 | H152: 370 E. Montana | I152: 150 | J152: 1.00152 | K152: 370 E. Montana | N152: 150 | O152: =IFERROR(VLOOKUP(N152,P152:R429,3,FALSE),"") ->  | Q152: =IFERROR(SEARCH(#REF!,R152)+ROW()/100000,"") ->  | R152: 575.647.0918
A153: 151 | B153: Monte Vista | C153: 500 Mountain View Drive | D153: Las Vegas | E153: 87701 | F153: 505.454.0098 | G153: 151 | H153: 500 Mountain View Drive | I153: 151 | J153: 1.00153 | K153: 500 Mountain View Drive | N153: 151 | Q153: =IFERROR(SEARCH(#REF!,R153)+ROW()/100000,"") ->  | R153: 505.454.0098
A154: 152 | B154: Montgomery Manor | C154: 4301 Morris St. NE | D154: Albuquerque | E154: 87111 | F154: 505.296.9023 | G154: 152 | H154: 4301 Morris St. NE | I154: 152 | J154: 1.00154 | K154: 4301 Morris St. NE | N154: 152 | Q154: =IFERROR(SEARCH(#REF!,R154)+ROW()/100000,"") ->  | R154: 505.296.9023
A155: 153 | B155: Mountain View | C155: 1515 Columbia St. SE | D155: Albuquerque | E155: 87106 | F155: 505.266.5455 | G155: 153 | H155: 1515 Columbia St. SE | I155: 153 | J155: 1.00155 | K155: 1515 Columbia St. SE | N155: 153 | Q155: =IFERROR(SEARCH(#REF!,R155)+ROW()/100000,"") ->  | R155: 505.266.5455
A156: 154 | B156: Mountain View Estates | C156: 1101 Shelly Drive | D156: Deming | E156: 88030 | F156: 575.546.6619 | G156: 154 | H156: 1101 Shelly Drive | I156: 154 | J156: 1.00156 | K156: 1101 Shelly Drive | N156: 154 | Q156: =IFERROR(SEARCH(#REF!,R156)+ROW()/100000,"") ->  | R156: 575.546.6619
A157: 155 | B157: Mountain View Senior | C157: 1600 16th St. | D157: Silver City | E157: 88061 | F157: 575.388.1214 | G157: 155 | H157: 1600 16th St. | I157: 155 | J157: 1.00157 | K157: 1600 16th St. | N157: 155 | Q157: =IFERROR(SEARCH(#REF!,R157)+ROW()/100000,"") ->  | R157: 575.388.1214
A158: 156 | B158: Mountain Vista | C158: 600 San Ildefonso Road | D158: Los Alamos | E158: 87544 | F158: 505.662.5417 | G158: 156 | H158: 600 San Ildefonso Road | I158: 156 | J158: 1.00158 | K158: 600 San Ildefonso Road | N158: 156 | Q158: =IFERROR(SEARCH(#REF!,R158)+ROW()/100000,"") ->  | R158: 505.662.5417
A159: 157 | B159: Mundo Ranch | C159: 300 N. Mundo Ranch Dr | D159: Dulce | E159: 87528 | F159: 575.759.2029 | G159: 157 | H159: 300 N. Mundo Ranch Dr | I159: 157 | J159: 1.00159 | K159: 300 N. Mundo Ranch Dr | N159: 157 | Q159: =IFERROR(SEARCH(#REF!,R159)+ROW()/100000,"") ->  | R159: 575.759.2029
A160: 158 | B160: New Leaf | C160: 1601 E. Marland St. | D160: Hobbs | E160: 88240 | F160: 575.964.1571 | G160: 158 | H160: 1601 E. Marland St. | I160: 158 | J160: 1.0016 | K160: 1601 E. Marland St. | N160: 158 | Q160: =IFERROR(SEARCH(#REF!,R160)+ROW()/100000,"") ->  | R160: 575.964.1571
A161: 159 | B161: New Life Homes | C161: 6600 Delia Road SW | D161: Albuquerque | E161: 87121 | F161: 505.433.5111 | G161: 159 | H161: 6600 Delia Road SW | I161: 159 | J161: 1.00161 | K161: 6600 Delia Road SW | N161: 159 | Q161: =IFERROR(SEARCH(#REF!,R161)+ROW()/100000,"") ->  | R161: 505.433.5111
A162: 160 | B162: North Star | C162: 333 Chico Drive | D162: Las Vegas | E162: 87701 | F162: 505.425.5060 | G162: 160 | H162: 333 Chico Drive | I162: 160 | J162: 1.00162 | K162: 333 Chico Drive | N162: 160 | Q162: =IFERROR(SEARCH(#REF!,R162)+ROW()/100000,"") ->  | R162: 505.425.5060
A163: 161 | B163: Northgate Village | C163: 2500 W. Apache St. | D163: Farmington | E163: 87401 | F163: 505.327.4197 | G163: 161 | H163: 2500 W. Apache St. | I163: 161 | J163: 1.00163 | K163: 2500 W. Apache St. | N163: 161 | Q163: =IFERROR(SEARCH(#REF!,R163)+ROW()/100000,"") ->  | R163: 505.327.4197
A164: 162 | B164: Nuevo Atrisco | C164: 201 Unser Blvd. NW | D164: Albuquerque | E164: 87121 | F164: 505.299.2370 | G164: 162 | H164: 201 Unser Blvd. NW | I164: 162 | J164: 1.00164 | K164: 201 Unser Blvd. NW | N164: 162 | Q164: =IFERROR(SEARCH(#REF!,R164)+ROW()/100000,"") ->  | R164: 505.299.2370
A165: 163 | B165: Otero Village | C165: 2553 E. First St. | D165: Alamogordo | E165: 88310 | F165: 575.437.0498 | G165: 163 | H165: 2553 E. First St. | I165: 163 | J165: 1.00165 | K165: 2553 E. First St. | N165: 163 | Q165: =IFERROR(SEARCH(#REF!,R165)+ROW()/100000,"") ->  | R165: 575.437.0498
A166: 164 | B166: Park Place | C166: 920 E. Michigan Drive | D166: Hobbs | E166: 88240 | F166: 575.397.2195 | G166: 164 | H166: 920 E. Michigan Drive | I166: 164 | J166: 1.00166 | K166: 920 E. Michigan Drive | N166: 164 | Q166: =IFERROR(SEARCH(#REF!,R166)+ROW()/100000,"") ->  | R166: 575.397.2195
A167: 165 | B167: Parkside Terrace | C167: 300 E. White St. | D167: Hobbs | E167: 88240 | F167: 575.408.8851 | G167: 165 | H167: 300 E. White St. | I167: 165 | J167: 1.00167 | K167: 300 E. White St. | N167: 165 | Q167: =IFERROR(SEARCH(#REF!,R167)+ROW()/100000,"") ->  | R167: 575.408.8851
A168: 166 | B168: Parkside Village | C168: 1200 N. Sycamore St. | D168: Clovis | E168: 88101 | F168: 575.769.2490 | G168: 166 | H168: 1200 N. Sycamore St. | I168: 166 | J168: 1.00168 | K168: 1200 N. Sycamore St. | N168: 166 | Q168: =IFERROR(SEARCH(#REF!,R168)+ROW()/100000,"") ->  | R168: 575.769.2490
A169: 167 | B169: Pasa Tiempo | C169: 664 Alta Vista St. | D169: Santa Fe | E169: 87507 | F169: 505.988.2859 | G169: 167 | H169: 664 Alta Vista St. | I169: 167 | J169: 1.00169 | K169: 664 Alta Vista St. | N169: 167 | Q169: =IFERROR(SEARCH(#REF!,R169)+ROW()/100000,"") ->  | R169: 505.988.2859
A170: 168 | B170: Paseo del Oro | C170: 4325 Paseo Del Oro Circle | D170: Las Cruces | E170: 88007 | F170: 575.522.3253 | G170: 168 | H170: 4325 Paseo Del Oro Circle | I170: 168 | J170: 1.0017 | K170: 4325 Paseo Del Oro Circle | N170: 168 | Q170: =IFERROR(SEARCH(#REF!,R170)+ROW()/100000,"") ->  | R170: 575.522.3253
A171: 169 | B171: Paseo del Sol - ABQ | C171: 291 El Pueblo Road NW | D171: Los Ranchos de Albuquerque | E171: 87114 | F171: 505.897.8356 | G171: 169 | H171: 291 El Pueblo Road NW | I171: 169 | J171: 1.00171 | K171: 291 El Pueblo Road NW | N171: 169 | Q171: =IFERROR(SEARCH(#REF!,R171)+ROW()/100000,"") ->  | R171: 505.897.8356
A172: 170 | B172: Paseo Del Sol - SF | C172: 4551 Paseo Del Sol | D172: Santa Fe | E172: 87507 | F172: 505.473.5980 | G172: 170 | H172: 4551 Paseo Del Sol | I172: 170 | J172: 1.00172 | K172: 4551 Paseo Del Sol | N172: 170 | Q172: =IFERROR(SEARCH(#REF!,R172)+ROW()/100000,"") ->  | R172: 505.473.5980
A173: 171 | B173: Pinon Hills | C173: 2811 Dairy Drive | D173: Gallup | E173: 87301 | F173: 505.722.6025 | G173: 171 | H173: 2811 Dairy Drive | I173: 171 | J173: 1.00173 | K173: 2811 Dairy Drive | N173: 171 | Q173: =IFERROR(SEARCH(#REF!,R173)+ROW()/100000,"") ->  | R173: 505.722.6025
A174: 172 | B174: Pinon Palmer Rental | C174: 165 Bull Pen Road | D174: Mescalero | E174: 88340 | F174: 575.464.4708 | G174: 172 | H174: 165 Bull Pen Road | I174: 172 | J174: 1.00174 | K174: 165 Bull Pen Road | N174: 172 | Q174: =IFERROR(SEARCH(#REF!,R174)+ROW()/100000,"") ->  | R174: 575.464.4708
A175: 173 | B175: Pinos Blancos | C175: 600 W. Blanco Blvd. | D175: Bloomfield | E175: 87413 | F175: 505.632.3206 | G175: 173 | H175: 600 W. Blanco Blvd. | I175: 173 | J175: 1.00175 | K175: 600 W. Blanco Blvd. | N175: 173 | Q175: =IFERROR(SEARCH(#REF!,R175)+ROW()/100000,"") ->  | R175: 505.632.3206
A176: 174 | B176: Playa | C176: 142 Linda Vista Drive | D176: Sunland Park | E176: 88063 | F176: 575.589.0498 | G176: 174 | H176: 142 Linda Vista Drive | I176: 174 | J176: 1.00176 | K176: 142 Linda Vista Drive | N176: 174 | Q176: =IFERROR(SEARCH(#REF!,R176)+ROW()/100000,"") ->  | R176: 575.589.0498
A177: 175 | B177: Plaza Ciudaña | C177: 310 Indian School Road NE | D177: Albuquerque | E177: 87102 | F177: 505.294.2777 | G177: 175 | H177: 310 Indian School Road NE | I177: 175 | J177: 1.00177 | K177: 310 Indian School Road NE | N177: 175 | Q177: =IFERROR(SEARCH(#REF!,R177)+ROW()/100000,"") ->  | R177: 505.294.2777
A178: 176 | B178: Plaza David Chavez | C178: 2821 Mountain Road NW | D178: Albuquerque | E178: 87104 | F178: 505.242.1361 | G178: 176 | H178: 2821 Mountain Road NW | I178: 176 | J178: 1.00178 | K178: 2821 Mountain Road NW | N178: 176 | Q178: =IFERROR(SEARCH(#REF!,R178)+ROW()/100000,"") ->  | R178: 505.242.1361
A179: 177 | B179: Plaza Feliz | C179: 517 San Pablo St. SE | D179: Albuquerque | E179: 87108 | F179: 505.255.3030 | G179: 177 | H179: 517 San Pablo St. SE | I179: 177 | J179: 1.00179 | K179: 517 San Pablo St. SE | N179: 177 | Q179: =IFERROR(SEARCH(#REF!,R179)+ROW()/100000,"") ->  | R179: 505.255.3030
A180: 178 | B180: Polk Avenue | C180: 214 W. Polk Ave. | D180: Lovington | E180: 88260 | F180: 575.396.6129 | G180: 178 | H180: 214 W. Polk Ave. | I180: 178 | J180: 1.0018 | K180: 214 W. Polk Ave. | N180: 178 | Q180: =IFERROR(SEARCH(#REF!,R180)+ROW()/100000,"") ->  | R180: 575.396.6129
A181: 179 | B181: Portales Estates | C181: 1903 S. Avenue I | D181: Portales | E181: 88130 | F181: 575.359.0610 | G181: 179 | H181: 1903 S. Avenue I | I181: 179 | J181: 1.00181 | K181: 1903 S. Avenue I | N181: 179 | Q181: =IFERROR(SEARCH(#REF!,R181)+ROW()/100000,"") ->  | R181: 575.359.0610
A182: 180 | B182: Quay Apartments | C182: 702 W. Sunset Ave. | D182: Tucumcari | E182: 88401 | F182: 575.461.3555 | G182: 180 | H182: 702 W. Sunset Ave. | I182: 180 | J182: 1.00182 | K182: 702 W. Sunset Ave. | N182: 180 | Q182: =IFERROR(SEARCH(#REF!,R182)+ROW()/100000,"") ->  | R182: 575.461.3555
A183: 181 | B183: Ranchitos Village | C183: 6811 Ranchitos Road NE | D183: Albuquerque | E183: 87109 | F183: 505.822.9159 | G183: 181 | H183: 6811 Ranchitos Road NE | I183: 181 | J183: 1.00183 | K183: 6811 Ranchitos Road NE | N183: 181 | Q183: =IFERROR(SEARCH(#REF!,R183)+ROW()/100000,"") ->  | R183: 505.822.9159
A184: 182 | B184: Red Lake Acres | C184: PO Box 1277 | D184: Navajo | E184: 87328 | F184: 505.777.2480 | G184: 182 | H184: PO Box 1277 | I184: 182 | J184: 1.00184 | K184: PO Box 1277 | N184: 182 | Q184: =IFERROR(SEARCH(#REF!,R184)+ROW()/100000,"") ->  | R184: 505.777.2480
A185: 183 | B185: Rio Abajo | C185: 1485 E. Second Ave. | D185: T or C | E185: 87901 | F185: 575.894.2875 | G185: 183 | H185: 1485 E. Second Ave. | I185: 183 | J185: 1.00185 | K185: 1485 E. Second Ave. | N185: 183 | Q185: =IFERROR(SEARCH(#REF!,R185)+ROW()/100000,"") ->  | R185: 575.894.2875
A186: 184 | B186: Rio Mimbres | C186: 1608 S. Tin St. | D186: Deming | E186: 88030 | F186: 575.546.8257 | G186: 184 | H186: 1608 S. Tin St. | I186: 184 | J186: 1.00186 | K186: 1608 S. Tin St. | N186: 184 | Q186: =IFERROR(SEARCH(#REF!,R186)+ROW()/100000,"") ->  | R186: 575.546.8257
A187: 185 | B187: Rio Pecos Estates | C187: 1005 McCarley Loop | D187: Santa Rosa | E187: 88435 | F187: 575.472.2272 | G187: 185 | H187: 1005 McCarley Loop | I187: 185 | J187: 1.00187 | K187: 1005 McCarley Loop | N187: 185 | Q187: =IFERROR(SEARCH(#REF!,R187)+ROW()/100000,"") ->  | R187: 575.472.2272
A188: 186 | B188: Rio Verde | C188: 2291 Highway 304 | D188: Belen | E188: 87002 | F188: 505.864.9558 | G188: 186 | H188: 2291 Highway 304 | I188: 186 | J188: 1.00188 | K188: 2291 Highway 304 | N188: 186 | Q188: =IFERROR(SEARCH(#REF!,R188)+ROW()/100000,"") ->  | R188: 505.864.9558
A189: 187 | B189: Rio Vista | C189: 770 Juan Tabo Blvd. NE | D189: Albuquerque | E189: 87123 | F189: 505.299.9119 | G189: 187 | H189: 770 Juan Tabo Blvd. NE | I189: 187 | J189: 1.00189 | K189: 770 Juan Tabo Blvd. NE | N189: 187 | O189: =IFERROR(VLOOKUP(N189,P189:R467,3,FALSE),"") ->  | Q189: =IFERROR(SEARCH(#REF!,R189)+ROW()/100000,"") ->  | R189: 505.299.9119
A190: 188 | B190: Rio Volcan | C190: 1919 Ladera Drive NW | D190: Albuquerque | E190: 87120 | F190: 505.836.0902 | G190: 188 | H190: 1919 Ladera Drive NW | I190: 188 | J190: 1.0019 | K190: 1919 Ladera Drive NW | N190: 188 | Q190: =IFERROR(SEARCH(#REF!,R190)+ROW()/100000,"") ->  | R190: 505.836.0902
A191: 189 | B191: Robledo Ridge | C191: 1519 Medina Drive | D191: Las Cruces | E191: 88007 | F191: 575.556.9820 | G191: 189 | H191: 1519 Medina Drive | I191: 189 | J191: 1.00191 | K191: 1519 Medina Drive | N191: 189 | Q191: =IFERROR(SEARCH(#REF!,R191)+ROW()/100000,"") ->  | R191: 575.556.9820
A192: 190 | B192: Roselawn Manor | C192: 800 S. Roselawn Ave. | D192: Artesia | E192: 88210 | F192: 575.736.1169 | G192: 190 | H192: 800 S. Roselawn Ave. | I192: 190 | J192: 1.00192 | K192: 800 S. Roselawn Ave. | N192: 190 | Q192: =IFERROR(SEARCH(#REF!,R192)+ROW()/100000,"") ->  | R192: 575.736.1169
A193: 191 | B193: Roswell Summit | C193: 1100 S. Wyoming | D193: Roswell | E193: 88203 | F193: 575.622.4646 | G193: 191 | H193: 1100 S. Wyoming | I193: 191 | J193: 1.00193 | K193: 1100 S. Wyoming | N193: 191 | Q193: =IFERROR(SEARCH(#REF!,R193)+ROW()/100000,"") ->  | R193: 575.622.4646
A194: 192 | B194: Ruth Visage | C194: 1101 W. Fir St. | D194: Portales | E194: 88130 | F194: 575.356.6562 | G194: 192 | H194: 1101 W. Fir St. | I194: 192 | J194: 1.00194 | K194: 1101 W. Fir St. | N194: 192 | Q194: =IFERROR(SEARCH(#REF!,R194)+ROW()/100000,"") ->  | R194: 575.356.6562
A195: 193 | B195: Saddlecreek | C195: 1901 S. Sunset Ave. | D195: Roswell | E195: 88203 | F195: 575.622.3042 | G195: 193 | H195: 1901 S. Sunset Ave. | I195: =IFERROR(RANK(J195,$J$3:$J$279,1),"") -> 193 | J195: =IFERROR(SEARCH($C$1,K195)+ROW()/100000,"") -> 1.00195 | K195: 1901 S. Sunset Ave. | N195: 193 | P195: =IFERROR(RANK(Q195,$Q$3:$Q$279,1),"") ->  | Q195: =IFERROR(SEARCH(#REF!,R195)+ROW()/100000,"") ->  | R195: 575.622.3042
A196: 194 | B196: Sage | C196: 210 Rudy Drive | D196: Gallup | E196: 87301 | F196: 505.863.4111 | G196: 194 | H196: =IFERROR(VLOOKUP(G196,$I$3:$K$279,3,TRUE),"") -> 210 Rudy Drive | I196: 194 | J196: 1.00196 | K196: 210 Rudy Drive | N196: 194 | Q196: =IFERROR(SEARCH(#REF!,R196)+ROW()/100000,"") ->  | R196: 505.863.4111
A197: 195 | B197: Sagebrush Place | C197: 650 Dani Drive | D197: Gallup | E197: 87301 | F197: 505.722.7454 | G197: 195 | H197: 650 Dani Drive | I197: 195 | J197: 1.00197 | K197: 650 Dani Drive | N197: 195 | Q197: =IFERROR(SEARCH(#REF!,R197)+ROW()/100000,"") ->  | R197: 505.722.7454
A198: 196 | B198: Saint Anthony Plaza | C198: 1750 Indian School Road NW | D198: Albuquerque | E198: 87104 | F198: 505.766.5619 | G198: 196 | H198: 1750 Indian School Road NW | I198: 196 | J198: 1.00198 | K198: 1750 Indian School Road NW | N198: 196 | Q198: =IFERROR(SEARCH(#REF!,R198)+ROW()/100000,"") ->  | R198: 505.766.5619
A199: 197 | B199: San Juan | C199: 2614 E. 20th St. | D199: Farmington | E199: 87401 | F199: 505.325.8590 | G199: 197 | H199: 2614 E. 20th St. | I199: 197 | J199: 1.00199 | K199: 2614 E. 20th St. | N199: 197 | Q199: =IFERROR(SEARCH(#REF!,R199)+ROW()/100000,"") ->  | R199: 505.325.8590
A200: 198 | B200: San Miguel Senior | C200: 2710 Collins Drive | D200: Las Vegas | E200: 87701 | F200: 505.425.5060 | G200: 198 | H200: 2710 Collins Drive | I200: 198 | J200: 1.002 | K200: 2710 Collins Drive | N200: 198 | Q200: =IFERROR(SEARCH(#REF!,R200)+ROW()/100000,"") ->  | R200: 505.425.5060
... 78 more rows

Sheet Lighting SOW
A1: App # (office use only): | C1: =IF('Applicant Info'!J3="","",'Applicant Info'!J3) ->  | D1: Please complete all info in the white spaces below:
A2: Business Name: | C2: =IF('Applicant Info'!A22="","",'Applicant Info'!A22) ->  | G2: Date: | H2: =IF('Applicant Info'!K6="", IF('Applicant Info'!K8="","",'Applicant Info'!K8),'Applicant Info'!K6) -> 
A3: Prepared by: | G3: Phone: | H3: =IF('Applicant Info'!D27="","",'Applicant Info'!D27) ->  | Z3: Residential lighting daily hours of use by room type
A4: Address: | C4: =IF('Applicant Info'!E29="","",'Applicant Info'!E29 &" "&'Applicant Info'!E30 &" " &'Applicant Info'!I30 &" "&'Applicant Info'!K30) ->  | G4: Email: | H4: =IF('Applicant Info'!$E$28="","",'Applicant Info'!$E$28) ->  | S4: Watts controlled (Interior ONLY) | Z4: Room Type | AA4: Operating Hours per Week
A5: Lighting Scope of Work / Building Audit Form | S5: Occupancy | T5: Daylighting | U5: Annual Savings* | Y5: Bathroom | Z5: Bathroom | AA5: 24.5 | AB5: =AA5/7 -> 3.5
A6: Existing Lighting | K6: Proposed Lighting | S6: =SUMIF(S8:S179,"YES",R8:R179) -> 0 | T6: =SUMIF(T8:T179,"YES",R8:R179) -> 0 | U6: *calculated per figures entered on this form; savings are NOT guaranteed | Y6: Bedroom | Z6: Bedroom | AA6: 23.1 | AB6: =AA6/7 -> 3.3
A7: LOCATION | B7: LOCATION (Description) | C7: Fixture Type | D7: Lamp or fixture type | E7: Ballast | F7: Lamps per Fixture | G7: Watts per Fixture | H7: Fixture Qty | I7: Total W | J7: Operating Hours per Week | K7: New or Retrofit | L7: Fixture Type | M7: DLC or Energy Star Qualified? | N7: Fixture or Lamp Model Number | O7: Lamps per Fixture | P7: Watts per Fixture | Q7: Fixture Qty | R7: Total W | S7: Occupancy Control? (Y / N) | T7: Occupancy Control? (Y / N) | U7: Savings (W) | V7: Savings (kWh) | X7: 0 | Y7: Carport | Z7: Closet | AA7: 84 | AB7: 12
I8: =IF(B8="","",H8*G8) ->  | J8: =IF(A8="","",VLOOKUP(A8,$Z$5:$AA$19,2,FALSE)) ->  | R8: =IF(ISBLANK(M8), "",P8*Q8) ->  | U8: =IF(OR(I8="",R8=""),"",I8-R8) ->  | V8: =IF(OR(J8="",U8=""),"",J8*U8*52/1000) ->  | Y8: Closet | Z8: Dining Room | AA8: 17.5 | AB8: 2.5
J9: =IF(A9="","",VLOOKUP(A9,$Z$5:$AA$19,2,FALSE)) ->  | U9: =IF(OR(I9="",R9=""),"",I9-R9) ->  | V9: =IF(OR(J9="",U9=""),"",J9*U9*52/1000) ->  | Y9: Dining Room | Z9: Exterior | AA9: 17.5 | AB9: 2.5
X10: 0 | Y10: Entry | Z10: Family Room | AA10: 16.8 | AB10: 2.4
Y11: Family Room | Z11: Garage | AA11: 16.1 | AB11: 2.3
Y12: Garage | Z12: Hall/Entry | AA12: 13.3 | AB12: 1.9
Y13: Gym | Z13: Kitchen | AA13: 11.2 | AB13: 1.6
Y14: Hall/Entry | Z14: Laundry Room | AA14: 10.5 | AB14: 1.5
Y15: Kitchen | Z15: Living Room | AA15: 10.5 | AB15: 1.5
Y16: Laundry Room | Z16: Office | AA16: 8.4 | AB16: 1.2
Y17: Living Room | Z17: Other | AA17: 9.8 | AB17: 1.4
Y18: Mailbox Area | Z18: Utility Room | AA18: 8.4 | AB18: 1.2
Y19: Office | Z19: 24/7 | AA19: 168 | AB19: 24
Y20: Other | Z20: Weighted Average | AA20: 15.7 | AB20: 2.242857143
Y21: Patio / Balcony | AB21: 0
Y22: Pool Area | AB22: 0
Y23: Storage / Closet | AB23: 0
Y24: Utility Room | AB24: 0
I73: =IF(B73="","",H73*G73) ->  | J73: =IF(A73="","",VLOOKUP(A73,$Z$5:$AA$19,2,FALSE)) ->  | R73: =IF(ISBLANK(M73), "",P73*Q73) ->  | U73: =IF(OR(I73="",R73=""),"",I73-R73) ->  | V73: =IF(OR(J73="",U73=""),"",J73*U73*52/1000) -> 
I137: =IF(B137="","",H137*G137) ->  | J137: =IF(A137="","",VLOOKUP(A137,$Z$5:$AA$19,2,FALSE)) ->  | R137: =IF(ISBLANK(M137), "",P137*Q137) ->  | U137: =IF(OR(I137="",R137=""),"",I137-R137) ->  | V137: =IF(OR(J137="",U137=""),"",J137*U137*52/1000) -> 
A144: Room Type | B144: Type | D144: Ballast | F144: Lamps | H144: New or Retro | J144: Control | K144: DLC Energy Star Qualified?
A145: Kitchen | B145: Incandescent | K145: DLC
A146: Living Room | B146: Pin Fluorescent | D146: Magnetic | F146: 1 | H146: New Fixture | J146: YES | K146: EnergyStar
A147: Outdoor | B147: Screw-in CFL | D147: Electronic | F147: 2 | H147: Retrofit Kit | J147: NO
A148: Family Room | B148: Hardwired CFL | D148: Pulse-start | F148: 3 | H148: Lamp to Lamp
A149: Garage | B149: 2x4 Troffer | D149: N/A | F149: 4 | H149: Remove
A150: Utility Room | B150: 2x2 Troffer | F150: 5
A151: Dining Room | B151: 2' Strip | F151: 6
A152: Office | B152: 4' Strip | F152: 7
A153: Bedroom | B153: 6' Strip | F153: 8
A154: Bathroom | B154: 8' Strip | F154: 9
A155: Hall/Entry | B155: Wallpack | F155: 10
A156: Laundry Room | B156: Pole
A157: Closet | B157: HID
A158: Other | B158: Exit INC
B159: HighBay T8
B160: HighBay T5
B161: Sign
B162: Other
B165: Type2
B166: LED Screw-in
B167: LED T8 Lamp
B168: Pin LED
B169: LED 2x4 Troffer
B170: LED 2x2 Troffer
B171: 2' LED Strip
B172: 4' LED Strip
B173: 6' LED Strip
B174: 8' LED Strip
B175: LED Wallpack
B176: LED Pole Fixture
B177: LED Sign
B178: Other

Sheet Lighting
B1: MULTIFAMILY LIGHTING RETROFIT INCENTIVES | K1: See specs at the bottom of the page!
A2: Applicant: fill in gray fields
A3: IMPORTANT NOTICE: Only qualified LED lighting is eligible for a rebate. No fluorescent replacements are eligible for rebates. Scope of work is REQUIRED for all lighting projects.
A4: 1. Interior Retrofits | R4: 2022 Changes ----> | T4: Energy Factor
A5: Equipment Type* | J5: Incentive | K5: Unit | M5: # of Units | N5: Incentive Subtotal | O5: Old Incentive | T5: 1.372 | V5: watts reduced | W5: Old $/watt reduced | X5: Old Incentive | Y5: kWh | Z5: Old Cost/kWh | AB5: New $/watt reduced | AC5: New Incentive | AD5: New $/kWh | AE5: Delta | AF5: Incentive W | AG5: kWh W | AH5: 2020 rates
A6: LED Lighting | T6: Fix to Fix | U6: In | V6: 100 | W6: 0.3 | X6: =V6*W6 -> 30 | Y6: =V6*818*T5/1000 -> 112.2296 | Z6: =X6/Y6 -> 0.2673091591 | AB6: 0.32 | AC6: =V6*AB6 -> 32 | AD6: =IF(Y6=0, "0", AC6/Y6) -> 0.2851297697 | AE6: =AD6-Z6 -> 0.01782061061 | AF6: 0.2953952082 | AG6: 0.2865916734 | AH6: 0.09423463104
A7: 20W or less LED Lamp replacing Incandescent less than 75W: Ceiling Fans, Bath Vanity, Track Lights, Recessed Can, Pendants | J7: 2 | K7: LED Lamp | N7: =J7*M7 -> 0 | O7: 2 | U7: Ext | V7: 100 | W7: 0.6 | X7: =V7*W7 -> 60 | Y7: =V7*4192/1000 -> 419.2 | Z7: =X7/Y7 -> 0.143129771 | AB7: 0.63 | AC7: =V7*AB7 -> 63 | AD7: =IF(Y7=0, "0", AC7/Y7) -> 0.1502862595 | AE7: =AD7-Z7 -> 0.00715648855 | AF7: 0.2277392336 | AG7: 0.1641420573 | AH7: 0.1192748092
A8: 20W or less LED Lamp replacing CFL Lamp less than 28W: Ceiling Fans, Vanity, Track Lights, Recessed Can, Pendants | J8: 1 | K8: LED Lamp | N8: =J8*M8 -> 0 | O8: 1 | U8: 24 | V8: 100 | W8: 1.3 | X8: 130 | Y8: =V8*8760/1000 -> 876 | Z8: 0.1484018265 | AB8: 1.37 | AC8: 137 | AD8: 0.1563926941 | AE8: 0.00799086758 | AF8: 0.06018826332 | AG8: 0.05926012659 | AH8: 0.06849315068
A9: LED Exit Signs replacing Incandescent Exit Signs | J9: 10 | K9: LED Sign | N9: =J9*M9 -> 0 | T9: Fix to Retro | U9: In | V9: 100 | W9: 0.25 | X9: 25 | Y9: =V9*818*T5/1000 -> 112.2296 | Z9: 0.2227576326 | AB9: 0.27 | AC9: 27 | AD9: 0.2405782432 | AE9: 0.01782061061 | AF9: 0.04139502914 | AG9: 0.05890014028 | AH9: 0.04711731552
A10: LED Exit Signs replacing CFL Exit Signs | J10: 10 | K10: LED Sign | N10: =J10*M10 -> 0 | P10: 0.1423469353 | U10: Ext | V10: 100 | W10: 0.45 | X10: 45 | Y10: =V10*4192/1000 -> 419.2 | Z10: 0.1073473282 | AB10: 0.48 | AC10: 48 | AD10: 0.1145038168 | AE10: 0.00715648855 | AF10: 0.005633925964 | AG10: 0.005185389619 | AH10: 0.05963740458
A11: LED Open Signs | J11: 20 | K11: LED Sign | N11: =J11*M11 -> 0 | U11: 24 | V11: 100 | W11: 0.9 | X11: 90 | Y11: =V11*8760/1000 -> 876 | Z11: 0.102739726 | AB11: 0.95 | AC11: 95 | AD11: 0.1084474886 | AE11: 0.005707762557 | AF11: 0.1164101134 | AG11: 0.1795344842 | AH11: 0.03424657534
A12: Interior Lighting Controls* | T12: L to L | U12: In | V12: 100 | W12: 0.2 | X12: 20 | Y12: =V12*818*T5/1000 -> 112.2296 | Z12: 0.1782061061 | AB12: 0.21 | AC12: 21 | AD12: 0.1871164114 | AE12: 0.008910305303 | AF12: 0.1248771278 | AG12: 0.1644381947 | AH12: 0.03533798664
A13: Occupancy Sensors | J13: 0.16 | K13: Watts Controlled | N13: =J13*M13 -> 0 | Q13: =N17 -> 0 | U13: Ext | V13: 100 | W13: 0.35 | X13: 35 | Y13: =V13*4192/1000 -> 419.2 | Z13: 0.08349236641 | AB13: 0.37 | AC13: 37 | AD13: 0.08826335878 | AE13: 0.004770992366 | AF13: 0.00618656693 | AG13: 0.007225629765 | AH13: 0.04770992366
A14: Daylighting Sensor Controls | J14: 0.1 | K14: Watts Controlled | N14: =J14*M14 -> 0 | U14: 24 | V14: 100 | W14: 0.7 | X14: 70 | Y14: =V14*8760/1000 -> 876 | Z14: 0.0799086758 | AB14: 0.74 | AC14: 74 | AD14: 0.08447488584 | AE14: 0.004566210046 | AF14: 0.02881852043 | AG14: 0.05339410861 | AH14: 0.02853881279
A16: =IF('Applicant Info'!P13=TRUE,"Income Qualifier Bonus","Total Interior Retrofits Incentives") -> Total Interior Retrofits Incentives | N16: =IF('Applicant Info'!$P$13=TRUE,SUM(N7:N11,N13:N14)*0.1,SUM(N7:N11,N13:N14)) -> 0
A17: Total Interior Retrofits Incentives | N17: =SUM(N7:N11,N13:N14)+N16 -> 0
A18: *Please provide a description of the retrofit, including any lighting layouts, fixture counts or calculation spreadsheets.
A19: ** Interior controls for non apartment units (i.e. Leasing Office, Hall/Entry, Laundry Room, Gym, etc.).
A20: *** A dwelling unit is defined as an interior space that is residential in nature (i.e. Appartments,hotel rooms, dormitories, retirement and senior living communities, etc.).
A21: ****Watts Reduced = old connected wattage - new connected wattage
A24: 2. LED Replacing HID (Lamps, Fixtures & Retrofit kits)
B25: Type of Retrofit | D25: Fixture Replacing Fixture | F25: Lamp Replacing Lamp | H25: Fixture to Retrofit Kit | J25: =IF('Applicant Info'!$P$13=TRUE,"Income Qualifier Bonus","Total Incentive") -> Total Incentive | L25: =IF('Applicant Info'!$P$13=TRUE,"Total Incentive","") -> 
D26: Incentive | E26: Watts Reduced | F26: Incentive | G26: Watts Reduced | H26: Incentive | I26: Watts Reduced | Q26: =L31 -> 
B27: Interior | D27: =AB6 -> 0.32 | E27: =SUMIFS($N$34:$N$48,$B$34:$B$48,$B27,$C$34:$C$48,D$25)-SUMIFS($N$52:$N$66,$B$52:$B$66,$B27,$C$52:$C$66,D$25) -> 0 | F27: =AB12 -> 0.21 | G27: =SUMIFS($N$34:$N$48,$B$34:$B$48,$B27,$C$34:$C$48,F$25)-SUMIFS($N$52:$N$66,$B$52:$B$66,$B27,$C$52:$C$66,F$25) -> 0 | H27: =AB9 -> 0.27 | I27: =SUMIFS($N$34:$N$48,$B$34:$B$48,$B27,$C$34:$C$48,H$25)-SUMIFS($N$52:$N$66,$B$52:$B$66,$B27,$C$52:$C$66,H$25) -> 0 | J27: =IF('Applicant Info'!$P$13=TRUE,ROUND(IF(OR(D27*E27+F27*G27+H27*I27<0,$N$67="",$N$67=0), 0, (D27*E27+F27*G27+H27*I27)*0.1),2),IF(OR(D27*E27+F27*G27+H27*I27<0,$N$67="",$N$67=0), 0, D27*E27+F27*G27+H27*I27)) -> 0 | L27: =IF('Applicant Info'!$P$13=TRUE,IF(OR(D27*E27+F27*G27+H27*I27<0,$N$67="",$N$67=0), 0, D27*E27+F27*G27+H27*I27)+Lighting!J27,"") -> 
B28: Interior 18 Hour | D28: 1 | E28: =SUMIFS($N$34:$N$48,$B$34:$B$48,$B28,$C$34:$C$48,D$25)-SUMIFS($N$52:$N$66,$B$52:$B$66,$B28,$C$52:$C$66,D$25) -> 0 | F28: 0.58 | G28: =SUMIFS($N$34:$N$48,$B$34:$B$48,$B28,$C$34:$C$48,F$25)-SUMIFS($N$52:$N$66,$B$52:$B$66,$B28,$C$52:$C$66,F$25) -> 0 | H28: 0.74 | I28: =SUMIFS($N$34:$N$48,$B$34:$B$48,$B28,$C$34:$C$48,H$25)-SUMIFS($N$52:$N$66,$B$52:$B$66,$B28,$C$52:$C$66,H$25) -> 0 | J28: =IF('Applicant Info'!$P$13=TRUE,ROUND(IF(OR(D28*E28+F28*G28+H28*I28<0,$N$67="",$N$67=0), 0, (D28*E28+F28*G28+H28*I28)*0.1),2),IF(OR(D28*E28+F28*G28+H28*I28<0,$N$67="",$N$67=0), 0, D28*E28+F28*G28+H28*I28)) -> 0 | L28: =IF('Applicant Info'!$P$13=TRUE,IF(OR(D28*E28+F28*G28+H28*I28<0,$N$67="",$N$67=0), 0, D28*E28+F28*G28+H28*I28)+Lighting!J28,"") -> 
B29: Exterior/12 Hour | D29: =AB7 -> 0.63 | E29: =SUMIFS($N$34:$N$48,$B$34:$B$48,$B29,$C$34:$C$48,D$25)-SUMIFS($N$52:$N$66,$B$52:$B$66,$B29,$C$52:$C$66,D$25) -> 0 | F29: =AB13 -> 0.37 | G29: =SUMIFS($N$34:$N$48,$B$34:$B$48,$B29,$C$34:$C$48,F$25)-SUMIFS($N$52:$N$66,$B$52:$B$66,$B29,$C$52:$C$66,F$25) -> 0 | H29: =AB10 -> 0.48 | I29: =SUMIFS($N$34:$N$48,$B$34:$B$48,$B29,$C$34:$C$48,H$25)-SUMIFS($N$52:$N$66,$B$52:$B$66,$B29,$C$52:$C$66,H$25) -> 0 | J29: =IF('Applicant Info'!$P$13=TRUE,ROUND(IF(OR(D29*E29+F29*G29+H29*I29<0,$N$67="",$N$67=0), 0, (D29*E29+F29*G29+H29*I29)*0.1),2),IF(OR(D29*E29+F29*G29+H29*I29<0,$N$67="",$N$67=0), 0, D29*E29+F29*G29+H29*I29)) -> 0 | L29: =IF('Applicant Info'!$P$13=TRUE,IF(OR(D29*E29+F29*G29+H29*I29<0,$N$67="",$N$67=0), 0, D29*E29+F29*G29+H29*I29)+Lighting!J29,"") -> 
B30: 24 Hour/Garage/3-Shift | D30: =AB8 -> 1.37 | E30: =SUMIFS($N$34:$N$48,$B$34:$B$48,$B30,$C$34:$C$48,D$25)-SUMIFS($N$52:$N$66,$B$52:$B$66,$B30,$C$52:$C$66,D$25) -> 0 | F30: =AB14 -> 0.74 | G30: =SUMIFS($N$34:$N$48,$B$34:$B$48,$B30,$C$34:$C$48,F$25)-SUMIFS($N$52:$N$66,$B$52:$B$66,$B30,$C$52:$C$66,F$25) -> 0 | H30: =AB11 -> 0.95 | I30: =SUMIFS($N$34:$N$48,$B$34:$B$48,$B30,$C$34:$C$48,H$25)-SUMIFS($N$52:$N$66,$B$52:$B$66,$B30,$C$52:$C$66,H$25) -> 0 | J30: =IF('Applicant Info'!$P$13=TRUE,ROUND(IF(OR(D30*E30+F30*G30+H30*I30<0,$N$67="",$N$67=0), 0, (D30*E30+F30*G30+H30*I30)*0.1),2),IF(OR(D30*E30+F30*G30+H30*I30<0,$N$67="",$N$67=0), 0, D30*E30+F30*G30+H30*I30)) -> 0 | L30: =IF('Applicant Info'!$P$13=TRUE,IF(OR(D30*E30+F30*G30+H30*I30<0,$N$67="",$N$67=0), 0, D30*E30+F30*G30+H30*I30)+Lighting!J30,"") -> 
B31: Total High Efficiency LED replacing HID Incentives | J31: =SUM(J27:K30) -> 0 | L31: =IF('Applicant Info'!$P$13=TRUE,SUM(L27:M30),"") -> 
A32: Existing equipment: HID fixtures and/or lamps being removed
A33: # | B33: Measure Type | C33: Retrofit Type | D33: Fixture Type | F33: Ballast Type | H33: Description | J33: Lamps/ Fixture | K33: Lamp Wattage | L33: Fixture Quantity | M33: Fixture Wattage | N33: Base Watts
A34: 1 | J34: =IF($H34="","",VLOOKUP($H34,$BB:$BF,3,FALSE)) ->  | K34: =IF($H34="","",VLOOKUP($H34,$BB:$BF,4,FALSE)) ->  | M34: =IF($H34="","",VLOOKUP($H34,$BB:$BF,5,FALSE)) ->  | N34: =IF((IF($H34="","",M34*L34))=0,"Missing Value",(IF($H34="","",M34*L34))) -> 
A35: 2
A36: 3
A37: 4
A38: 5
A39: 6
A40: 7 | N40: =IF((IF($H40="","",M40*L40))=0,"Missing Value",(IF($H40="","",M40*L40))) -> 
A41: 8
A42: 9
A43: 10
A44: 11
A45: 12
A46: 13
A47: 14
A48: 15
A49: Subtotal HID Base Case Wattage | N49: =IF(SUM(N34:N48)=0,"",SUM(N34:N48)) -> 
A50: Replacement equipment: New LED lamps, fixtures, or fixture retrofit kit being installed
A51: # | B51: Measure Type | C51: Retrofit Type | D51: Fixture Type | F51: Fixture or Ballast Sub Type | H51: Description (type in model number) | J51: Lamps/ Fixture | K51: Lamp Wattage | L51: Fixture Quantity | M51: Fixture Wattage | N51: Installed Watts
A52: 1 | M52: =IF($H52="","",J52*K52) ->  | N52: =IF((IF($H52="","",M52*L52))=0,"Missing Value",(IF($H52="","",M52*L52))) -> 
A53: 2
A54: 3
A55: 4
A56: 5
A57: 6
A58: 7
A59: 8
A60: 9 | M60: =IF($H60="","",J60*K60) ->  | N60: =IF((IF($H60="","",M60*L60))=0,"Missing Value",(IF($H60="","",M60*L60))) -> 
A61: 10
A62: 11
A63: 12 | R63: Ranges and lookup values for calculated lighting tables. Use caution when editing ranges that are used for data validation lists
A64: 13 | R64: (tips: no symbols allowed, no spaces allowed unless removed with substitute function, any change to a range could delete it, so it must be re-created, use ctrl shift F3 to create a range, range name must begin and end with a letter and no spaces)
A65: 14 | R65: TABLE 1: EXISTING HID
A66: 15 | R66: Measure Type | T66: 1. Retrofit Type | Y66: 2. Fixture Type | AD66: 3. Ballast Type | AN66: 4. Description | BA66: 5. Description lookup (all measures)
A67: Subtotal Installed T8, T5, or LED Wattage | N67: =IF(SUM(N52:N66)=0,"",SUM(N52:N66)) ->  | Y67: HIDFixturereplacingFixture | Z67: HIDLampreplacingLamp | AA67: HIDFixturetoRetrofitKit | AD67: CFL | AE67: HPS | AF67: I/H | AG67: MV | AH67: MH | BA67: TYPE | BB67: DESCRIPTION | BC67: Ballast Type | BD67: LAMP / FIXTURE | BE67: WATT / LAMP | BF67: WATT / FIXTURE
A68: 3. LED Replacing T5, T8 or T12 (Lamps, Fixtures & Retrofit Kits) | R68: MeasureType | T68: 1. Retrofit Type | Y68: CFL | Z68: CFL | AA68: CFL | AD68: HIDCFL | AE68: HIDHighPressureSodium | AF68: HIDIncanorHalogen | AG68: HIDMercuryVapor | AH68: HIDMetalHalide | AN68: HighPressureSodiumMagnetic | AO68: IncanorHalogenNone | AQ68: MercuryVaporMagnetic | AR68: MetalHalideElectronic | AS68: MetalHalideMagnetic | AT68: FixturetoRetrofitKitFixturetoRetrofitKit | AU68: CFLNone | BA68: CFL | BB68: 25 Watt Compact Fluorescent | BC68: None | BD68: 1 | BE68: 25 | BF68: 25
R69: Interior | T69: Fixture replacing Fixture | Y69: High Pressure Sodium | Z69: High Pressure Sodium | AA69: High Pressure Sodium | AD69: None | AE69: Magnetic | AF69: None | AG69: Magnetic | AH69: Magnetic | AN69: 35 Watt HPS Lamp, Magnetic ballast | AO69: 110 Watt Incandescent or Halogen Lamp | AQ69: 40 Watt MV Lamp | AR69: 20 Watt MH Lamp, Electronic Ballast | AS69: 32 Watt MH Lamp, Magnetic ballast | AT69: Fixture to Retrofit Kit | AU69: 25 Watt Compact Fluorescent | BA69: CFL | BB69: 30 Watt Compact Fluorescent | BC69: None | BD69: 1 | BE69: 30 | BF69: 30
B70: Type of Retrofit | D70: Fixture Replacing Fixture | F70: Lamp Replacing Lamp | H70: Fixture to Retrofit Kit | J70: =IF('Applicant Info'!$P$13=TRUE,"Income Qualifier Bonus","Total Incentive") -> Total Incentive | L70: =IF('Applicant Info'!$P$13=TRUE,"Total Incentive","") ->  | Q70: =L75 ->  | R70: Interior 18 Hour | T70: Lamp replacing Lamp | Y70: Incan or Halogen | Z70: Incan or Halogen | AA70: Incan or Halogen | AH70: Electronic | AN70: 50 Watt HPS Lamp, Magnetic ballast | AO70: 116 Watt Incandescent or Halogen Lamp | AQ70: 50 Watt MV Lamp | AR70: 22 Watt MH Lamp, Electronic Ballast | AS70: 39 Watt MH Lamp, Magnetic ballast | AU70: 30 Watt Compact Fluorescent | BA70: CFL | BB70: 35 Watt Compact Fluorescent | BC70: None | BD70: 1 | BE70: 35 | BF70: 35
D71: Incentive | E71: Watts Reduced | F71: Incentive | G71: Watts Reduced | H71: Incentive | I71: Watts Reduced | Q71: =L76 ->  | R71: Exterior/12 Hour | T71: Fixture to Retrofit Kit | Y71: Mercury Vapor | Z71: Mercury Vapor | AA71: Mercury Vapor | AN71: 70 Watt HPS Lamp, Magnetic ballast | AO71: 120 Watt Incandescent or Halogen Lamp | AQ71: 75 Watt MV Lamp | AR71: 39 Watt MH Lamp, Electronic Ballast | AS71: 50 Watt MH Lamp, Magnetic ballast | AU71: 35 Watt Compact Fluorescent | BA71: CFL | BB71: 40 Watt Compact Fluorescent | BC71: None | BD71: 1 | BE71: 40 | BF71: 40
B72: Interior | D72: =AB6 -> 0.32 | E72: =SUMIFS($N$79:$N$93,$B$79:$B$93,$B72,$C$79:$C$93,D$70)-SUMIFS($N$97:$N$111,$B$97:$B$111,$B72,$C$97:$C$111,D$70) -> 0 | F72: =AB12 -> 0.21 | G72: =SUMIFS($N$79:$N$93,$B$79:$B$93,$B72,$C$79:$C$93,F$70)-SUMIFS($N$97:$N$111,$B$97:$B$111,$B72,$C$97:$C$111,F$70) -> 0 | H72: =AB9 -> 0.27 | I72: =SUMIFS($N$79:$N$93,$B$79:$B$93,$B72,$C$79:$C$93,H$70)-SUMIFS($N$97:$N$111,$B$97:$B$111,$B72,$C$97:$C$111,H$70) -> 0 | J72: =IF('Applicant Info'!$P$13=TRUE,ROUND(IF(OR(D72*E72+F72*G72+H72*I72<0,$N$112="",$N$112=0), 0, (D72*E72+F72*G72+H72*I72)*0.1),2),IF(OR(D72*E72+F72*G72+H72*I72<0,$N$112="",$N$112=0), 0, D72*E72+F72*G72+H72*I72)) -> 0 | L72: =IF('Applicant Info'!$P$13=TRUE,IF(OR(D72*E72+F72*G72+H72*I72<0,$N$112="",$N$112=0), 0, D72*E72+F72*G72+H72*I72)+Lighting!J72,"") ->  | R72: 24 Hour/Garage/3-Shift | Y72: Metal Halide | Z72: Metal Halide | AA72: Metal Halide | AN72: 100 Watt HPS Lamp, Magnetic ballast | AO72: 125 Watt Incandescent or Halogen Lamp | AQ72: 100 Watt MV Lamp | AR72: 50 Watt MH Lamp, Electronic Ballast | AS72: 70 Watt MH Lamp, Magnetic ballast | AU72: 40 Watt Compact Fluorescent | BA72: CFL | BB72: 45 Watt Compact Fluorescent | BC72: None | BD72: 1 | BE72: 45 | BF72: 45
B73: Interior 18 Hour | D73: 1 | E73: =SUMIFS($N$79:$N$93,$B$79:$B$93,$B73,$C$79:$C$93,D$70)-SUMIFS($N$97:$N$111,$B$97:$B$111,$B73,$C$97:$C$111,D$70) -> 0 | F73: 0.58 | G73: =SUMIFS($N$79:$N$93,$B$79:$B$93,$B73,$C$79:$C$93,F$70)-SUMIFS($N$97:$N$111,$B$97:$B$111,$B73,$C$97:$C$111,F$70) -> 0 | H73: 0.74 | I73: =SUMIFS($N$79:$N$93,$B$79:$B$93,$B73,$C$79:$C$93,H$70)-SUMIFS($N$97:$N$111,$B$97:$B$111,$B73,$C$97:$C$111,H$70) -> 0 | J73: =IF('Applicant Info'!$P$13=TRUE,ROUND(IF(OR(D73*E73+F73*G73+H73*I73<0,$N$112="",$N$112=0), 0, (D73*E73+F73*G73+H73*I73)*0.1),2),IF(OR(D73*E73+F73*G73+H73*I73<0,$N$112="",$N$112=0), 0, D73*E73+F73*G73+H73*I73)) -> 0 | L73: =IF('Applicant Info'!$P$13=TRUE,IF(OR(D73*E73+F73*G73+H73*I73<0,$N$112="",$N$112=0), 0, D73*E73+F73*G73+H73*I73)+Lighting!J73,"") ->  | AN73: 150 Watt HPS Lamp, Magnetic ballast | AO73: 130 Watt Incandescent or Halogen Lamp | AQ73: 160 Watt MV self-ballasted Lamp | AR73: 70 Watt MH Lamp, Electronic Ballast | AS73: 100 Watt MH Lamp, Magnetic ballast | AU73: 45 Watt Compact Fluorescent | BA73: CFL | BB73: 50 Watt Compact Fluorescent | BC73: None | BD73: 1 | BE73: 50 | BF73: 50
B74: Exterior/12 Hour | D74: =AB7 -> 0.63 | E74: =SUMIFS($N$79:$N$93,$B$79:$B$93,$B74,$C$79:$C$93,D$70)-SUMIFS($N$97:$N$111,$B$97:$B$111,$B74,$C$97:$C$111,D$70) -> 0 | F74: =AB13 -> 0.37 | G74: =SUMIFS($N$79:$N$93,$B$79:$B$93,$B74,$C$79:$C$93,F$70)-SUMIFS($N$97:$N$111,$B$97:$B$111,$B74,$C$97:$C$111,F$70) -> 0 | H74: =AB10 -> 0.48 | I74: =SUMIFS($N$79:$N$93,$B$79:$B$93,$B74,$C$79:$C$93,H$70)-SUMIFS($N$97:$N$111,$B$97:$B$111,$B74,$C$97:$C$111,H$70) -> 0 | J74: =IF('Applicant Info'!$P$13=TRUE,ROUND(IF(OR(D74*E74+F74*G74+H74*I74<0,$N$112="",$N$112=0), 0, (D74*E74+F74*G74+H74*I74)*0.1),2),IF(OR(D74*E74+F74*G74+H74*I74<0,$N$112="",$N$112=0), 0, D74*E74+F74*G74+H74*I74)) -> 0 | L74: =IF('Applicant Info'!$P$13=TRUE,IF(OR(D74*E74+F74*G74+H74*I74<0,$N$112="",$N$112=0), 0, D74*E74+F74*G74+H74*I74)+Lighting!J74,"") ->  | AN74: 200 Watt HPS Lamp, Magnetic ballast | AO74: 135 Watt Incandescent or Halogen Lamp | AQ74: 175 Watt MV Lamp | AR74: 100 Watt MH Lamp, Electronic Ballast | AS74: 125 Watt MH Lamp, Magnetic ballast | AU74: 50 Watt Compact Fluorescent | BA74: CFL | BB74: 55 Watt Compact Fluorescent | BC74: None | BD74: 1 | BE74: 55 | BF74: 55
B75: 24 Hour/Garage/3-Shift | D75: =AB8 -> 1.37 | E75: =SUMIFS($N$79:$N$93,$B$79:$B$93,$B75,$C$79:$C$93,D$70)-SUMIFS($N$97:$N$111,$B$97:$B$111,$B75,$C$97:$C$111,D$70) -> 0 | F75: =AB14 -> 0.74 | G75: =SUMIFS($N$79:$N$93,$B$79:$B$93,$B75,$C$79:$C$93,F$70)-SUMIFS($N$97:$N$111,$B$97:$B$111,$B75,$C$97:$C$111,F$70) -> 0 | H75: =AB11 -> 0.95 | I75: =SUMIFS($N$79:$N$93,$B$79:$B$93,$B75,$C$79:$C$93,H$70)-SUMIFS($N$97:$N$111,$B$97:$B$111,$B75,$C$97:$C$111,H$70) -> 0 | J75: =IF('Applicant Info'!$P$13=TRUE,ROUND(IF(OR(D75*E75+F75*G75+H75*I75<0,$N$112="",$N$112=0), 0, (D75*E75+F75*G75+H75*I75)*0.1),2),IF(OR(D75*E75+F75*G75+H75*I75<0,$N$112="",$N$112=0), 0, D75*E75+F75*G75+H75*I75)) -> 0 | L75: =IF('Applicant Info'!$P$13=TRUE,IF(OR(D75*E75+F75*G75+H75*I75<0,$N$112="",$N$112=0), 0, D75*E75+F75*G75+H75*I75)+Lighting!J75,"") ->  | AN75: 250 Watt HPS Lamp, Magnetic ballast | AO75: 150 Watt Incandescent or Halogen Lamp | AQ75: 250 Watt MV Lamp | AR75: 150 Watt MH Lamp, Electronic Ballast | AS75: 150 Watt MH Lamp, Magnetic Ballast | AU75: 55 Watt Compact Fluorescent | BA75: CFL | BB75: 60 Watt Compact Fluorescent | BC75: None | BD75: 1 | BE75: 60 | BF75: 60
B76: Total High Efficiency LED replacing T5, T8, or T12 Incentives | J76: =SUM(J72:K75) -> 0 | L76: =IF('Applicant Info'!$P$13=TRUE,SUM(L72:M75),"") ->  | AN76: 310 Watt HPS Lamp, Magnetic ballast | AO76: 160 Watt Incandescent or Halogen Lamp | AQ76: 400 Watt MV Lamp | AR76: 175 Watt MH Lamp, Electronic Ballast | AS76: 175 Watt MH Lamp, Magnetic ballast | AU76: 60 Watt Compact Fluorescent | BA76: CFL | BB76: 65 Watt Compact Fluorescent | BC76: None | BD76: 1 | BE76: 65 | BF76: 65
A77: Existing equipment: T5, T8 or T12 fixtures and/or lamps being removed | AN77: 360 Watt HPS Lamp, Magnetic ballast | AO77: 170 Watt Incandescent or Halogen Lamp | AQ77: 700 Watt MV Lamp | AR77: 200 Watt MH Lamp, Electronic Ballast | AS77: 200 Watt MH Lamp, Magnetic ballast | AU77: 65 Watt Compact Fluorescent | BA77: CFL | BB77: 70 Watt Compact Fluorescent | BC77: None | BD77: 1 | BE77: 70 | BF77: 70
A78: # | B78: Measure Type | C78: Retrofit Type | D78: Fixture Type | F78: Ballast Type | H78: Description | J78: Lamps/ Fixture | K78: Lamp Wattage | L78: Fixture Quantity | M78: Fixture Wattage | N78: Base Watts | AN78: 400 Watt HPS Lamp, Magnetic ballast | AO78: 200 Watt Incandescent or Halogen Lamp | AQ78: 1000 Watt MV Lamp | AR78: 250 Watt MH Lamp, Electronic Ballast | AS78: 250 Watt MH Lamp, Magnetic ballast | AU78: 70 Watt Compact Fluorescent | BA78: CFL | BB78: 75 Watt Compact Fluorescent | BC78: None | BD78: 1 | BE78: 75 | BF78: 75
A79: 1 | J79: =IF($H79="","",VLOOKUP($H79,$BB:$BF,3,FALSE)) ->  | K79: =IF($H79="","",VLOOKUP($H79,$BB:$BF,4,FALSE)) ->  | M79: =IF($H79="","",VLOOKUP($H79,$BB:$BF,5,FALSE)) ->  | N79: =IF((IF($H79="","",M79*L79))=0,"Missing Value",(IF($H79="","",M79*L79))) ->  | AN79: 1000 Watt HPS Lamp, Magnetic ballast | AO79: 250 Watt Incandescent or Halogen Lamp | AR79: 320 Watt MH Lamp, Electronic Ballast | AS79: 320 Watt MH Lamp, Magnetic ballast | AU79: 75 Watt Compact Fluorescent | BA79: CFL | BB79: 80 Watt Compact Fluorescent | BC79: None | BD79: 1 | BE79: 80 | BF79: 80
A80: 2 | AO80: 300 Watt Incandescent or Halogen Lamp | AR80: 350 Watt MH Lamp, Electronic Ballast | AS80: 350 Watt MH Lamp, Magnetic ballast | AU80: 80 Watt Compact Fluorescent | BA80: CFL | BB80: 85 Watt Compact Fluorescent | BC80: None | BD80: 1 | BE80: 85 | BF80: 85
A81: 3 | AO81: 400 Watt Incandescent or Halogen Lamp | AR81: 400 Watt MH Lamp, Electronic Ballast | AS81: 360 Watt MH Lamp, Magnetic ballast | AU81: 85 Watt Compact Fluorescent | BA81: CFL | BB81: 90 Watt Compact Fluorescent | BC81: None | BD81: 1 | BE81: 90 | BF81: 90
A82: 4 | AO82: 448 Watt Incandescent or Halogen Lamp | AR82: 450 Watt MH Lamp, Electronic Ballast | AS82: 400 Watt MH Lamp, Magnetic ballast | AU82: 90 Watt Compact Fluorescent | BA82: CFL | BB82: 95 Watt Compact Fluorescent | BC82: None | BD82: 1 | BE82: 95 | BF82: 95
A83: 5 | AO83: 500 Watt Incandescent or Halogen Lamp | AS83: 450 Watt MH Lamp, Magnetic ballast | AU83: 95 Watt Compact Fluorescent | BA83: CFL | BB83: 100 Watt Compact Fluorescent | BC83: None | BD83: 1 | BE83: 100 | BF83: 100
A84: 6 | AO84: 750 Watt Incandescent or Halogen Lamp | AS84: 750 Watt MH Lamp, Magnetic ballast | AU84: 100 Watt Compact Fluorescent | BA84: CFL | BB84: 105 Watt Compact Fluorescent | BC84: None | BD84: 1 | BE84: 105 | BF84: 105
A85: 7 | Y85: 2. Fixture Type | AD85: 3. Ballast Type | AO85: 1000 Watt Incandescent or Halogen Lamp | AS85: 1000 Watt MH Lamp, Magnetic ballast | AU85: 105 Watt Compact Fluorescent | BA85: CFL | BB85: 110 Watt Compact Fluorescent | BC85: None | BD85: 1 | BE85: 110 | BF85: 110
A86: 8 | R86: TABLE 2: REPLACEMENT FROM HID | Y86: RFixturereplacingFixture | Z86: RLampreplacingLamp | AA86: RFixturetoRetrofitKit | AD86: RT5R | AE86: RT8R | AF86: RFUTT8R | AG86: RLEDR | AH86: RRetrofitKitR | AO86: 1500 Watt Incandescent or Halogen Lamp | AS86: 1500 Watt MH Lamp, Magnetic ballast | AU86: 110 Watt Compact Fluorescent | BA86: High Pressure Sodium | BB86: 35 Watt HPS Lamp, Magnetic ballast | BC86: Magnetic | BD86: 1 | BE86: 35 | BF86: 46
A87: 9 | Y87: LED | Z87: LED | AA87: Retrofit Kit | AD87: PRS Elec | AE87: Electronic HO | AF87: Electronic | AG87: LEDs Over 20W | AH87: LED Retrofit Kit | AO87: 2000 Watt Incandescent or Halogen Lamp | BA87: High Pressure Sodium | BB87: 50 Watt HPS Lamp, Magnetic ballast | BC87: Magnetic | BD87: 1 | BE87: 50 | BF87: 66
A88: 10 | AE88: Electronic Std | AF88: Electronic HO | AG88: Downlight Can Over 20W | BA88: High Pressure Sodium | BB88: 70 Watt HPS Lamp, Magnetic ballast | BC88: Magnetic | BD88: 1 | BE88: 70 | BF88: 95
A89: 11 | AG89: Outdoor Pole-Mounted LEDs | BA89: High Pressure Sodium | BB89: 100 Watt HPS Lamp, Magnetic ballast | BC89: Magnetic | BD89: 1 | BE89: 100 | BF89: 138
A90: 12 | AG90: Outdoor Wall-Mounted LEDs | BA90: High Pressure Sodium | BB90: 150 Watt HPS Lamp, Magnetic ballast | BC90: Magnetic | BD90: 1 | BE90: 150 | BF90: 188
A91: 13 | AG91: Parking Garage LEDs | BA91: High Pressure Sodium | BB91: 200 Watt HPS Lamp, Magnetic ballast | BC91: Magnetic | BD91: 1 | BE91: 200 | BF91: 250
A92: 14 | AG92: High-Bay LEDs | BA92: High Pressure Sodium | BB92: 250 Watt HPS Lamp, Magnetic ballast | BC92: Magnetic | BD92: 1 | BE92: 250 | BF92: 295
A93: 15 | AG93: Low-Bay LEDs | BA93: High Pressure Sodium | BB93: 310 Watt HPS Lamp, Magnetic ballast | BC93: Magnetic | BD93: 1 | BE93: 310 | BF93: 365
A94: Subtotal HID Base Case Wattage | N94: =IF(SUM(N79:N93)=0,"",SUM(N79:N93)) ->  | AG94: Stairway / Passageway LEDs | BA94: High Pressure Sodium | BB94: 360 Watt HPS Lamp, Magnetic ballast | BC94: Magnetic | BD94: 1 | BE94: 360 | BF94: 414
A95: Replacement equipment: LED lamps, fixtures, or fixture retrofit kits being installed | AG95: Outdoor Signage | BA95: High Pressure Sodium | BB95: 400 Watt HPS Lamp, Magnetic ballast | BC95: Magnetic | BD95: 1 | BE95: 400 | BF95: 465
A96: # | B96: Measure Type | C96: Retrofit Type | D96: Fixture Type | F96: LED Fixture Sub Type | H96: Description (type in model number) | J96: Lamps/ Fixture | K96: Lamp Wattage | L96: Fixture Quantity | M96: Fixture Wattage | N96: Installed Watts | AG96: Bollards | BA96: High Pressure Sodium | BB96: 1000 Watt HPS Lamp, Magnetic ballast | BC96: Magnetic | BD96: 1 | BE96: 1000 | BF96: 1100
A97: 1 | M97: =IF($H97="","",J97*K97) ->  | N97: =IF((IF($H97="","",M97*L97))=0,"Missing Value",(IF($H97="","",M97*L97))) ->  | AG97: 1x2 Luminaires | BA97: Incan or Halogen | BB97: 110 Watt Incandescent or Halogen Lamp | BC97: None | BD97: 1 | BE97: 110 | BF97: 110
A98: 2 | AG98: 1x4 Luminaires | BA98: Incan or Halogen | BB98: 116 Watt Incandescent or Halogen Lamp | BC98: None | BD98: 1 | BE98: 116 | BF98: 116
A99: 3 | AG99: 2x2 Luminaires | BA99: Incan or Halogen | BB99: 120 Watt Incandescent or Halogen Lamp | BC99: None | BD99: 1 | BE99: 120 | BF99: 120
A100: 4 | AG100: 2x4 Luminaires | BA100: Incan or Halogen | BB100: 125 Watt Incandescent or Halogen Lamp | BC100: None | BD100: 1 | BE100: 125 | BF100: 125
A101: 5 | AG101: 1x8 Luminaires | BA101: Incan or Halogen | BB101: 130 Watt Incandescent or Halogen Lamp | BC101: None | BD101: 1 | BE101: 130 | BF101: 130
A102: 6 | BA102: Incan or Halogen | BB102: 135 Watt Incandescent or Halogen Lamp | BC102: None | BD102: 1 | BE102: 135 | BF102: 135
A103: 7 | BA103: Incan or Halogen | BB103: 150 Watt Incandescent or Halogen Lamp | BC103: None | BD103: 1 | BE103: 150 | BF103: 150
A104: 8 | BA104: Incan or Halogen | BB104: 160 Watt Incandescent or Halogen Lamp | BC104: None | BD104: 1 | BE104: 160 | BF104: 160
A105: 9 | BA105: Incan or Halogen | BB105: 170 Watt Incandescent or Halogen Lamp | BC105: None | BD105: 1 | BE105: 170 | BF105: 170
A106: 10 | BA106: Incan or Halogen | BB106: 200 Watt Incandescent or Halogen Lamp | BC106: None | BD106: 1 | BE106: 200 | BF106: 200
A107: 11 | BA107: Incan or Halogen | BB107: 250 Watt Incandescent or Halogen Lamp | BC107: None | BD107: 1 | BE107: 250 | BF107: 250
A108: 12 | BA108: Incan or Halogen | BB108: 300 Watt Incandescent or Halogen Lamp | BC108: None | BD108: 1 | BE108: 300 | BF108: 300
A109: 13 | BA109: Incan or Halogen | BB109: 400 Watt Incandescent or Halogen Lamp | BC109: None | BD109: 1 | BE109: 400 | BF109: 400
A110: 14 | Y110: 2. Fixture Type | AD110: 3. Ballast Type | BA110: Incan or Halogen | BB110: 448 Watt Incandescent or Halogen Lamp | BC110: None | BD110: 1 | BE110: 448 | BF110: 448
A111: 15 | Y111: TFixturereplacingFixture | Z111: TLampreplacingLamp | AA111: TFixturetoRetrofitKit | AD111: FUT12 | AE111: FUT8 | AF111: T12 | AG111: T8 | AH111: F2RK | AI111: T5 | BA111: Incan or Halogen | BB111: 500 Watt Incandescent or Halogen Lamp | BC111: None | BD111: 1 | BE111: 500 | BF111: 500
A112: Subtotal Installed LED Wattage | N112: =IF(SUM(N97:N111)=0,"",SUM(N97:N111)) ->  | R112: TMeasureType | T112: TRetrofitType | Y112: T5 | Z112: T5 | AA112: T5 | AD112: TFUT12T | AE112: TFUT8T | AF112: TT12T | AG112: TT8T | AH112: TFixturetoRetrofitKitT | AI112: TT5T | AN112: FUT12Magnetic | AO112: FUT8Electronic | AP112: FUT8ElectronicHO | AQ112: T12Magnetic | AR112: T8ElectronicHO | AS112: T8ElectronicStd | AT112: T5PRSElec | BA112: Incan or Halogen | BB112: 750 Watt Incandescent or Halogen Lamp | BC112: None | BD112: 1 | BE112: 750 | BF112: 750
A113: 4. Controls for Existing LED Fixtures (Refer to Section 1 for Interior Controls) | R113: Interior | T113: Fixture replacing Fixture | Y113: T8 | Z113: T8 | AA113: T8 | AD113: Magnetic | AE113: Electronic | AF113: Magnetic | AG113: Electronic HO | AH113: Fixture to Retrofit Kit | AI113: PRS Elec | AN113: (1) U-Tube, T12 STD Lamp, STD Mag Ballast, 34 Watt Lamps | AO113: (1) U-Tube, T8 Standard ballast, 32 Watt Lamp | AP113: (1) U-Tube, T8 High Output Ballast, 32 Watt Lamp | AQ113: (1) 24" T12, STD Lamps, 20 Watt Lamps | AR113: (1) 24", T8, High Output Ballast, 17 Watt Lamps | AS113: (1) 24", T8, Std Elec Ballast, 17 Watt Lamps | AT113: (1) 22" T-5 14W Lamp (1) Prog Start or PRS Ballast, HLO (.95<BF<1.1) | BA113: Incan or Halogen | BB113: 1000 Watt Incandescent or Halogen Lamp | BC113: None | BD113: 1 | BE113: 1000 | BF113: 1000
R114: Interior 18 Hour | T114: Lamp replacing Lamp | Y114: T12 | Z114: T12 | AA114: T12 | AE114: Electronic HO | AG114: Electronic Std | AN114: (1) U-Tube, T12 STD Lamp, STD Mag Ballast, 40 Watt Lamps | AO114: (2) U-Tube, T8 Standard ballast, 32 Watt Lamp | AP114: (2) U-Tube, T8 High Output Ballast, 32 Watt Lamp | AQ114: (1) 36" T12, STD Lamps Mag-STD, 30 Watt Lamps | AR114: (1) 36", T8, High Output Ballast, 25 Watt Lamps | AS114: (1) 36", T8, Std Elec Ballast, 25 Watt Lamps | AT114: (1) 22" T-5 24W HO Lamp (1) Prog Start or PRS Ballast, HLO (.95<BF<1) | BA114: Incan or Halogen | BB114: 1500 Watt Incandescent or Halogen Lamp | BC114: None | BD114: 1 | BE114: 1500 | BF114: 1500
B115: Type of Retrofit | D115: Controlled Fixture | F115: =IF('Applicant Info'!$P$13=TRUE,"Income Qualifier Bonus","Total Incentive") -> Total Incentive | H115: Total Incentive | R115: Exterior/12 Hour | T115: Fixture to Retrofit Kit | Y115: FUT8 | Z115: FUT8 | AA115: FUT8 | AN115: (2) U-Tube, T12 STD Lamp, STD Mag Ballast, 34 Watt Lamps | AQ115: (1) 48" T12, ES Lamp, Magnetic Ballast-STD, 34 Watt Lamps | AR115: (1) 48", T8, High Output Ballast, 28 Watt Lamps | AS115: (1) 48", T8, Std Ballast, 25 Watt Lamps | AT115: (1) 34" T-5 21W Lamp (1) Prog Start or PRS Ballast, HLO (.95<BF<1.1) | BA115: Incan or Halogen | BB115: 2000 Watt Incandescent or Halogen Lamp | BC115: None | BD115: 1 | BE115: 2000 | BF115: 2000
D116: Incentive | E116: Watts Reduced | Q116: =+H121 -> 0 | R116: 24 Hour/Garage/3-Shift | Y116: FUT12 | Z116: FUT12 | AA116: FUT12 | AN116: (2) U-Tube, T12 STD Lamp, STD Mag Ballast, 40 Watt Lamps | AQ116: (1) 48" T12, STD Lamp, Magnetic Ballast-STD, 40 Watt Lamps | AR116: (1) 48", T8, High Output Ballast, 25 Watt Lamps | AS116: (1) 48", T8, Std Ballast, 28 Watt Lamps | AT116: (1) 34" T-5 39W HO Lamp (1) Prog Start or PRS Ballast, HLO (.95<BF<1.1) | BA116: Mercury Vapor | BB116: 40 Watt MV Lamp | BC116: Magnetic | BD116: 1 | BE116: 40 | BF116: 50
B117: Interior | D117: NA | E117: NA | F117: NA | H117: NA | AQ117: (1) 48" T12, STD Lamp, Magnetic Ballast-STD, 40 Watt Lamps | AR117: (1) 48", T8, High Output Ballast, 32 Watt Lamps | AS117: (1) 48", T8, Std Ballast, 32 Watt Lamps | AT117: (1) 45.8" T-5 28W Lamp (1) Prog Start or PRS Ballast, HLO (.95<BF<1.1) | BA117: Mercury Vapor | BB117: 50 Watt MV Lamp | BC117: Magnetic | BD117: 1 | BE117: 50 | BF117: 74
B118: Interior 18 Hour | D118: NA | E118: NA | F118: NA | H118: NA | AQ118: (1) 48" T12, HO Lamps, 60 Watt Lamps | AR118: (1) 96", T8, High Output Ballast, 57 Watt Lamps | AS118: (1) 96", T8 Std Ballast, 57 Watt Lamps | AT118: (1) 45.8" T-5 54W HO Lamps (1) Prog RS Ballast, HLO(.95<BF<1.1) | BA118: Mercury Vapor | BB118: 75 Watt MV Lamp | BC118: Magnetic | BD118: 1 | BE118: 75 | BF118: 93
B119: Exterior/12 Hour | D119: 0.42 | E119: =SUMIFS($M$124:$M$138,$B$124:$B$138,$B119,$D$124:$D$138,D$115) -> 0 | F119: =IF('Applicant Info'!$P$13=TRUE,D119*E119*0.1,D119*E119) -> 0 | H119: =D119*E119+F119 -> 0 | AQ119: (1) 72" T12, HO Lamps, 85 Watt Lamps | AR119: (1) 96", T8, High Output Ballast, 59 Watt Lamps | AS119: (1) 96", T8 Std Ballast, 59 Watt Lamps | AT119: (1) 57.6" T-5 35W Lamp (1) Prog Start or PRS Ballast, HLO (.95<BF<1.1) | BA119: Mercury Vapor | BB119: 100 Watt MV Lamp | BC119: Magnetic | BD119: 1 | BE119: 100 | BF119: 125
B120: 24 Hour/Garage/3-Shift | D120: 0.53 | E120: =SUMIFS($M$124:$M$138,$B$124:$B$138,$B120,$D$124:$D$138,D$115) -> 0 | F120: =IF('Applicant Info'!$P$13=TRUE,D120*E120*0.1,D120*E120) -> 0 | H120: =D120*E120+F120 -> 0 | AQ120: (1) 96" T12, ES HO Lamps Mag-STD, 95 Watt Lamps | AR120: (1) 96", T8, High Output Ballast, 86 Watt Lamps | AS120: (1) 96", T8 Std Ballast, 86 Watt Lamps | AT120: (1) 57.6" T-5 80W HO Lamp (1) Prog Start or PRS Ballast, HLO (.95<BF<1.1) | BA120: Mercury Vapor | BB120: 160 Watt MV self-ballasted Lamp | BC120: Magnetic | BD120: 1 | BE120: 160 | BF120: 160
B121: Controls on Existing LED Fixtures | F121: =SUM(F117:G120) -> 0 | H121: =SUM(H117:I120) -> 0 | AQ121: (1) 96" T12, ES Lamps Mag-STD, 60 Watt Lamps | AR121: (2) 24", T8, High Output Ballast, 17 Watt Lamps | AS121: (2) 24", T8, Std Elec Ballast, 17 Watt Lamps | AT121: (2) 22" T-5 14W Lamps (1) Prog Start or PRS Ballast, HLO (.95<BF<1.1) | BA121: Mercury Vapor | BB121: 175 Watt MV Lamp | BC121: Magnetic | BD121: 1 | BE121: 175 | BF121: 205
A122: Controlled Existing LED Fixture with High and Low Settings | AQ122: (1) 96" T12, STD HO Lamps Mag-STD, 110 Watt Lamps | AR122: (2) 36", T8, High Output Ballast, 25 Watt Lamps | AS122: (2) 36", T8, Std Elec Ballast, 25 Watt Lamps | AT122: (2) 22" T-5 24W HO Lamps (1) Prog Start or PRS Ballast, HLO (.95<BF<1) | BA122: Mercury Vapor | BB122: 250 Watt MV Lamp | BC122: Magnetic | BD122: 1 | BE122: 250 | BF122: 290
A123: # | B123: Measure Type | C123: Retrofit Type | D123: Fixture Type | F123: Sub Type | H123: Description (type in) | J123: Fixture Quantity | K123: High Setting Wattage | L123: Low Setting Wattage | M123: Weighted Average Watts Reduced | AQ123: (1) 108" T12 F108, HO Lamps, 124 Watt Lamps | AR123: (2) 48", T8, High Output Ballast, 28 Watt Lamps | AS123: (2) 48", T8, Std Ballast, 25 Watt Lamps | AT123: (2) 34" T-5 21W Lamps (1) Prog.Start or PRS Ballast HLO (.95<BF<1.1) | BA123: Mercury Vapor | BB123: 400 Watt MV Lamp | BC123: Magnetic | BD123: 1 | BE123: 400 | BF123: 455
A124: 1 | C124: =IFERROR(VLOOKUP($B124,$R$167:$U$169,3,FALSE),"") ->  | D124: =IFERROR(VLOOKUP($B124,$R$167:$U$169,4,FALSE),"") ->  | E124: =VLOOKUP($B124,$R$167:$U$169,3,FALSE) ->  | M124: =IF((IF($H124="","",(ROUND(((K124-L124)*0.85*J124),0))))=0,"Missing Value",(IF($H124="","",(ROUND(((K124-L124)*0.85*J124),0))))) ->  | AQ124: (1) 114" T12 F117, HO Lamps, 132 Watt Lamps | AR124: (2) 48", T8, High Output Ballast, 25 Watt Lamps | AS124: (2) 48", T8, Std Ballast, 28 Watt Lamps | AT124: (2) 34" T-5 39W HO Lamps (1) Prog Start or PRS Ballast, HLO (.95<BF<1.1) | BA124: Mercury Vapor | BB124: 700 Watt MV Lamp | BC124: Magnetic | BD124: 1 | BE124: 700 | BF124: 780
A125: 2 | M125: =IF((IF($H125="","",(ROUND(((K125-L125)*0.85*J125),0))))=0,"Missing Value",(IF($H125="","",(ROUND(((K125-L125)*0.85*J125),0))))) ->  | AQ125: (2) 24" T12, STD Lamps, 20 Watt Lamps | AR125: (2) 48", T8, High Output Ballast, 32 Watt Lamps | AS125: (2) 48", T8, Std Ballast, 32 Watt Lamps | AT125: (2) 45.8" T-5 28W Lamps (1) Prog Start or PRS Ballast, HLO (.95<BF<1.1) | BA125: Mercury Vapor | BB125: 1000 Watt MV Lamp | BC125: Magnetic | BD125: 1 | BE125: 1000 | BF125: 1075
A126: 3 | AQ126: (2) 36" T12, STD Lamps Mag-STD, 30 Watt Lamps | AR126: (2) 96", T8, High Output Ballast, 57 Watt Lamps | AS126: (2) 96", T8 Std Ballast, 57 Watt Lamps | AT126: (2) 45.8" T-5 49W HO Lamps, (1) Prog Start or RS Ballast, HLO (.95<BF<1.1) | BA126: Metal Halide | BB126: 20 Watt MH Lamp, Electronic Ballast | BC126: Electronic | BD126: 1 | BE126: 20 | BF126: 24
A127: 4 | AQ127: (2) 40" T12 F42, HO Lamps, 55 Watt Lamps | AR127: (2) 96", T8, High Output Ballast, 59 Watt Lamps | AS127: (2) 96", T8 Std Ballast, 59 Watt Lamps | AT127: (2) 45.8" T-5 54W HO Lamps (1) Prog RS Ballast, HLO (.95<BF<1.1) | BA127: Metal Halide | BB127: 22 Watt MH Lamp, Electronic Ballast | BC127: Electronic | BD127: 1 | BE127: 22 | BF127: 26
A128: 5 | AQ128: (2) 48" T12, ES Lamp, Magnetic Ballast-STD, 34 Watt Lamps | AR128: (2) 96", T8, High Output Ballast, 86 Watt Lamps | AS128: (2) 96", T8 Std Ballast, 86 Watt Lamps | AT128: (2) 57.6" T-5 35W Lamps (1) Prog Start or PRS Ballast, HLO (.95<BF<1.1) | BA128: Metal Halide | BB128: 39 Watt MH Lamp, Electronic Ballast | BC128: Electronic | BD128: 1 | BE128: 39 | BF128: 44
A129: 6 | AQ129: (2) 48" T12, HO Lamps, 60 Watt Lamps | AR129: (3) 24", T8, High Output Ballast, 17 Watt Lamps | AS129: (3) 24", T8, Std Elec Ballast, 17 Watt Lamps | AT129: (2) 57.6" T-5 80W HO Lamps (1) Prog Start or PRS Ballast, HLO (.95<BF<1.1) | BA129: Metal Halide | BB129: 50 Watt MH Lamp, Electronic Ballast | BC129: Electronic | BD129: 1 | BE129: 50 | BF129: 56
A130: 7 | AQ130: (2) 48" T12, STD Lamp, Magnetic Ballast-STD, 40 Watt Lamps | AR130: (3) 36", T8, High Output Ballast, 25 Watt Lamps | AS130: (3) 36", T8, Std Elec Ballast, 25 Watt Lamps | AT130: (3) 22" T-5 14W Lamps (2) Prog Start or PRS Ballasts, HLO (.95<BF<1.1) | BA130: Metal Halide | BB130: 70 Watt MH Lamp, Electronic Ballast | BC130: Electronic | BD130: 1 | BE130: 70 | BF130: 78
A131: 8 | Y131: 2. Fixture Type | AD131: 3. Ballast Type | AQ131: (2) 72" T12, HO Lamps, 85 Watt Lamps | AR131: (3) 48", T8, High Output Ballast, 28 Watt Lamps | AS131: (3) 48", T8, Std Ballast, 25 Watt Lamps | AT131: (3) 22" T-5 24W HO Lamps (2) Prog Start or PRS Ballasts, HLO (.95<BF<1.1) | BA131: Metal Halide | BB131: 100 Watt MH Lamp, Electronic Ballast | BC131: Electronic | BD131: 1 | BE131: 100 | BF131: 109
A132: 9 | Y132: RTFixturereplacingFixture | Z132: RTLampreplacingLamp | AA132: RTFixturetoRetrofitKit | AD132: RTLEDR | AE132: RTRetrofitKitR | AQ132: (2) 96" T12, ES HO Lamps Mag-STD, 95 Watt Lamps | AR132: (3) 48", T8, High Output Ballast, 25 Watt Lamps | AS132: (3) 48", T8, Std Ballast, 28 Watt Lamps | AT132: (3) 34" T-5 21W Lamps (2) Prog Start or PRS Ballasts, HLO (.95<BF<1.1) | BA132: Metal Halide | BB132: 150 Watt MH Lamp, Electronic Ballast | BC132: Electronic | BD132: 1 | BE132: 150 | BF132: 163
A133: 10 | Y133: LED | Z133: LED | AA133: Retrofit Kit | AD133: Flood and Spot LEDs Over 20W | AE133: LED Retrofit Kit | AQ133: (2) 96" T12, ES Lamps Mag-STD, 60 Watt Lamps | AR133: (3) 48", T8, High Output Ballast, 32 Watt Lamps | AS133: (3) 48", T8, Std Ballast, 32 Watt Lamps | AT133: (3) 34" T-5 39W HO Lamps (2) Prog Start or PRS Ballasts, HLO (.95<BF<1.1) | BA133: Metal Halide | BB133: 175 Watt MH Lamp, Electronic Ballast | BC133: Electronic | BD133: 1 | BE133: 175 | BF133: 191
A134: 11 | AD134: Downlight Can Fixture Over 20W | AQ134: (2) 96" T12, STD HO Lamps Mag-STD, 110 Watt Lamps | AR134: (3) 96", T8, High Output Ballast, 57 Watt Lamps | AS134: (3) 96", T8 Std Ballast, 57 Watt Lamps | AT134: (3) 45.8" T-5 28W Lamps (2) Prog Start or PRS Ballasts, HLO(.95<BF<1.1) | BA134: Metal Halide | BB134: 200 Watt MH Lamp, Electronic Ballast | BC134: Electronic | BD134: 1 | BE134: 200 | BF134: 216
A135: 12 | AD135: Parking Garage LEDs | AQ135: (2) 108" T12 F108, HO Lamps, 124 Watt Lamps | AR135: (3) 96", T8, High Output Ballast, 59 Watt Lamps | AS135: (3) 96", T8 Std Ballast, 59 Watt Lamps | AT135: (3) 45.8" T-5 49W HO Lamps, (1) Prog Start or RS Ballast, HLO (.95<BF<1.1) | BA135: Metal Halide | BB135: 250 Watt MH Lamp, Electronic Ballast | BC135: Electronic | BD135: 1 | BE135: 250 | BF135: 266
A136: 13 | AD136: High-Bay LEDs | AQ136: (2) 114" T12 F117, HO Lamps, 132 Watt Lamps | AR136: (3) 96", T8, High Output Ballast, 86 Watt Lamps | AS136: (3) 96", T8 Std Ballast, 86 Watt Lamps | AT136: (3) 45.8" T-5 54W HO Lamps, Prog RS (2) Ballast, HLO (.95<BF<1.1) | BA136: Metal Halide | BB136: 320 Watt MH Lamp, Electronic Ballast | BC136: Electronic | BD136: 1 | BE136: 320 | BF136: 341
A137: 14 | AD137: Low-Bay LEDs | AQ137: (3) 24" T12, STD Lamps, 20 Watt Lamps | AR137: (4) 24", T8, High Output Ballast, 17 Watt Lamps | AS137: (4) 24", T8, Std Elec Ballast, 17 Watt Lamps | AT137: (3) 57.6" T-5 35W Lamps (2) Prog Start or PRS Ballasts, HLO (.95<BF<1.1) | BA137: Metal Halide | BB137: 350 Watt MH Lamp, Electronic Ballast | BC137: Electronic | BD137: 1 | BE137: 350 | BF137: 371
A138: 15 | AD138: Indoor Wall-Mounted Area LEDs | AQ138: (3) 36" T12, STD Lamps Mag-STD, 30 Watt Lamps | AR138: (4) 36", T8, High Output Ballast, 25 Watt Lamps | AS138: (4) 36", T8, Std Elec Ballast, 25 Watt Lamps | AT138: (4) 22" T-5 14W Lamps (2) Prog Start or PRS Ballasts, HLO (.95<BF<1.1) | BA138: Metal Halide | BB138: 400 Watt MH Lamp, Electronic Ballast | BC138: Electronic | BD138: 1 | BE138: 400 | BF138: 424
A139: Subtotal Controls on LED Fixtures | M139: =IF(SUM(M124:N138)=0,"",SUM(M124:N138)) ->  | AD139: Stairwell and Passageway LEDs | AQ139: (3) 48" T12, ES Lamp, Magnetic Ballast-STD, 34 Watt Lamps | AR139: (4) 48", T8, High Output Ballast, 28 Watt Lamps | AS139: (4) 48", T8, Std Ballast, 25 Watt Lamps | AT139: (4) 22" T-5 24W HO Lamps (2) Prog Start or PRS Ballasts, HLO (.95<BF<1.1) | BA139: Metal Halide | BB139: 450 Watt MH Lamp, Electronic Ballast | BC139: Electronic | BD139: 1 | BE139: 450 | BF139: 465
AD140: Bollards | AQ140: (3) 48" T12, STD Lamp, Magnetic Ballast-STD, 40 Watt Lamps | AR140: (4) 48", T8, High Output Ballast, 25 Watt Lamps | AS140: (4) 48", T8, Std Ballast, 28 Watt Lamps | AT140: (4) 34" T-5 39W HO Lamps (2 )Prog.Start or PRS Ballasts, HLO (.95<BF<1.1) | BA140: Metal Halide | BB140: 32 Watt MH Lamp, Magnetic ballast | BC140: Magnetic | BD140: 1 | BE140: 32 | BF140: 42
AD141: Display Case LEDs | AQ141: (3) 96" T12, ES HO Lamps Mag-STD, 95 Watt Lamps | AR141: (4) 48", T8, High Output Ballast, 32 Watt Lamps | AS141: (4) 48", T8, Std Ballast, 32 Watt Lamps | AT141: (4) 34" T-5 39W Lamps (2) Prog Start or PRS Ballasts, HLO (.95<BF<1.1) | BA141: Metal Halide | BB141: 39 Watt MH Lamp, Magnetic ballast | BC141: Magnetic | BD141: 1 | BE141: 39 | BF141: 56
A142: IMPORTANT NOTICE: Only qualified LED lighting is eligible for a rebate. No fluorescent replacements are eligible for rebates. | AD142: 1x4 Luminaires | AQ142: (3) 96" T12, ES Lamps Mag-STD, 60 Watt Lamps | AR142: (4) 96", T8, High Output Ballast, 57 Watt Lamps | AS142: (4) 96", T8 Std Ballast, 25 Watt Lamps | AT142: (4) 45.8" T-5 28W Lamps (2) Prog Start or PRS Ballasts, HLO (.95<BF<1.1) | BA142: Metal Halide | BB142: 50 Watt MH Lamp, Magnetic ballast | BC142: Magnetic | BD142: 1 | BE142: 50 | BF142: 67
AD143: 2x2 Luminaires | AQ143: (3) 96" T12, STD HO Lamps Mag-STD, 110 Watt Lamps | AR143: (4) 96", T8, High Output Ballast, 59 Watt Lamps | AS143: (4) 96", T8 Std Ballast, 57 Watt Lamps | AT143: (4) 45.8" T-5 49W HO Lamps, (2) Prog Start or RS Ballast, HLO (.95<BF<1.1) | BA143: Metal Halide | BB143: 70 Watt MH Lamp, Magnetic ballast | BC143: Magnetic | BD143: 1 | BE143: 70 | BF143: 94
A144: Lighting Scope of Work is REQUIRED for all lighting measures. | AD144: 2x4 Luminaires | AQ144: (4) 24" T12, STD Lamps, 20 Watt Lamps | AR144: (4) 96", T8, High Output Ballast, 86 Watt Lamps | AS144: (4) 96", T8 Std Ballast, 59 Watt Lamps | AT144: (4) 45.8" T-5 54W HO Lamps, (2) Prog RS Ballast, HLO (.95<BF<1.1) | BA144: Metal Halide | BB144: 100 Watt MH Lamp, Magnetic ballast | BC144: Magnetic | BD144: 1 | BE144: 100 | BF144: 127
AD145: 1x8 Luminaires | AQ145: (4) 36" T12, STD Lamps Mag-STD, 30 Watt Lamps | AR145: (6) 48", T8, High Output Ballast, 28 Watt Lamps | AS145: (4) 96", T8 Std Ballast, 86 Watt Lamps | AT145: (4) 45.8" T-5 54W HO Lamps, (2) Prog RS Ballast, HLO (.95<BF<1.1), alt 1 | BA145: Metal Halide | BB145: 125 Watt MH Lamp, Magnetic ballast | BC145: Magnetic | BD145: 1 | BE145: 125 | BF145: 150
A146: In no case will the program pay a rebate for lamps and retrofit kits that have been installed in fixtures with cracked, broken, or yellowed lenses. | AQ146: (4) 48" T12, ES Lamp, Magnetic Ballast-STD, 34 Watt Lamps | AR146: (6) 48", T8, High Output Ballast, 32 Watt Lamps | AS146: (6) 48", T8, Std Ballast, 28 Watt Lamps | AT146: (5) 45.9" T-5 54W Lamps (2) Prog.Start or PRS Ballasts, HLO (.95<BF<1.1) | BA146: Metal Halide | BB146: 150 Watt MH Lamp, Magnetic Ballast | BC146: Magnetic | BD146: 1 | BE146: 150 | BF146: 184
AQ147: (4) 48" T12, STD Lamp, Magnetic Ballast-STD, 40 Watt Lamps | AR147: (6) 96", T8, High Output Ballast, 57 Watt Lamps | AS147: (6) 48", T8, Std Ballast, 32 Watt Lamps | AT147: (6) 45.8" T-5 54W HO Lamps (3) Prog RS Ballast, HLO(.95<BF<1.1) | BA147: Metal Halide | BB147: 175 Watt MH Lamp, Magnetic ballast | BC147: Magnetic | BD147: 1 | BE147: 175 | BF147: 209
AQ148: (4) 96" T12, ES HO Lamps Mag-STD, 95 Watt Lamps | AR148: (6) 96", T8, High Output Ballast, 59 Watt Lamps | AS148: (6) 96", T8 Std Ballast, 57 Watt Lamps | AT148: (6) 45.8" T-5 54W HO Lamps (3) Prog RS Ballast, HLO(.95<BF<1.1), alt 1 | BA148: Metal Halide | BB148: 200 Watt MH Lamp, Magnetic ballast | BC148: Magnetic | BD148: 1 | BE148: 200 | BF148: 232
AQ149: (4) 96" T12, ES Lamps Mag-STD, 60 Watt Lamps | AR149: (6) 96", T8, High Output Ballast, 86 Watt Lamps | AS149: (6) 96", T8 Std Ballast, 59 Watt Lamps | AT149: (6) 45.9" T-5 49W HO Lamps, (3) Prog Start or RS Ballast, HLO (.95<BF<1.1) | BA149: Metal Halide | BB149: 250 Watt MH Lamp, Magnetic ballast | BC149: Magnetic | BD149: 1 | BE149: 250 | BF149: 291
AQ150: (4) 96" T12, STD HO Lamps Mag-STD, 110 Watt Lamps | AS150: (6) 96", T8 Std Ballast, 86 Watt Lamps | AT150: (8) 45.8" T-5 49W HO Lamps, (4) Prog Start or RS Ballast, HLO(.95<BF<1.1) | BA150: Metal Halide | BB150: 320 Watt MH Lamp, Magnetic ballast | BC150: Magnetic | BD150: 1 | BE150: 320 | BF150: 367
AT151: (10) 45.8" T-5 54W HO Lamps (5) Prog RS Ballast, HLO (.95<BF<1.1) | BA151: Metal Halide | BB151: 350 Watt MH Lamp, Magnetic ballast | BC151: Magnetic | BD151: 1 | BE151: 350 | BF151: 395
AT152: (12) 45.8" T-5 54W HO Lamps (6) Prog RS Ballast, HLO (.95<BF<1.1) | BA152: Metal Halide | BB152: 360 Watt MH Lamp, Magnetic ballast | BC152: Magnetic | BD152: 1 | BE152: 360 | BF152: 418
BA153: Metal Halide | BB153: 400 Watt MH Lamp, Magnetic ballast | BC153: Magnetic | BD153: 1 | BE153: 400 | BF153: 456
BA154: Metal Halide | BB154: 450 Watt MH Lamp, Magnetic ballast | BC154: Magnetic | BD154: 1 | BE154: 450 | BF154: 507
BA155: Metal Halide | BB155: 750 Watt MH Lamp, Magnetic ballast | BC155: Magnetic | BD155: 1 | BE155: 750 | BF155: 814
BA156: Metal Halide | BB156: 1000 Watt MH Lamp, Magnetic ballast | BC156: Magnetic | BD156: 1 | BE156: 1000 | BF156: 1077
BA157: Metal Halide | BB157: 1500 Watt MH Lamp, Magnetic ballast | BC157: Magnetic | BD157: 1 | BE157: 1500 | BF157: 1608
BA158: T8 | BB158: (1) 24", T8, Std Elec Ballast, 17 Watt Lamps | BC158: Electronic Std | BD158: 1 | BE158: 17 | BF158: 16
BA159: T8 | BB159: (1) 24", T8, High Output Ballast, 17 Watt Lamps | BC159: Electronic HO | BD159: 1 | BE159: 17 | BF159: 20
BA160: T8 | BB160: (1) 36", T8, Std Elec Ballast, 25 Watt Lamps | BC160: Electronic Std | BD160: 1 | BE160: 25 | BF160: 23
BA161: T8 | BB161: (1) 36", T8, High Output Ballast, 25 Watt Lamps | BC161: Electronic HO | BD161: 1 | BE161: 25 | BF161: 28
BA162: T8 | BB162: (1) 48", T8, Std Ballast, 25 Watt Lamps | BC162: Electronic Std | BD162: 1 | BE162: 25 | BF162: 23
BA163: T8 | BB163: (1) 48", T8, High Output Ballast, 25 Watt Lamps | BC163: Electronic HO | BD163: 1 | BE163: 25 | BF163: 28
BA164: T8 | BB164: (1) 48", T8, Std Ballast, 28 Watt Lamps | BC164: Electronic Std | BD164: 1 | BE164: 28 | BF164: 25
BA165: T8 | BB165: (1) 48", T8, High Output Ballast, 28 Watt Lamps | BC165: Electronic HO | BD165: 1 | BE165: 28 | BF165: 32
S166: 2. Fixture Type | BA166: T8 | BB166: (1) 48", T8, Std Ballast, 32 Watt Lamps | BC166: Electronic Std | BD166: 1 | BE166: 32 | BF166: 30
R167: CMeasureType | T167: Retrofit Type | U167: Fixture Type | BA167: T8 | BB167: (1) 48", T8, High Output Ballast, 32 Watt Lamps | BC167: Electronic HO | BD167: 1 | BE167: 32 | BF167: 36
R168: Exterior/12 Hour | T168: LED | U168: Controlled Fixture | BA168: T8 | BB168: (1) 96", T8 Std Ballast, 57 Watt Lamps | BC168: Electronic Std | BD168: 1 | BE168: 57 | BF168: 52
R169: 24 Hour/Garage/3-Shift | T169: LED | U169: Controlled Fixture | BA169: T8 | BB169: (1) 96", T8, High Output Ballast, 57 Watt Lamps | BC169: Electronic HO | BD169: 1 | BE169: 57 | BF169: 59
BA170: T8 | BB170: (1) 96", T8 Std Ballast, 59 Watt Lamps | BC170: Electronic Std | BD170: 1 | BE170: 59 | BF170: 55
BA171: T8 | BB171: (1) 96", T8, High Output Ballast, 59 Watt Lamps | BC171: Electronic HO | BD171: 1 | BE171: 59 | BF171: 62
BA172: T8 | BB172: (1) 96", T8 Std Ballast, 86 Watt Lamps | BC172: Electronic Std | BD172: 1 | BE172: 86 | BF172: 82
BA173: T8 | BB173: (1) 96", T8, High Output Ballast, 86 Watt Lamps | BC173: Electronic HO | BD173: 1 | BE173: 86 | BF173: 90
BA174: T8 | BB174: (2) 24", T8, Std Elec Ballast, 17 Watt Lamps | BC174: Electronic Std | BD174: 2 | BE174: 17 | BF174: 32
BA175: T8 | BB175: (2) 24", T8, High Output Ballast, 17 Watt Lamps | BC175: Electronic HO | BD175: 2 | BE175: 17 | BF175: 40
BA176: T8 | BB176: (2) 36", T8, Std Elec Ballast, 25 Watt Lamps | BC176: Electronic Std | BD176: 2 | BE176: 25 | BF176: 46
BA177: T8 | BB177: (2) 36", T8, High Output Ballast, 25 Watt Lamps | BC177: Electronic HO | BD177: 2 | BE177: 25 | BF177: 56
BA178: T8 | BB178: (2) 48", T8, Std Ballast, 25 Watt Lamps | BC178: Electronic Std | BD178: 2 | BE178: 25 | BF178: 46
BA179: T8 | BB179: (2) 48", T8, High Output Ballast, 25 Watt Lamps | BC179: Electronic HO | BD179: 2 | BE179: 25 | BF179: 56
BA180: T8 | BB180: (2) 48", T8, Std Ballast, 28 Watt Lamps | BC180: Electronic Std | BD180: 2 | BE180: 28 | BF180: 50
BA181: T8 | BB181: (2) 48", T8, High Output Ballast, 28 Watt Lamps | BC181: Electronic HO | BD181: 2 | BE181: 28 | BF181: 64
BA182: T8 | BB182: (2) 48", T8, Std Ballast, 32 Watt Lamps | BC182: Electronic Std | BD182: 2 | BE182: 32 | BF182: 60
BA183: T8 | BB183: (2) 48", T8, High Output Ballast, 32 Watt Lamps | BC183: Electronic HO | BD183: 2 | BE183: 32 | BF183: 72
BA184: T8 | BB184: (2) 96", T8 Std Ballast, 57 Watt Lamps | BC184: Electronic Std | BD184: 2 | BE184: 57 | BF184: 100
BA185: T8 | BB185: (2) 96", T8, High Output Ballast, 57 Watt Lamps | BC185: Electronic HO | BD185: 2 | BE185: 57 | BF185: 105
BA186: T8 | BB186: (2) 96", T8 Std Ballast, 59 Watt Lamps | BC186: Electronic Std | BD186: 2 | BE186: 59 | BF186: 109
BA187: T8 | BB187: (2) 96", T8, High Output Ballast, 59 Watt Lamps | BC187: Electronic HO | BD187: 2 | BE187: 59 | BF187: 160
BA188: T8 | BB188: (2) 96", T8 Std Ballast, 86 Watt Lamps | BC188: Electronic Std | BD188: 2 | BE188: 86 | BF188: 164
BA189: T8 | BB189: (2) 96", T8, High Output Ballast, 86 Watt Lamps | BC189: Electronic HO | BD189: 2 | BE189: 86 | BF189: 180
BA190: T8 | BB190: (3) 24", T8, Std Elec Ballast, 17 Watt Lamps | BC190: Electronic Std | BD190: 3 | BE190: 17 | BF190: 48
BA191: T8 | BB191: (3) 24", T8, High Output Ballast, 17 Watt Lamps | BC191: Electronic HO | BD191: 3 | BE191: 17 | BF191: 60
BA192: T8 | BB192: (3) 36", T8, Std Elec Ballast, 25 Watt Lamps | BC192: Electronic Std | BD192: 3 | BE192: 25 | BF192: 69
BA193: T8 | BB193: (3) 36", T8, High Output Ballast, 25 Watt Lamps | BC193: Electronic HO | BD193: 3 | BE193: 25 | BF193: 84
BA194: T8 | BB194: (3) 48", T8, Std Ballast, 25 Watt Lamps | BC194: Electronic Std | BD194: 3 | BE194: 25 | BF194: 69
BA195: T8 | BB195: (3) 48", T8, High Output Ballast, 25 Watt Lamps | BC195: Electronic HO | BD195: 3 | BE195: 25 | BF195: 84
BA196: T8 | BB196: (3) 48", T8, Std Ballast, 28 Watt Lamps | BC196: Electronic Std | BD196: 3 | BE196: 28 | BF196: 75
BA197: T8 | BB197: (3) 48", T8, High Output Ballast, 28 Watt Lamps | BC197: Electronic HO | BD197: 3 | BE197: 28 | BF197: 96
BA198: T8 | BB198: (3) 48", T8, Std Ballast, 32 Watt Lamps | BC198: Electronic Std | BD198: 3 | BE198: 32 | BF198: 90
BA199: T8 | BB199: (3) 48", T8, High Output Ballast, 32 Watt Lamps | BC199: Electronic HO | BD199: 3 | BE199: 32 | BF199: 108
BA200: T8 | BB200: (3) 96", T8 Std Ballast, 57 Watt Lamps | BC200: Electronic Std | BD200: 3 | BE200: 57 | BF200: 156
BA201: T8 | BB201: (3) 96", T8, High Output Ballast, 57 Watt Lamps | BC201: Electronic HO | BD201: 3 | BE201: 57 | BF201: 177
BA202: T8 | BB202: (3) 96", T8 Std Ballast, 59 Watt Lamps | BC202: Electronic Std | BD202: 3 | BE202: 59 | BF202: 165
BA203: T8 | BB203: (3) 96", T8, High Output Ballast, 59 Watt Lamps | BC203: Electronic HO | BD203: 3 | BE203: 59 | BF203: 186
... 115 more rows

Sheet HVAC
B1: HVAC INCENTIVES | G1: See spec sheets at the bottom of the page! | L1: USE THIS SECTION TO REPLACE THE TABLE IN THE SPECS WORKSHEET
A2: Applicant: fill in gray fields at bottom | B2: See instructions to complete this worksheet at the bottom of the page
A3: HVAC Units
A4: Equipment Type | D4: Size Category | G4: Qualifying Efficiency* | H4: Incentive (per ton) | I4: Efficiency Bonus | J4: New Qualifying Efficiency* | L4: Equipment Type | M4: Size Category | P4: Qualifying Efficiency* | Q4: Incentive (per ton) | R4: Efficiency Bonus
A5: Unitary and Split Air Conditioning Systems | D5: < 65,000 Btu/h (5.4 tons) | G5: 15.0 SEER | H5: 25 | I5: 15 | J5: 15.0 SEER | L5: Unitary and Split Air Conditioning Systems | M5: < 65,000 Btu/h (5.4 tons) | P5: =J5 -> 15.0 SEER | Q5: 25 | R5: 15
D6: ≥ 65,000 Btu/h and < 135,000 Btu/h (5.4-11.25 tons) | G6: 13.7 IEER** | J6: 11.8 EER** | M6: ≥ 65,000 Btu/h and < 135,000 Btu/h (5.4-11.25 tons) | P6: 11.8 EER**
D8: ≥ 135,000 Btu/h and < 240,000 Btu/h (11.25-20 tons) | G8: 13.3 IEER** | J8: 11.6 EER** | M8: ≥ 135,000 Btu/h and < 240,000 Btu/h (11.25-20 tons) | P8: 11.6 EER**
D10: ≥ 240,000 Btu/h and < 760,000 Btu/h (20-63 Tons) | G10: 12.4 IEER** | J10: 10.5 EER** | M10: ≥ 240,000 Btu/h and < 760,000 Btu/h (20-63 Tons) | P10: 10.5 EER**
D12: ≥ 760,000 Btu/h (> 63 tons) | G12: 12.0 IEER** | J12: 10.2 EER** | M12: ≥ 760,000 Btu/h (> 63 tons) | P12: 10.2 EER**
A14: Air Source Heat Pumps | D14: < 65,000 Btu/h (5.4 tons) | G14: 15 SEER and 8.6 HSPF | H14: 40 | I14: 15 | J14: 15 SEER and 8.6 HSPF | L14: Air Source Heat Pumps | M14: < 65,000 Btu/h (5.4 tons) | P14: 15 SEER and 8.6 HSPF | Q14: 40 | R14: 15
D15: ≥ 65,000 Btu/h and < 135,000 Btu/h (5.4-11.25 tons) | G15: 12.9 IEER** and 3.5 COP | J15: 11.6 EER** and 3.5 COP | M15: ≥ 65,000 Btu/h and < 135,000 Btu/h (5.4-11.25 tons) | P15: 11.6 EER** and 3.5 COP
D17: ≥ 135,000 Btu/h and < 240,000 Btu/h (11.25-20 tons) | G17: 12.4 IEER** and 3.4 COP | J17: 11.1 EER** and 3.4 COP | M17: ≥ 135,000 Btu/h and < 240,000 Btu/h (11.25-20 tons) | P17: 11.1 EER** and 3.4 COP
D19: ≥ 240,000 Btu/h and < 760,000 Btu/h (20-63 Tons) | G19: 11.4 IEER** and 3.4 COP | J19: 10.0 EER** and 3.4 COP | M19: ≥ 240,000 Btu/h and < 760,000 Btu/h (20-63 Tons) | P19: 10.0 EER** and 3.4 COP
A21: Chillers: Water-Cooled, Centrifugal*** | D21: ≤ 150 tons | G21: 0.495 kW/ton-IPLV | H21: 20 | I21: 20 | J21: 0.495 kW/ton-IPLV | L21: Chillers: Water-Cooled, Centrifugal | M21: ≤ 150 tons | P21: 0.495 kW/ton-IPLV | Q21: 20 | R21: 20
D22: >150 tons and ≤ 300 tons | G22: 0.495 kW/ton-IPLV | J22: 0.495 kW/ton-IPLV | M22: >150 tons and ≤ 300 tons | P22: 0.495 kW/ton-IPLV
D23: > 300 tons to ≤ 400 tons | G23: 0.468 kW/ton-IPLV | J23: 0.468 kW/ton-IPLV | M23: > 300 tons to ≤ 400 tons | P23: 0.468 kW/ton-IPLV
D24: > 400 tons to ≤ 600 tons | G24: 0.450 kW/ton-IPLV | J24: 0.450 kW/ton-IPLV | M24: > 400 tons to ≤ 600 tons | P24: 0.450 kW/ton-IPLV
D25: > 600 | G25: 0.450 kW/ton-IPLV | J25: 0.450 kW/ton-IPLV | M25: > 600 | P25: 0.450 kW/ton-IPLV
A26: Chillers: Water Cooled Scroll, Helical-Rotary or Reciprocating*** | D26: ≤ 75 tons | G26: 0.54 kW/ton-IPLV | J26: 0.54 kW/ton-IPLV | L26: Chillers: Water Cooled Scroll, Helical-Rotary or Reciprocating*** | M26: ≤ 75 tons | P26: 0.54 kW/ton-IPLV
D27: > 75 tons and ≤ 150 tons | G27: 0.504 kW/ton-IPLV | J27: 0.504 kW/ton-IPLV | M27: > 75 tons and ≤ 150 tons | P27: 0.504 kW/ton-IPLV
D28: >150 tons and ≤ 300 tons | G28: 0.486 kW/ton-IPLV | J28: 0.486 kW/ton-IPLV | M28: >150 tons and ≤ 300 tons | P28: 0.486 kW/ton-IPLV
D29: > 300 tons and ≤ 600 tons | G29: 0.468 kW/ton-IPLV | J29: 0.468 kW/ton-IPLV | M29: > 300 tons and ≤ 600 tons | P29: 0.468 kW/ton-IPLV
D30: > 600 tons | G30: 0.540 kW/ton-IPLV | J30: 0.540 kW/ton-IPLV | M30: > 600 tons | P30: 0.540 kW/ton-IPLV
A31: Chillers: Air-Cooled | D31: ≤ 150 | G31: 0.788 kW/ton-IPLV | H31: 40 | I31: 20 | J31: 0.788 kW/ton-IPLV | L31: Chillers: Air-Cooled | M31: ≤ 150 | P31: 0.788 kW/ton-IPLV
D32: > 150 | G32: 0.771 kW/ton-IPLV | J32: 0.771 kW/ton-IPLV | M32: > 150 | P32: 0.771 kW/ton-IPLV | Q32: 40 | R32: 20
A33: Packaged Terminal AC | D33: ALL | G33: 14.5-(0.300 x Btu/h/1000) EER | H33: 50 | I33: 0 | J33: 14.5-(0.300 x Btu/h/1000) EER | L33: Packaged Terminal AC | M33: ALL | P33: 14.5-(0.300 x Btu/h/1000) EER | Q33: 50 | R33: 0
A34: Packaged Terminal HP | D34: ALL | G34: 14.5-(0.300 x Btu/h/1000) EER | H34: 100 | J34: 14.5-(0.300 x Btu/h/1000) EER | L34: Packaged Terminal HP | M34: ALL | P34: 14.5-(0.300 x Btu/h/1000) EER | Q34: 100
A35: Variable Refrigerant Flow HP | D35: < 65,000 Btu/h (5.4 tons) | G35: 13.9 SEER and 8.3 HSPF | H35: 40 | I35: 20 | J35: 13.9 SEER and 8.3 HSPF | L35: Variable Refrigerant Flow HP | M35: < 65,000 Btu/h (5.4 tons) | P35: 13.9 SEER and 8.3 HSPF | Q35: 40 | R35: 20
D36: ≥ 65,000 Btu/h and < 135,000 Btu/h (5.4-11.25 tons) | G36: 15.4 IEER and 3.5 COP | H36: 40 | I36: 25 | J36: 15.4 IEER and 3.5 COP | M36: ≥ 65,000 Btu/h and < 135,000 Btu/h (5.4-11.25 tons) | P36: 15.4 IEER and 3.5 COP | Q36: 40 | R36: 25
D37: ≥ 135,000 Btu/h and < 240,000 Btu/h (11.25-20 tons) | G37: 14.7 IEER and 3.4 COP | J37: 14.7 IEER and 3.4 COP | M37: ≥ 135,000 Btu/h and < 240,000 Btu/h (11.25-20 tons) | P37: 14.7 IEER and 3.4 COP
D38: ≥ 240,000 Btu/h (20 Tons) | G38: 13.4 IEER and 3.4 COP | J38: 13.4 IEER and 3.4 COP | M38: ≥ 240,000 Btu/h (20 Tons) | P38: 13.4 IEER and 3.4 COP
A39: Equipment Model | B39: Tons | C39: Efficiency Rating | D39: Quantity | E39: Equipment Type | G39: Size Category | I39: Incentive
I40: =IF(E40="","",IF(LEFT(E40,1)<>"C",B40*D40*IF(VLOOKUP(CONCATENATE(E40,G40),$V$114:$Y$144,2,FALSE)>C40,0,VLOOKUP(CONCATENATE(E40,G40),$V$114:$Y$144,3,FALSE)+(C40-(VLOOKUP(CONCATENATE(E40,G40),$V$114:$Y$144,2,FALSE)))*(VLOOKUP(CONCATENATE(E40,G40),$V$114:$Y$144,4,FALSE))),B40*D40*IF(VLOOKUP(CONCATENATE(E40,G40),$V$114:$Y$144,2,FALSE)<C40,0,VLOOKUP(CONCATENATE(E40,G40),$V$114:$Y$144,3,FALSE)+((VLOOKUP(CONCATENATE(E40,G40),$V$114:$Y$144,2,FALSE))-C40)*(VLOOKUP(CONCATENATE(E40,G40),$V$114:$Y$144,4,FALSE))/0.1))) -> 
N46: Cooling Only | R46: Heating and Cooling
L47: Thermostats - System Description | M47: Rated Cooling Capacity | N47: Incentive | O47: $/kWh | P47: EUL, years | Q47: IMC | R47: Incentive | S47: $/kWh | T47: EUL, years | U47: IMC
L48: Air Conditioning (Refrigerated Air) | M48: 12000 | N48: 15 | O48: 0.165579784 | P48: 10 | Q48: 175 | R48: 55 | S48: 0.1406993608 | T48: 10 | U48: 175
L49: Heat Pump | M49: 18000 | N49: 25 | O49: 0.1839775378 | P49: 10 | Q49: 175 | R49: 75 | S49: 0.1279085098 | T49: 10 | U49: 175
L50: Electric Baseboard / Furnace | M50: 24000 | N50: 35 | O50: 0.1931764146 | P50: 10 | Q50: 175 | R50: 95 | S50: 0.1215130843 | T50: 10 | U50: 175
M51: 30000 | N51: 45 | O51: 0.1986957408 | P51: 10 | Q51: 175 | R51: 115 | S51: 0.117675829 | T51: 10 | U51: 175
M52: 36000 | N52: 55 | O52: 0.2023752915 | P52: 10 | Q52: 175 | R52: 135 | S52: 0.1151176588 | T52: 10 | U52: 175
A54: =IF('Applicant Info'!$P$13=TRUE,"Income Qualifier Bonus","HVAC Units Incentive") -> HVAC Units Incentive | I54: =IF('Applicant Info'!$P$13=TRUE,SUM(I40:I53)*0.1,SUM(I40:I53)) -> 0
A55: HVAC Units Incentive | I55: =SUM(I40:I54) -> 0
A56: * Use SEER for Unitary and Split Units less than 5.4 tons and IEER for units larger than 5.4 tons; values available from CEE 2012 Tier 2; Use IEER for VRF Units; IPLV values based on ASHRAE 90.1 2016; see specifications page for complete list. Attach AHRI Rating Sheet. ** Units with electric resistance heating must have IEER values 0.2 higher than the efficiencies listed. *** Unit efficiency for chillers should be provided in kW per ton – IPLV where IPLV = Integrated Part Load Value; values based on ASHRAE 90.1-2016. Attach manufacturer's rating sheet for credit.
A61: INSTRUCTIONS TO COMPLETE THIS WORKSHEET:
A62: Equipment Model: | B62: Enter the equipment model as shown on the invoice; provide the specification sheet(s) that accompany the model
A63: Tons: | B63: Enter the equipment tonnage from the AHRI or manufacturer specification sheet
A64: Efficiency Rating: | B64: Enter the equipment efficiency rating from the AHRI or manufacturer specification sheet; for chillers, kW/ton = 12/IPLV EER
A65: Quantity: | B65: Enter the number of units that fit this size and efficiency rating
A66: Equipment Type: | B66: Enter the equipment type from the drop-down menu
A67: Size Category: | B67: Enter the equipment size from the drop-down menu
A68: Note: The reference standard in IECC 2018 is ASHRAE 90.1 2016
A70: Variable Speed Drives on Fan and Pump Applications (when adding VSDs where none existed before) | K70: VSDs
A71: VSD Application Description | B71: VSD Size (HP) (Must be less than 200 HP) | D71: Incentive Unit | F71: Incentive/ Unit* | H71: Quantity | I71: Incentive | K71: Equipment Type | L71: Incentive
D72: per HP | F72: =_xlfn.XLOOKUP(A72,$K$72:$K$77,$L$72:$L$77,"",0) ->  | I72: =IF($A72="","",$B72*$H72*$F72) ->  | K72: Supply Fans | L72: 200
D73: per HP | F73: =_xlfn.XLOOKUP(A73,$K$72:$K$77,$L$72:$L$77,"",0) ->  | K73: Return Fans | L73: 175
D74: per HP | K74: Cooling Water Pumps | L74: 200
D75: per HP | K75: Hot Water Pumps | L75: 150
D76: per HP | K76: WSHP Circulation Pumps | L76: 250
D77: per HP | K77: Cooling Tower Fan | L77: 100
D78: per HP
D79: per HP
D80: per HP
D81: per HP
A82: =IF('Applicant Info'!$P$13=TRUE,"Income Qualifier Bonus","VSD Incentive") -> VSD Incentive | I82: =IF('Applicant Info'!$P$13=TRUE,SUM(I72:I81)*0.1,SUM(I72:I81)) -> 0
A83: VSD Incentive | I83: =SUM(I72:I82) -> 0
A84: *The variable speed drive incentive is calculated based on the horsepower (HP) that is actually being controlled, not necessarily the size of the VSD. This section for HVAC only; for VSD's on non-HVAC
A85: equipment, use the Custom tab. | K85: Unitary and Split Air Conditioning Systems
A86: Smart/Programmable Thermostats (when replacing Manual or Programmable Thermostats, pre-inspection required) | K86: Air Source Heat Pumps
A87: Equipment Type | B87: Incentive/Unit | D87: Quantity | G87: Incentive | K87: Chillers: Water-Cooled: Centrifugal
A88: Smart Thermostats | B88: 95 | G88: =IF(ISBLANK(D88),"",B88*D88) ->  | K88: Chillers: Water-Cooled: Scroll, Screw or Reciprocating
A89: Programmable Thermostats | B89: 20 | G89: =IF(ISBLANK(D89),"",B89*D89) ->  | K89: Chillers: Air-Cooled
A90: =IF('Applicant Info'!$P$13=TRUE,"Income Qualifier Bonus","Thermostats Incentive") -> Thermostats Incentive | G90: =IF('Applicant Info'!$P$13=TRUE,SUM(G88:I89)*0.1,SUM(G88:I89)) -> 0 | K90: Packaged Terminal AC
A91: Thermostats Incentive | G91: =SUM(G88:I89)+G90 -> 0 | K91: Packaged Terminal HP
K92: Variable Refrigerant Flow HP
A93: Guest Room Energy Management System
A94: Type/Description | B94: Incentive Unit | D94: Incentive/Unit | E94: Unit Size (Tons) | G94: Quantity | H94: Incentive
A95: Multi-family Guest Room Occupancy Sensor | B95: Per Ton per Room | D95: 75 | H95: =IF(D95*E95*G95=0,"",D95*E95*G95) -> 
A96: Multi-family Guest Room Occupancy Sensor | B96: Per Ton per Room | D96: 75 | H96: =IF(D96*E96*G96=0,"",D96*E96*G96) -> 
A97: Multi-family Guest Room Occupancy Sensor | B97: Per Ton per Room | D97: 75 | K97: < 65,000 Btu/h (5.4 tons)
A98: =IF('Applicant Info'!$P$13=TRUE,"Income Qualifier Bonus","GREM Incentive") -> GREM Incentive | H98: =IF('Applicant Info'!$P$13=TRUE,SUM(H95:H97)*0.1,SUM(H95:H97)) -> 0 | K98: ≥ 65,000 Btu/h and < 135,000 Btu/h (5.4-11.25 tons)
A99: GREM Incentive | H99: =SUM(H95:H97)+H98 -> 0 | K99: ≥ 135,000 Btu/h and < 240,000 Btu/h (11.25-20 tons)
K100: ≥ 240,000 Btu/h and < 760,000 Btu/h (20-63 Tons)
A101: ENERGY STAR® Exhaust Fans | K101: ≥ 760,000 Btu/h (> 63 tons)
A102: Efficiency Level | B102: Standard Usage (10 - 89 CFM) | E102: Standard Usage (90 - 200 CFM) | H102: Continuous | K102: ≤ 75 tons
A103: ENERGY STAR® Certified | B103: 10 | E103: 10 | H103: 20 | K103: > 150 tons
A104: ENERGY STAR® Most Efficient | B104: 15 | E104: 15 | H104: 30 | K104: ≤ 150 tons
A105: Type/Description | B105: Incentive Unit | D105: Efficiency Level | G105: Quantity | H105: Incentive | K105: >150 tons and ≤ 300 tons
A106: Standard Usage (10 - 89 CFM) | B106: Unit | H106: =IF(OR(D106 = "",G106=""),"",IF(D106 = "ENERGY STAR® Certified",10,IF(D106 = "ENERGY STAR® Most Efficient",15))*G106) ->  | K106: >300 tons and ≤ 400 tons
A107: Standard Usage (90 - 200 CFM) | B107: Unit | H107: =IF(OR(D107 = "",G107=""),"",IF(D107 = "ENERGY STAR® Certified",10,IF(D107 = "ENERGY STAR® Most Efficient",15))*G107) ->  | K107: > 400 tons and ≤ 600 tons
A108: Continuous - Standard | B108: Unit | H108: =IF(OR(D108 = "",G108=""),"",IF(D108 = "ENERGY STAR® Certified",20,IF(D108 = "ENERGY STAR® Most Efficient",30))*G108) ->  | K108: >600
A109: =IF('Applicant Info'!$P$13=TRUE,"Income Qualifier Bonus","Exhaust Fans Incentive") -> Exhaust Fans Incentive | H109: =IF('Applicant Info'!$P$13=TRUE,SUM(H106:I108)*0.1,SUM(H106:I108)) -> 0 | K109: ALL
A110: Exhaust Fans Incentive | H110: =SUM(H106:I108)+H109 -> 0
A112: Total HVAC Incentives | I112: =IF('Applicant Info'!$P$13=TRUE,I55+I83+G91+H99+H110,I54+I82+G90+H98+H109) -> 0
S114: Level Normal (2021 V2) | T114: 2021 V2 Rounded | U114: Level Normal (2021 V1) | W114: Level Normal | X114: Incentive | Y114: Bonus | Z114: Level 2 | AA114: Level 3 | AB114: Level 4 | AC114: Min | AD114: Max
S116: 15.00002 | T116: =ROUND(S116,1) -> 15 | U116: 14 | V116: Unitary and Split Air Conditioning Systems< 65,000 Btu/h (5.4 tons) | W116: =T116 -> 15 | X116: 25 | Y116: 15 | Z116: =W116+1 -> 16 | AA116: =Z116+1 -> 17 | AB116: 18 | AC116: 0 | AD116: 5.4
S117: 13.714304 | T117: 13.7 | U117: 12 | V117: Unitary and Split Air Conditioning Systems≥ 65,000 Btu/h and < 135,000 Btu/h (5.4-11.25 tons) | W117: 13.7 | X117: 25 | Y117: 15 | Z117: =W117+1 -> 14.7 | AA117: 15.7 | AB117: 16.7
S118: 13.285732 | T118: 13.3 | U118: 12 | V118: Unitary and Split Air Conditioning Systems≥ 135,000 Btu/h and < 240,000 Btu/h (11.25-20 tons) | W118: 13.3 | X118: 25 | Y118: 15 | Z118: =W118+1 -> 14.3 | AA118: 15.3 | AB118: 16.3 | AC118: 11.25 | AD118: 20
S119: 12.428588 | T119: 12.4 | U119: 10.8 | V119: Unitary and Split Air Conditioning Systems≥ 240,000 Btu/h and < 760,000 Btu/h (20-63 Tons) | W119: 12.4 | X119: 25 | Y119: 15 | Z119: =W116+1 -> 16 | AA119: =Z116+1 -> 17 | AB119: =AA116+1 -> 18 | AC119: 20 | AD119: 63
S120: 12.000016 | T120: 12 | U120: 10.2 | V120: Unitary and Split Air Conditioning Systems≥ 760,000 Btu/h (> 63 tons) | W120: 12 | X120: 25 | Y120: 15 | Z120: =W120+1 -> 13 | AA120: 14 | AB120: 15 | AC120: 63 | AD120: 100000
S121: 15.00002 | T121: 15 | U121: 14 | V121: Air Source Heat Pumps< 65,000 Btu/h (5.4 tons) | W121: 15 | X121: 40 | Y121: 15 | Z121: =W121+1 -> 16 | AA121: 17 | AB121: 18 | AC121: 0 | AD121: 5.4
S122: 12.85716 | T122: 12.9 | U122: 11.6 | V122: Air Source Heat Pumps≥ 65,000 Btu/h and < 135,000 Btu/h (5.4-11.25 tons) | W122: 12.9 | X122: 40 | Y122: 15 | Z122: =W122+1 -> 13.9 | AA122: 14.9 | AB122: 15.9 | AC122: 5.4 | AD122: 11.25
S123: 12.428588 | T123: 12.4 | U123: 11.2 | V123: Air Source Heat Pumps≥ 135,000 Btu/h and < 240,000 Btu/h (11.25-20 tons) | W123: 12.4 | X123: 40 | Y123: 15 | Z123: =W123+1 -> 13.4 | AA123: 14.4 | AB123: 15.4 | AC123: 11.25 | AD123: 20
S124: 11.357158 | T124: 11.4 | U124: 10 | V124: Air Source Heat Pumps≥ 240,000 Btu/h and < 760,000 Btu/h (20-63 Tons) | W124: 11.4 | X124: 40 | Y124: 15 | Z124: =W121+1 -> 16 | AA124: =Z121+1 -> 17 | AB124: =AA121+1 -> 18 | AC124: 20 | AD124: 63
S125: 9.964299 | T125: 10 | U125: 10 | V125: Air Source Heat Pumps≥ 760,000 Btu/h (> 63 tons) | W125: 10 | X125: 40 | Y125: 15 | Z125: =W125+1 -> 11 | AA125: =Z125+1 -> 12 | AB125: =AA125+1 -> 13 | AC125: 63 | AD125: 100000
S126: 0.495 | T126: =S126 -> 0.495 | U126: 0.569 | V126: Chillers: Water-Cooled: Centrifugal ≤ 150 tons | W126: 0.495 | X126: 20 | Y126: 20 | Z126: 0.54 | AA126: =ROUNDUP(W126/0.9*0.7,2) -> 0.39 | AB126: =ROUNDUP(W126/0.9*0.6,2) -> 0.33 | AC126: 0 | AD126: 150
S127: 0.495 | T127: =S127 -> 0.495 | U127: 0.507 | V127: Chillers: Water-Cooled: Centrifugal>150 tons and ≤ 300 tons | W127: 0.495 | X127: 20 | Y127: 20 | Z127: 0.54 | AA127: 0.39 | AB127: 0.33 | AC127: 150 | AD127: 300
S128: 0.468 | T128: =S128 -> 0.468 | U128: 0.467 | V128: Chillers: Water-Cooled: Centrifugal>300 tons and ≤ 400 tons | W128: 0.468 | X128: 20 | Y128: 20 | Z128: 0.48 | AA128: 0.37 | AB128: 0.32 | AC128: 300 | AD128: 400
S129: 0.45 | T129: =S129 -> 0.45 | U129: New Size category | V129: Chillers: Water-Cooled: Centrifugal> 400 tons and ≤ 600 tons | W129: 0.45 | X129: 20 | Y129: 20 | Z129: 0.44 | AA129: 0.35 | AB129: 0.3 | AC129: 400 | AD129: 600
S130: 0.45 | T130: =S130 -> 0.45 | U130: New Size Category | V130: Chillers: Water-Cooled: Centrifugal > 600 | W130: 0.45 | X130: 20 | Y130: 20 | Z130: 0.42 | AA130: 0.35 | AB130: 0.3 | AC130: 600 | AD130: 10000
S131: 0.54 | T131: 0.54 | U131: 0.592 | V131: Chillers: Water-Cooled: ReciprocatingALL | W131: 0.54 | X131: 20 | Y131: 20 | Z131: 0.54 | AA131: 0.42 | AB131: 0.36 | AC131: 0 | AD131: 75
S132: 0.54 | T132: 0.54 | U132: New Size Category | V132: Chillers: Water-Cooled: Scroll, Screw or Reciprocating≤ 75 tons | W132: 0.54 | X132: 20 | Y132: 20 | Z132: 0.54 | AA132: 0.42 | AB132: 0.36 | AC132: 0 | AD132: 75
S133: 0.504 | T133: 0.504 | U133: 0.575 | V133: Chillers: Water-Cooled: Scroll, Screw or Reciprocating>75 tons and ≤ 150 tons | W133: 0.504 | X133: 20 | Y133: 20 | Z133: 0.54 | AA133: 0.4 | AB133: 0.34 | AC133: 75 | AD133: 150
S134: 0.486 | T134: 0.486 | U134: 0.534 | V134: Chillers: Water-Cooled: Scroll, Screw or Reciprocating>150 tons and ≤ 300 tons | W134: 0.486 | X134: 20 | Y134: 20 | Z134: 0.5 | AA134: 0.38 | AB134: 0.33 | AC134: 150 | AD134: 300
S135: 0.468 | T135: 0.468 | U135: 0.486 | V135: Chillers: Water-Cooled: Scroll, Screw or ReciprocatingScroll, Screw or Reciprocating> 300 tons and ≤ 600 tons | W135: 0.468 | X135: 20 | Y135: 20 | Z135: 0.46 | AA135: 0.37 | AB135: 0.32 | AC135: 300 | AD135: 600
S136: 0.45 | T136: 0.45 | U136: New Size Category | V136: Chillers: Water-Cooled: Scroll, Screw or Reciprocating > 600 tons | W136: 0.45 | X136: 20 | Y136: 20 | Z136: 0.42 | AA136: 0.35 | AB136: 0.3 | AC136: 600 | AD136: 10000
S137: 0.788 | T137: 0.788 | U137: 0.867 | V137: Chillers: Air-Cooled≤ 150 tons | W137: 0.788 | X137: 40 | Y137: 20 | Z137: =ROUND(W137/0.9*0.8,2) -> 0.7 | AA137: 0.62 | AB137: 0.53 | AC137: 0 | AD137: 150
S138: 0.771 | T138: 0.771 | U138: 0.867 | V138: Chillers: Air-Cooled> 150 tons | W138: 0.771 | X138: 40 | Y138: 20 | Z138: =ROUND(W138/0.9*0.8,2) -> 0.69 | AA138: 0.6 | AB138: 0.52 | AC138: 150 | AD138: 100000 | AP138: Chillers: Air-Cooled | AQ138: Unitary and Split Air Conditioning Systems | AR138: Chillers: Water Cooled Scroll, Helical-Rotary or Reciprocating*** | AS138: Chillers: Water-Cooled, Centrifugal*** | AT138: Air Source Heat Pumps | AU138: Variable Refrigerant Flow HP | AV138: Packaged Terminal AC | AW138: Packaged Terminal HP
S139: =14.5-(0.3*_xlfn.IFNA(INDEX($A$40:$I$53,MATCH("Packaged Terminal AC",$E$40:$E$53,0),2),0)*12000/1000) -> 14.5 | T139: =S139 -> 14.5 | U139: =12.5-(0.213*B40*12000/1000) -> 12.5 | V139: Packaged Terminal ACALL | W139: 14.5 | X139: 50 | Y139: 0 | Z139: =W139+1 -> 15.5 | AA139: =Z139+1 -> 16.5 | AB139: 17.5 | AC139: 0 | AD139: 100000 | AP139: ≤ 150 | AQ139: < 65,000 Btu/h (5.4 tons) | AR139: ≤ 75 tons | AS139: ≤ 150 tons | AT139: < 65,000 Btu/h (5.4 tons) | AU139: < 65,000 Btu/h (5.4 tons) | AV139: ALL | AW139: ALL
S140: =14.5-(0.3*_xlfn.IFNA(INDEX($A$40:$I$53,MATCH("Packaged Terminal HP",$E$40:$E$53,0),2),0)*12000/1000) -> 14.5 | T140: =S140 -> 14.5 | U140: =12.3-(0.213*B41*12000/1000) -> 12.3 | V140: Packaged Terminal HPALL | W140: 14.5 | X140: 100 | Y140: 0 | Z140: 15.5 | AA140: 16.5 | AB140: 17.5 | AC140: 0 | AD140: 100000 | AP140: > 150 | AQ140: ≥ 65,000 Btu/h and < 135,000 Btu/h (5.4-11.25 tons) | AR140: > 75 tons and ≤ 150 tons | AS140: >150 tons and ≤ 300 tons | AT140: ≥ 65,000 Btu/h and < 135,000 Btu/h (5.4-11.25 tons) | AU140: ≥ 65,000 Btu/h and < 135,000 Btu/h (5.4-11.25 tons)
S141: 15.428592 | T141: =ROUND(S141,1) -> 15.4 | U141: 14.8 | V141: Variable Refrigerant Flow HP≥ 65,000 Btu/h and < 135,000 Btu/h (5.4-11.25 tons) | W141: 15.4 | X141: 40 | Y141: 25 | Z141: 16.4 | AA141: 17.4 | AB141: 18.4 | AC141: 5.4 | AD141: 11.25 | AQ141: ≥ 135,000 Btu/h and < 240,000 Btu/h (11.25-20 tons) | AR141: >150 tons and ≤ 300 tons | AS141: > 300 tons to ≤ 400 tons | AT141: ≥ 135,000 Btu/h and < 240,000 Btu/h (11.25-20 tons) | AU141: ≥ 135,000 Btu/h and < 240,000 Btu/h (11.25-20 tons)
S142: 14.678591 | T142: =ROUND(S142,1) -> 14.7 | U142: 14.2 | V142: Variable Refrigerant Flow HP≥ 135,000 Btu/h and < 240,000 Btu/h (11.25-20 tons) | W142: 14.7 | X142: 40 | Y142: 25 | Z142: 15.7 | AA142: 16.7 | AB142: 17.7 | AC142: 11.25 | AD142: 20 | AQ142: ≥ 240,000 Btu/h and < 760,000 Btu/h (20-63 Tons) | AR142: > 300 tons and ≤ 600 tons | AS142: > 400 tons to ≤ 600 tons | AT142: ≥ 240,000 Btu/h and < 760,000 Btu/h (20-63 Tons) | AU142: ≥ 240,000 Btu/h (20 Tons)
S143: 13.392875 | T143: =ROUND(S143,1) -> 13.4 | U143: 12.7 | V143: Variable Refrigerant Flow HP≥ 240,000 Btu/h and < 760,000 Btu/h (20-63 Tons) | W143: 13.4 | X143: 40 | Y143: 25 | Z143: 14.4 | AA143: 15.4 | AB143: 16.4 | AC143: 20 | AD143: 63 | AQ143: ≥ 760,000 Btu/h (> 63 tons) | AR143: > 600 tons | AS143: > 600
S144: 13.92859 | T144: =ROUND(S144,1) -> 13.9 | U144: 15.6 | V144: Variable Refrigerant Flow HP< 65,000 Btu/h (5.4 tons) | W144: 13.9 | X144: 40 | Y144: 25 | Z144: 14.9 | AA144: 15.9 | AB144: 16.9 | AC144: 63 | AD144: 100000
Z146: **used stated values for Level 2, if available. Else was rounded up to the 10s of watts
AL150: Categories | AM150: Column1 | AN150: Column2
AL151: Unitary and Split Air Conditioning Systems | AM151: UnitarySplit | AN151: 1
AL152: Air Source Heat Pumps | AM152: AirSourceHP | AN152: 2
AL153: Variable Refrigerant Flow HP | AM153: VRF | AN153: 3
AL154: Chillers: Water Cooled Scroll, Helical-Rotary or Reciprocating*** | AM154: ChillerHelical | AN154: 4
AL155: Chillers: Water-Cooled, Centrifugal*** | AM155: ChillerCent | AN155: 5
AL156: Chillers: Air-Cooled | AM156: ChillerAir | AN156: 6
AL157: Packaged Terminal AC | AM157: PTAC | AN157: 7
AL158: Packaged Terminal HP | AM158: PTHP | AN158: 8

Sheet Food Service
B1: FOOD SERVICE INCENTIVES
A2: Applicant: fill in gray fields | G2: See spec sheets at the bottom of the page!
A3: ENERGY STAR® Ovens & Fryers
A4: Equipment Type | F4: Incentive Unit | G4: Incentive/Unit | I4: # of Units | J4: Incentive | M4: kWh/Unit | N4: kWh Savings
A5: Combination Oven - Full Size | F5: Unit | G5: 800 | J5: =IF(ISBLANK(I5),"",I5*G5) ->  | M5: 6368 | N5: =M5*I5 -> 0
A6: Convection Oven - Half Size | F6: Unit | G6: 100 | M6: 3043 | N6: 0
A7: Convection Oven - Full Size < 5 pans | F7: Unit | G7: 300 | M7: 4633 | N7: 0
A8: Convection Oven - Full size ≥ 5 pans | F8: Unit | G8: 350 | M8: 244 | N8: 0
A9: Commercial Vat Fryer - Standard | F9: Unit | G9: 250 | M9: 3272 | N9: 0
A10: Commercial Vat Fryer - Large | F10: Unit | G10: 300 | M10: 2696 | N10: 0
A11: =IF('Applicant Info'!$P$13=TRUE,"Income Qualifier Bonus","Ovens & Fryers Incentive") -> Ovens & Fryers Incentive | J11: =IF('Applicant Info'!$P$13=TRUE,SUM(J5:K10)*0.1,SUM(J5:K10)) -> 0
A12: Ovens & Fryers Incentive | J12: =SUM(J5:K11) -> 0
A14: ENERGY STAR® Steam Cookers
A15: Equipment Type | F15: Incentive Unit | G15: Incentive/Unit | I15: # of Units | J15: Incentive
A16: Boiler Based - 3 Pan | F16: Unit | G16: 1200 | J16: =IF(ISBLANK(I16),"",I16*G16) ->  | M16: 11784 | N16: =M16*I16 -> 0
A17: Boiler Based - 4 Pan | F17: Unit | G17: 1400 | M17: 14553 | N17: 0
A18: Boiler Based - 5 Pan | F18: Unit | G18: 1600 | M18: 17268 | N18: 0
A19: Boiler Based - ≥6 Pan | F19: Unit | G19: 1800 | M19: 19990 | N19: 0
A20: Steam Generator - 3 Pan | F20: Unit | G20: 800 | M20: 9967 | N20: 0
A21: Steam Generator - 4 Pan | F21: Unit | G21: 900 | M21: 12107 | N21: 0
A22: Steam Generator - 5 Pan | F22: Unit | G22: 1000 | M22: 14186 | N22: 0
A23: Steam Generator - ≥6 Pan | F23: Unit | G23: 1200 | M23: 16270 | N23: 0
A24: =IF('Applicant Info'!$P$13=TRUE,"Income Qualifier Bonus","Steam Cookers Incentive") -> Steam Cookers Incentive | J24: =IF('Applicant Info'!$P$13=TRUE,SUM(J16:K23)*0.1,SUM(J16:K23)) -> 0
A25: Steam Cookers Incentive | J25: =SUM(J16:K24) -> 0
A27: ENERGY STAR® Hot Food Holding Cabinet
A28: Equipment Type | F28: Incentive Unit | G28: Incentive/Unit | I28: # of Units | J28: Incentive
A29: Half size | F29: Unit | G29: 125 | J29: =IF(ISBLANK(I29),"",I29*G29) ->  | M29: 1215 | N29: =M29*I29 -> 0
A30: Three-quarter size | F30: Unit | G30: 300 | J30: =IF(ISBLANK(I30),"",I30*G30) ->  | M30: 2770 | N30: =M30*I30 -> 0
A31: Full-size | F31: Unit | G31: 500 | J31: =IF(ISBLANK(I31),"",I31*G31) ->  | M31: 4832 | N31: =M31*I31 -> 0
A32: =IF('Applicant Info'!$P$13=TRUE,"Income Qualifier Bonus","Hot Food Holding Cabinets Incentive") -> Hot Food Holding Cabinets Incentive | J32: =IF('Applicant Info'!$P$13=TRUE,SUM(J29:K31)*0.1,SUM(J29:K31)) -> 0
A33: Hot Food Holding Cabinets Incentive | J33: =SUM(J29:K32) -> 0
A35: ENERGY STAR® High Efficiency Ice Makers
A36: Equipment Type | F36: Installed kWk/100 lbs | G36: Incentive/Unit | I36: # of Units | J36: Incentive
A37: 150 lb/24 hours | F37: Unit | G37: 100 | J37: =IF(ISBLANK(I37),"",I37*G37) ->  | M37: 401 | N37: =M37*I37 -> 0
A38: 250 lb/24 hours | F38: Unit | G38: 125 | M38: 469 | N38: 0
A39: 350 lb/24 hours | F39: Unit | G39: 150 | M39: 357 | N39: 0
A40: 450 lb/24 hours | F40: Unit | G40: 150 | M40: 440 | N40: 0
A41: 750 lb/24 hours | F41: Unit | G41: 200 | M41: 850 | N41: 0
A42: 1500 lb/24 hours | F42: Unit | G42: 250 | M42: 1436 | N42: 0
A43: =IF('Applicant Info'!$P$13=TRUE,"Income Qualifier Bonus","High Efficiency Ice Makers Incentive") -> High Efficiency Ice Makers Incentive | J43: =IF('Applicant Info'!$P$13=TRUE,SUM(J37:K42)*0.1,SUM(J37:K42)) -> 0
A44: High Efficiency Ice Makers Incentive | J44: =SUM(J37:K43) -> 0
A45: Income Qualifier Bonus: | J45: =IF('Applicant Info'!$P$13=TRUE,SUM(J5:K10,J16:K23,J29:K31,J37:K42)*0.1,0) -> 0
A46: Total Food Service Equipment Incentives | J46: =SUM(J5:K10,J16:K23,J29:K31,J37:K42,J45) -> 0
A47: I certify that I have not already received an 'at the counter' rebate from a participating distributor for the equipment listed above. I understand that if I have already received a rebate that this application will be cancelled.

Sheet Appliances
A1: APPLIANCES INCENTIVES
A2: Applicant: fill in grey fields below | D2: See spec sheets at the bottom of the page!
A3: Low-flow Showerheads (w/Electric Water Heaters)
A4: Flow (GPM) | C4: Incentive Unit | D4: Incentive/Unit | E4: # of Units | F4: Incentive
C5: Unit | D5: 6 | F5: =IF(ISBLANK(E5),"",D5*E5) -> 
C6: Unit | D6: 6 | F6: =IF(ISBLANK(E6),"",D6*E6) -> 
C7: Unit | D7: 6
C8: Unit | D8: 6
C9: Unit | D9: 6
C10: Unit | D10: 6
A11: =IF('Applicant Info'!$P$13=TRUE,"Income Qualifier Bonus","Low-flow Showerheads Incentive") -> Low-flow Showerheads Incentive | F11: =IF('Applicant Info'!$P$13=TRUE,SUM(F5:F10)*0.1,SUM(F5:F10)) -> 0
A12: Low-flow Showerheads Incentive | F12: =SUM(F5:F11) -> 0
A14: Low-flow Faucets Aerators (w/Electric Water Heaters)
A15: Flow (GPM) | C15: Incentive Unit | D15: Incentive/Unit | E15: # of Units | F15: Incentive
C16: Unit | D16: 5 | F16: =IF(ISBLANK(E16),"",D16*E16) -> 
C17: Unit | D17: 5 | F17: =IF(ISBLANK(E17),"",D17*E17) -> 
C18: Unit | D18: 5
C19: Unit | D19: 5
C20: Unit | D20: 5
C21: Unit | D21: 5
A22: =IF('Applicant Info'!$P$13=TRUE,"Income Qualifier Bonus","Low-flow Faucets Incentive") -> Low-flow Faucets Incentive | F22: =IF('Applicant Info'!$P$13=TRUE,SUM(F16:F21)*0.1,SUM(F16:F21)) -> 0
A23: Low-flow Faucets incentive | F23: =SUM(F16:F22) -> 0
A25: ENERGY STAR® Dishwashers
A26: Equipment Type | B26: Domestic Hot Water Source | C26: Incentive Unit | D26: Incentive/Unit | E26: # of Units | F26: Incentive
A27: Standard | C27: Unit | D27: 10 | F27: =IF(ISBLANK(E27),"",D27*E27) -> 
A28: Compact | C28: Unit | D28: 5 | F28: =IF(ISBLANK(E28),"",D28*E28) -> 
A29: =IF('Applicant Info'!$P$13=TRUE,"Income Qualifier Bonus","Dishwashers Incentive") -> Dishwashers Incentive | F29: =IF('Applicant Info'!$P$13=TRUE,SUM(F27:F28)*0.1,SUM(F27:F28)) -> 0
A30: Dishwashers Incentive | F30: =SUM(F27:F29) -> 0
A32: ENERGY STAR® Washers
A33: Equipment Type | B33: Application Type | C33: Incentive Unit | D33: Incentive/Unit | E33: # of Units | F33: Incentive
A34: Top Loading (≥ 2.5 cu. ft.) | C34: Unit | D34: 25 | F34: =IF(ISBLANK(E34),"",D34*E34) -> 
A35: Front Loading (≥ 2.5 cu. ft.) | C35: Unit | D35: 25 | F35: =IF(ISBLANK(E35),"",D35*E35) -> 
A36: < 2.5 cu. ft. | C36: Unit | D36: 25 | F36: =IF(ISBLANK(E36),"",D36*E36) -> 
A37: =IF('Applicant Info'!$P$13=TRUE,"Income Qualifier Bonus","Washers Incentive") -> Washers Incentive | F37: =IF('Applicant Info'!$P$13=TRUE,SUM(F34:F36)*0.1,SUM(F34:F36)) -> 0
A38: Washers Incentive | F38: =SUM(F34:F37) -> 0
A40: ENERGY STAR® Dryers
A41: Equipment Type | B41: Application Type | C41: Incentive Unit | D41: Incentive/Unit | E41: # of Units | F41: Incentive
A42: Vented Electric - Standard (≥4.4 cu. ft.) | C42: Unit | D42: 25 | F42: =IF(ISBLANK(E42),"",D42*E42) -> 
A43: Vented Electric - Compact (<4.4 cu. ft.) | C43: Unit | D43: 25
A44: Ventless Electric, Combination Washer-Dryer | C44: Unit | D44: 50 | F44: =IF(ISBLANK(E44),"",D44*E44) -> 
A45: =IF('Applicant Info'!$P$13=TRUE,"Income Qualifier Bonus","Dryers Incentive") -> Dryers Incentive | F45: =IF('Applicant Info'!$P$13=TRUE,SUM(F42:F44)*0.1,SUM(F42:F44)) -> 0
A46: Dryers Incentive | F46: =SUM(F42:F45) -> 0
A48: Refrigerators-Freezer Incentive (MUST satisfy EnergyStar® Criteria)
A49: Volume (cubic feet) | C49: ENERGY STAR® | D49: Incentive/Unit | E49: # of Units | F49: Incentive
A50: ≥ 13 and <20 | D50: 150 | F50: =IF(OR(C50="",E50=""),"",IF(C50="Yes",$D50*$E50,IF(C50="No","DNQ",""))) -> 
A51: ≥ 20 and < 25 | D51: 160 | F51: =IF(OR(C51="",E51=""),"",IF(C51="Yes",$D51*$E51,IF(C51="No","DNQ",""))) -> 
A52: ≥ 25 | D52: 170
A53: =IF('Applicant Info'!$P$13=TRUE,"Income Qualifier Bonus","Refrigerator-Freezer Incentive") -> Refrigerator-Freezer Incentive | F53: =IF('Applicant Info'!$P$13=TRUE,SUM(F50:F52)*0.1,SUM(F50:F52)) -> 0
A54: Refrigerator-Freezer Incentive | F54: =SUM(F50:F53) -> 0
A56: Total Appliances Incentives | F56: =IF('Applicant Info'!$P$13=TRUE,SUM(F12,F23,F30,F38,F46,F54),SUM(F11,F22,F29,F37,F45,F53)) -> 0

Sheet Heat Pump Water Heaters
B1: HEAT PUMP WATER HEATERS INCENTIVES
A2: Applicant: Fill in grey fields | G2: See spec sheets at the bottom of the page! | N2: 25 or less | O2: 20 | P2: 12 | Q2: =O2*P2 -> 240
A3: Electric Hybrid Heat Pump Water Heaters must be EnergyStar certified with a 3.30 Uniform Energy Factor (UEF) or greater and 55 gallons or less of storage capacity. | N3: 26 to 35 | O3: 30 | P3: 12 | Q3: =O3*P3 -> 360
N4: 36 to 45 | O4: 40 | P4: 12 | Q4: =O4*P4 -> 480
N5: 46 to 55 | O5: 50 | P5: 12 | Q5: =O5*P5 -> 600
B6: Size Category (gallons) | F6: Rebate/unit
B7: 25 or less | F7: 240
B8: 26 to 35 | F8: 360
B9: 36 to 45 | F9: 480
B10: 46 to 55 | F10: 600
A12: Size (gallons) | C12: EnergyStar Certified? | F12: Incentive/unit | H12: Quantity | J12: Incentive
F13: =IF(A13="","",VLOOKUP($A13,$N$2:$Q$5,4,FALSE)) ->  | J13: =X14 ->  | S13: Size category | T13: size | U13: EnergyStar Certified? | V13: Incentive/gallon | W13: Quanity | X13: Rebate
F14: =IF(A14="","",VLOOKUP($A14,$N$2:$Q$5,4,FALSE)) ->  | S14: 25 or less | T14: 20 | U14: Yes | V14: 12 | W14: Input7 | X14: =IF(OR(A13="",C13="",H13=""),"",IF(C13="No","Does Not Quality",VLOOKUP($A13,$S$14:$T$17,2,FALSE)*VLOOKUP($A13,$S$14:$V$17,4,FALSE)*H13)) -> 
S15: 26 to 35 | T15: 30 | U15: No | V15: 12 | W15: Input8
S16: 36 to 45 | T16: 40 | V16: 12 | W16: Input9
S17: 46 to 55 | T17: 50 | V17: 12 | W17: Input10
V18: 12 | W18: Input11
A19: =IF('Applicant Info'!$P$13=TRUE,"Income Qualifier Bonus","Hot Pump Water Heaters Incentive") -> Hot Pump Water Heaters Incentive | J19: =IF('Applicant Info'!$P$13=TRUE,SUM(J13:K18)*0.1,SUM(J13:K18)) -> 0 | V19: 12 | W19: Input12
A20: Hot Pump Water Heaters Incentive | J20: =SUM(J13:J19) -> 0
M22: FALSE
U24: 45
M34: FALSE

Sheet Windows
A1: WINDOW REPLACEMENT INCENTIVES
A2: Applicant: fill in gray fields | F2: See spec sheets at the bottom of the page!
A3: Window Incentive (MUST satisfy EnergyStar® Criteria; please see specs below) | L3: =IF(AND(M5="",N5=""),"",IF(OR(C5="",D5=""),"",IF(A5="Santa Fe",IF(AND(C5<=M5,D5>=N5),"Qualified Product","Do Not Qualify"),IF(AND(C5<=M5,D5<=N5),"Qualified Product","Do Not Qualify")))) ->  | N3: `
A4: Weather Region* | B4: Shading Type (Old Windows) | C4: U-Factor [Btu/(h sq.ft.°F)] | D4: Solar Heat Gain Coefficient (SHGC) | E4: Area of Window [ft2] | F4: Incentive/ft2 | G4: ENERGY STAR® | H4: Cooling Type | I4: Heating Type | J4: Incentive | K4: $/kWh | L4: ES Requirement | M4: Base U-Factor | N4: Base SHGC | AM4: Region
F5: =_xlfn.IFNA(IF($B5="Single-pane",VLOOKUP($A5,$P$8:$Q$10,2,FALSE),IF(OR($A5="",$B5=""),"",VLOOKUP($A5,$P$16:$Q$18,2,FALSE))),"") ->  | G5: =IF(OR(A5="",B5="",C5="",D5=""),"",L5) ->  | J5: =IF(OR($C5="",$D5="",$E5="",$G5="",$H5="",$I5=""),"",IF(OR($L5="Do Not Qualify",$H5="NO COOLING"),"DNQ",$F5*$E5)) ->  | K5: =IFERROR(J5/AI5,"") ->  | L5: =IF(AND(M5="",N5=""),"",IF(OR(C5="",D5=""),"",IF(A5="Santa Fe",IF(AND(C5<=M5,D5>=N5),"Qualified Product","Do Not Qualify"),IF(AND(C5<=M5,D5<=N5),"Qualified Product","Do Not Qualify")))) ->  | M5: =IF($A5="Santa Fe",IF($C5<=0.27,Y$9,IF(AND($C5>0.27,$C5<=0.28),Y$10,IF(AND($C5>0.28,$C5<=0.29),Y$11,IF($C5>0.29,Y$12)))),_xlfn.IFNA(VLOOKUP($A5,$X$8:$Z$13,2,FALSE),"")) ->  | N5: =IF($A5="Santa Fe",IF($C5<=0.27,Z$9,IF(AND($C5>0.27,$C5<=0.28),Z$10,IF(AND($C5>0.28,$C5<=0.29),Z$11,IF($C5>0.29,Z$12)))),_xlfn.IFNA(VLOOKUP($A5,$X$8:$Z$13,3,FALSE),"")) ->  | Q5: Annual kWh Savings: Energy Star Windows Replacing Single-pane Windows | X5: Windows MUST satisfy ENERGY STAR criteria Below | AM5: North -NM
G6: =IF(OR(A6="",B6="",C6="",D6=""),"",L6) ->  | L6: =IF(AND(M6="",N6=""),"",IF(OR(C6="",D6=""),"",IF(A6="Santa Fe",IF(AND(C6<=M6,D6>=N6),"Qualified Product","Do Not Qualify"),IF(AND(C6<=M6,D6<=N6),"Qualified Product","Do Not Qualify")))) ->  | M6: =IF($A6="Santa Fe",IF($C6<=0.27,Y$9,IF(AND($C6>0.27,$C6<=0.28),Y$10,IF(AND($C6>0.28,$C6<=0.29),Y$11,IF($C6>0.29,Y$12)))),_xlfn.IFNA(VLOOKUP($A6,$X$8:$Z$13,2,FALSE),"")) ->  | N6: =IF($A6="Santa Fe",IF($C6<=0.27,Z$9,IF(AND($C6>0.27,$C6<=0.28),Z$10,IF(AND($C6>0.28,$C6<=0.29),Z$11,IF($C6>0.29,Z$12)))),_xlfn.IFNA(VLOOKUP($A6,$X$8:$Z$13,3,FALSE),"")) ->  | R6: $/kWh | X6: Climate Zone | Y6: U-Factor Btu/(h sq.ft. F) | Z6: Solar Heat Gain Coefficient (SHGC) | AM6: Central -NM
J7: =IF(OR($C7="",$D7="",$E7="",$G7="",$H7="",$I7=""),"",IF(OR($L7="Do Not Qualify",$H7="NO COOLING"),"DNQ",$F7*$E7)) ->  | P7: Climate Zone | Q7: Incentive per Sq. Ft. | R7: Refrigerated Air | S7: Evap Cooling | T7: Electric Resistance + Evap | U7: Heat Pump | AM7: South -NM
P8: Albuquerque | Q8: 1 | R8: 0.1757469244 | S8: 0.5235602094 | T8: 0.3194888179 | U8: 0.1529051988 | X8: Albuquerque | Y8: 0.3 | Z8: 0.4
P9: Santa Fe | Q9: 1 | R9: 0.4784688995 | S9: 1.428571429 | T9: 0.3012048193 | U9: 0.2551020408 | X9: Santa Fe | Y9: 0.27
P10: Las Cruces | Q10: 1 | R10: 0.1792114695 | S10: 0.5347593583 | T10: 0.3246753247 | U10: 0.1557632399 | X10: Santa Fe | Y10: 0.28 | Z10: 0.32
X11: Santa Fe | Y11: 0.29 | Z11: 0.37
X12: Santa Fe | Y12: 0.3 | Z12: 0.42
Q13: Annual kWh Savings: Energy Star Windows Replacing Double-pane Windows | X13: Las Cruces | Y13: 0.3 | Z13: 0.25
K14: =IFERROR(J14/AI14,"") ->  | R14: $/kWh
K15: =IFERROR(J15/AI15,"") ->  | P15: Climate Zone | Q15: Incentive per Sq. Ft. | R15: Refrigerated Air | S15: Evap Cooling | T15: Electric Resistance + Evap | U15: Heat Pump
K16: =IFERROR(J16/AI16,"") ->  | P16: Albuquerque | Q16: 0.5 | R16: 0.117370892 | S16: 0.3401360544 | T16: 0.4 | U16: 0.1121076233 | W16: Energy Star? | X16: Shading Coefficient | Y16: Region | Z16: Cooling Type | AA16: Heating Type
A17: =IF('Applicant Info'!$P$13=TRUE,"Income Qualifier Bonus","Window Replacement Incentive") -> Window Replacement Incentive | J17: =IF('Applicant Info'!$P$13=TRUE,SUM(J5:J16)*0.1,SUM(J5:J16)) -> 0 | P17: Santa Fe | Q17: 0.5 | R17: 0.3205128205 | S17: 0.9259259259 | T17: 8.333333333 | U17: 0.2525252525 | W17: Yes | X17: Single-pane | Y17: Albuquerque | Z17: Refrigerated Air | AA17: Gas Heat
A18: Window Replacement Incentive | J18: =SUM(J5:J17) -> 0 | P18: Las Cruces | Q18: 0.5 | R18: 0.1196172249 | S18: 0.3816793893 | T18: 0.4587155963 | U18: 0.1141552511 | W18: No | X18: Double-pane | Y18: Santa Fe | Z18: Evap Cooling | AA18: Electric Resistance
Y19: Las Cruces | Z19: NO COOLING | AA19: Heat Pump
L23: old Incentive
L24: 70
L25: 80
L26: 100

Sheet Pool Pumps
A1: POOL PUMP INCENTIVES
A2: Applicant: fill in gray fields at bottom | H2: See specs at the bottom of the page!
A3: Pool Pumps
A4: Pump Type | F4: Incentive Unit | G4: Incentive/Unit | I4: Quantity | J4: Incentive
A5: Energy Star Pump - In-ground | F5: Unit | G5: 100 | J5: =IF(ISBLANK(I5),"",G5*I5) -> 
A6: CEE Tier 1* Pump - In-ground | F6: Unit | G6: 100 | H6: 100 | J6: =IF(ISBLANK(I6),"",G6*I6) -> 
A7: Energy Star Pump - Above Ground | F7: Unit | G7: 100 | H7: 100
A8: CEE Tier 1* Pump - Above Ground | F8: Unit | G8: 100
A9: =IF('Applicant Info'!$P$13=TRUE,"Income Qualifier Bonus","Pool Pumps Incentive") -> Pool Pumps Incentive | J9: =IF('Applicant Info'!$P$13=TRUE,SUM(J5:J8)*0.1,SUM(J5:J8)) -> 0
A10: Pool Pumps Incentive | J10: =SUM(J5:J9) -> 0
A11: * If BOTH Energy Star and CEE Tier 1 certified, use the CEE Tier 1 line item(s).
R12: ENERGYSTAR Pool Pump Assumptions | AA12: Incentive | AB12: $/kWh | AD12: ES
R13: Rated Hp | S13: Hours, HighSpeed | T13: Hours, LowSpeed | U13: PFR, HighSpeed | V13: EF, HighSpeed | W13: PFR, LowSpeed | X13: EF, LowSpeed | Y13: kWh, ENERGYSTAR | AD13: Yes
R14: <1.25 | S14: 4.3 | T14: 9.7 | U14: 56 | V14: 2.398 | W14: 31 | X14: 5.407 | Y14: =+((U14*60*#REF!*365)/(V14*1000))+((W14*60*#REF!*365)/(X14*1000)) ->  | AA14: 120 | AB14: =+AA14/X14 -> 22.19345293 | AD14: No
R15: 1.25 < HP <1.75 | T15: 0.2085 | U15: 61 | V15: 2.267 | W15: 31.9 | X15: 5.433 | Y15: =+((U15*60*#REF!*365)/(V15*1000))+((W15*60*#REF!*365)/(X15*1000)) ->  | AA15: =+AA14+20 -> 140 | AB15: =+AA15/X15 -> 25.76845205
R16: 1.75 < HP <2.25 | T16: 0.2516 | U16: 66.4 | V16: 1.951 | W16: 33.3 | X16: 5.221 | Y16: =+((U16*60*#REF!*365)/(V16*1000))+((W16*60*#REF!*365)/(X16*1000)) ->  | AA16: =+AA15+20 -> 160 | AB16: =+AA16/X16 -> 30.64547022
R17: 2.25 < HP <2.75 | T17: 0.3081 | U17: 66 | V17: 2.024 | W17: 34 | X17: 4.796 | Y17: =+((U17*60*#REF!*365)/(V17*1000))+((W17*60*#REF!*365)/(X17*1000)) ->  | AA17: =+AA16+20 -> 180 | AB17: =+AA17/X17 -> 37.53127606
R18: 2.75 < HP <3.00 | T18: 0.3639 | U18: 74 | V18: 1.617 | W18: 37 | X18: 4.764 | Y18: =+((U18*60*#REF!*365)/(V18*1000))+((W18*60*#REF!*365)/(X18*1000)) ->  | AA18: =+AA17+20 -> 200 | AB18: =+AA18/X18 -> 41.98152813

Sheet Custom
D1: CUSTOM INCENTIVES | G1: See specs at the bottom of the page!
A2: Applicant: fill in gray fields | D2: *Please attach supporting documentation as described in the specifications*
A3: Item 1
A4: Description | H4: $/kWh | I4: Subtotal
E5: Annual kWh Savings | H5: 0.08 | I5: =IF(AND(G5>0,G11>0,G13>0),MIN(G5*H5,G11,0.5*G13),0) -> 0
E7: kW Savings
E9: Annual Operating Hours
E11: Incremental Measure Cost
E13: Total Project Cost
A15: Item 2
A16: Description | H16: $/kWh | I16: Subtotal
E17: Annual kWh Savings | H17: 0.08 | I17: =IF(AND(G17>0,G23>0,G25>0),MIN(G17*H17,G23,0.5*G25),0) -> 0
E19: kW Savings
E21: Annual Operating Hours
E23: Incremental Measure Cost
E25: Total Project Cost
A27: Item 3
A28: Description | H28: $/kWh | I28: Subtotal
E29: Annual kWh Savings | H29: 0.08 | I29: =IF(AND(G29>0,G35>0,G37>0),MIN(G29*H29,G35,0.5*G37),0) -> 0
E31: kW Savings
E33: Annual Operating Hours
E35: Incremental Measure Cost
E37: Total Project Cost
A39: Item 4
A40: Description | H40: $/kWh | I40: Subtotal
E41: Annual kWh Savings | H41: 0.08 | I41: =IF(AND(G41>0,G47>0,G49>0),MIN(G41*H41,G47,0.5*G49),0) -> 0
E43: kW Savings
E45: Annual Operating Hours
E47: Incremental Measure Cost
E49: Total Project Cost
A51: =IF('Applicant Info'!$P$13=TRUE,"Income Qualifier Bonus","Total Custom Incentives") -> Total Custom Incentives | I51: =IF('Applicant Info'!$P$13=TRUE,SUM(I5,I17,I29,I41)*0.1,SUM(I5,I17,I29,I41)) -> 0
A52: Total Custom Incentives | I52: =SUM(I5,I17,I29,I41,I51) -> 0
A54: Incremental measure cost (IMC) is the difference between the cost of an energy-efficient piece of equipment and a new
A55: standard-efficiency piece of equipment. The IMC of energy-efficient equipment installed before an old piece of equipment
A56: reaches the end of its life (such as lighting equipment) generally is equal to the total cost of the energy-efficient equipment,
A57: including labor. The IMC of energy-efficient equipment installed at or near the end of life of an old piece of equipment (such as
A58: chillers, motors, air-conditioning units) generally is equal to the difference in cost between the energy-efficient equipment and
A59: the new standard-efficiency piece of equipment, not including labor.
A60: The rebate will be shown as 100% of the Incremental Measure Cost or 50% of the Total Project Cost. All Custom measures subject to approval using the Utility Cost Test (UCT). Submit calculations and costs for assistance.
